Department family,Entity,Date,Expense type,Expense area,Supplier,Transaction number,Amount,Description
MOJ,LAA,02/01/19,Higher Crime,LEGAL AID FUND,ABBEY SOLICITORS,1618786:151255804,"89,975.11",Legal Aid Higher Crime
MOJ,LAA,02/01/19,Legal Help,LEGAL AID FUND,ABBOTSTONE LAW LLP,1617959:151260056,"80,039.00",Legal Aid Legal Help
MOJ,LAA,02/01/19,Higher Crime,LEGAL AID FUND,ABV SOLICITORS,1618826:151283135,"72,349.61",Legal Aid Higher Crime
MOJ,LAA,02/01/19,Lower Crime,LEGAL AID FUND,ABV SOLICITORS,1618826:151260233,"67,600.00",Legal Aid Lower Crime
MOJ,LAA,02/01/19,Lower Crime,LEGAL AID FUND,ACA LAW LTD,1618905:151260730,"29,771.00",Legal Aid Lower Crime
MOJ,LAA,02/01/19,Higher Crime,LEGAL AID FUND,ADAM V S KANE,1618294:151254887,"35,580.00",Legal Aid Higher Crime
MOJ,LAA,02/01/19,Legal Help,LEGAL AID FUND,ALASTAIR BATEMAN & CO,1618942:151259458,"28,252.00",Legal Aid Legal Help
MOJ,LAA,02/01/19,Lower Crime,LEGAL AID FUND,ALBIN & CO LTD,1617829:151261452,"41,831.00",Legal Aid Lower Crime
MOJ,LAA,02/01/19,Lower Crime,LEGAL AID FUND,ALBIN & CO LTD,1618797:151261023,"32,944.00",Legal Aid Lower Crime
MOJ,LAA,02/01/19,Lower Crime,LEGAL AID FUND,ALBIN & CO LTD,1617977:151261682,"26,399.00",Legal Aid Lower Crime
MOJ,LAA,02/01/19,Lower Crime,LEGAL AID FUND,ALEXANDER BENNETT,1617902:151261679,"40,476.00",Legal Aid Lower Crime
MOJ,LAA,02/01/19,Lower Crime,LEGAL AID FUND,ALEXANDER BENNETT,1619904:151260501,"25,400.00",Legal Aid Lower Crime
MOJ,LAA,02/01/19,Higher Crime,LEGAL AID FUND,ALI N BAJWA QC,1618555:151267647,"26,687.08",Legal Aid Higher Crime
MOJ,LAA,02/01/19,Lower Crime,LEGAL AID FUND,ALLEN HOOLE LTD,1620526:151260434,"37,700.00",Legal Aid Lower Crime
MOJ,LAA,02/01/19,Lower Crime,LEGAL AID FUND,ALLEN HOOLE LTD,1619659:151261503,"35,869.00",Legal Aid Lower Crime
MOJ,LAA,02/01/19,Legal Help,LEGAL AID FUND,APPLEMAN LEGAL,1617954:151260059,"42,629.00",Legal Aid Legal Help
MOJ,LAA,02/01/19,Higher Crime,LEGAL AID FUND,ASGHAR & CO,1621298:151267886,"52,704.13",Legal Aid Higher Crime
MOJ,LAA,02/01/19,Lower Crime,LEGAL AID FUND,BAILEY NICHOLSON GRAYSON,1620788:151260210,"55,100.00",Legal Aid Lower Crime
MOJ,LAA,02/01/19,Lower Crime,LEGAL AID FUND,BAINS SOLICITORS,1620787:151260601,"33,429.00",Legal Aid Lower Crime
MOJ,LAA,02/01/19,Lower Crime,LEGAL AID FUND,BAL DHALIWAL SOLICITORS,1620818:151260672,"25,008.00",Legal Aid Lower Crime
MOJ,LAA,02/01/19,Higher Crime,LEGAL AID FUND,BARK & CO,1621129:151255570,"28,878.97",Legal Aid Higher Crime
MOJ,LAA,02/01/19,Lower Crime,LEGAL AID FUND,BELMORES SOLICITORS LTD,1620627:151260645,"26,957.00",Legal Aid Lower Crime
MOJ,LAA,02/01/19,Lower Crime,LEGAL AID FUND,BESWICKS SOLICITORS LLP,1621172:151261102,"50,739.00",Legal Aid Lower Crime
MOJ,LAA,02/01/19,Lower Crime,LEGAL AID FUND,BHATIA BEST LTD,1619084:151260159,"58,800.00",Legal Aid Lower Crime
MOJ,LAA,02/01/19,Lower Crime,LEGAL AID FUND,BHATIA BEST LTD,1619082:151260162,"28,300.00",Legal Aid Lower Crime
MOJ,LAA,02/01/19,Lower Crime,LEGAL AID FUND,BINDMANS LLP,1619015:151260756,"58,769.00",Legal Aid Lower Crime
MOJ,LAA,02/01/19,Lower Crime,LEGAL AID FUND,BIRDS SOLICITORS LTD,1618818:151260223,"103,200.00",Legal Aid Lower Crime
MOJ,LAA,02/01/19,Legal Help,LEGAL AID FUND,BIRNBERG PEIRCE LTD,1620778:151259143,"51,800.00",Legal Aid Legal Help
MOJ,LAA,02/01/19,Lower Crime,LEGAL AID FUND,BISHOP & LIGHT SOLICITORS LTD,1621324:151260402,"27,400.00",Legal Aid Lower Crime
MOJ,LAA,02/01/19,Legal Help,LEGAL AID FUND,BISON SOLICITORS LTD,1617965:151252706,"99,442.00",Legal Aid Legal Help
MOJ,LAA,02/01/19,Legal Help,LEGAL AID FUND,BISON SOLICITORS LTD,1617965:151252704,"90,000.00",Legal Aid Legal Help
MOJ,LAA,02/01/19,Lower Crime,LEGAL AID FUND,BJ & CO SOLICITORS LTD T/A  BRIAN JACKSON & CO,1618926:151260280,"32,100.00",Legal Aid Lower Crime
MOJ,LAA,02/01/19,Lower Crime,LEGAL AID FUND,BLACKFORDS LLP,1621270:151260702,"42,424.00",Legal Aid Lower Crime
MOJ,LAA,02/01/19,Lower Crime,LEGAL AID FUND,BLACKWELLS,1620733:151260329,"35,000.00",Legal Aid Lower Crime
MOJ,LAA,02/01/19,Lower Crime,LEGAL AID FUND,BOBBETTS MACKAN,1619358:151260427,"42,000.00",Legal Aid Lower Crime
MOJ,LAA,02/01/19,Lower Crime,LEGAL AID FUND,BOND JOSEPH,1618945:151260991,"51,393.00",Legal Aid Lower Crime
MOJ,LAA,02/01/19,Legal Help,LEGAL AID FUND,BRAITCH SOLICITORS (RB SOLICITORS),1620573:151259258,"36,914.00",Legal Aid Legal Help
MOJ,LAA,02/01/19,Lower Crime,LEGAL AID FUND,BREYDONS SOLICITORS LTD,1617948:151261214,"35,500.00",Legal Aid Lower Crime
MOJ,LAA,02/01/19,Legal Help,LEGAL AID FUND,BRIGHTON HOUSING TRUST,1620465:151259824,"42,393.00",Legal Aid Legal Help
MOJ,LAA,02/01/19,Legal Help,LEGAL AID FUND,BURKE NIAZI  LTD,1619236:151252693,"90,000.00",Legal Aid Legal Help
MOJ,LAA,02/01/19,Legal Help,LEGAL AID FUND,BURTON & BURTON SOLICITOR LTD,1620413:151259835,"42,621.00",Legal Aid Legal Help
MOJ,LAA,02/01/19,Lower Crime,LEGAL AID FUND,BURTON COPELAND LLP,1620919:151260969,"38,604.00",Legal Aid Lower Crime
MOJ,LAA,02/01/19,Legal Help,LEGAL AID FUND,BUTLER & CO,1618838:151259092,"30,000.00",Legal Aid Legal Help
MOJ,LAA,02/01/19,Lower Crime,LEGAL AID FUND,C S SOLICITORS,1619814:151261374,"26,852.00",Legal Aid Lower Crime
MOJ,LAA,02/01/19,Lower Crime,LEGAL AID FUND,CARR & CO,1619166:151260327,"27,672.00",Legal Aid Lower Crime
MOJ,LAA,02/01/19,Lower Crime,LEGAL AID FUND,CARRINGTONS SOLICITORS,1620629:151260605,"200,635.00",Legal Aid Lower Crime
MOJ,LAA,02/01/19,Lower Crime,LEGAL AID FUND,CARTER OSBORNE LTD,1619132:151260602,"103,069.00",Legal Aid Lower Crime
MOJ,LAA,02/01/19,Legal Help,LEGAL AID FUND,CARTWRIGHT KING LTD,1620695:151259683,"72,812.00",Legal Aid Legal Help
MOJ,LAA,02/01/19,Lower Crime,LEGAL AID FUND,CARTWRIGHT KING LTD,1620695:151260611,"33,547.00",Legal Aid Lower Crime
MOJ,LAA,02/01/19,Lower Crime,LEGAL AID FUND,CARTWRIGHT KING LTD,1620693:151260614,"28,119.00",Legal Aid Lower Crime
MOJ,LAA,02/01/19,Higher Crime,LEGAL AID FUND,CARTWRIGHT KING LTD-ADVOCATE,1618258:151255947,"34,580.50",Legal Aid Higher Crime
MOJ,LAA,02/01/19,Higher Crime,LEGAL AID FUND,CARTWRIGHT KING LTD-ADVOCATE,1618258:151255958,"33,412.90",Legal Aid Higher Crime
MOJ,LAA,02/01/19,Higher Crime,LEGAL AID FUND,CHARLES I SHERRARD,1618388:151255625,"47,520.00",Legal Aid Higher Crime
MOJ,LAA,02/01/19,Lower Crime,LEGAL AID FUND,CHIVERS SOLICITORS,1620771:151260877,"28,498.00",Legal Aid Lower Crime
MOJ,LAA,02/01/19,Higher Crime,LEGAL AID FUND,CHRISTOPHER J MILLINGTON,1619948:151283421,"26,820.00",Legal Aid Higher Crime
MOJ,LAA,02/01/19,Lower Crime,LEGAL AID FUND,CHURCHERS SOLICITORS,1618676:151261010,"30,375.00",Legal Aid Lower Crime
MOJ,LAA,02/01/19,Higher Crime,LEGAL AID FUND,CITY CRIMINAL LAWYERS LTD,1617835:151267995,"69,604.63",Legal Aid Higher Crime
MOJ,LAA,02/01/19,Higher Crime,LEGAL AID FUND,CITY CRIMINAL LAWYERS LTD,1617835:151283720,"37,969.44",Legal Aid Higher Crime
MOJ,LAA,02/01/19,Legal Help,LEGAL AID FUND,CJCH SOLICITORS,1617942:151260062,"28,741.00",Legal Aid Legal Help
MOJ,LAA,02/01/19,Lower Crime,LEGAL AID FUND,CJH SOLICITORS,1620775:151260181,"28,500.00",Legal Aid Lower Crime
MOJ,LAA,02/01/19,Legal Help,LEGAL AID FUND,CMHT SOLICITORS LLP,1621180:151259267,"60,027.00",Legal Aid Legal Help
MOJ,LAA,02/01/19,Lower Crime,LEGAL AID FUND,COBLEYS SOLICITORS LTD,1618907:151260803,"28,235.00",Legal Aid Lower Crime
MOJ,LAA,02/01/19,Legal Help,LEGAL AID FUND,CONFREYS,1619333:151259389,"32,792.00",Legal Aid Legal Help
MOJ,LAA,02/01/19,Lower Crime,LEGAL AID FUND,CONNOR ROSS-BROWN SOLICITORS,1618136:151260495,"35,000.00",Legal Aid Lower Crime
MOJ,LAA,02/01/19,Lower Crime,LEGAL AID FUND,CRIMINAL DEFENCE ASSOCIATES LTD,1620655:151260187,"25,000.00",Legal Aid Lower Crime
MOJ,LAA,02/01/19,Lower Crime,LEGAL AID FUND,CRIMINAL DEFENCE MILTON KEYNES LTD,1620508:151260411,"29,000.00",Legal Aid Lower Crime
MOJ,LAA,02/01/19,Lower Crime,LEGAL AID FUND,CRIMINAL DEFENCE SOLICITORS,1620622:151260258,"39,600.00",Legal Aid Lower Crime
MOJ,LAA,02/01/19,Lower Crime,LEGAL AID FUND,CROWE HUMBLE WESENCRAFT,1618890:151260299,"50,700.00",Legal Aid Lower Crime
MOJ,LAA,02/01/19,Lower Crime,LEGAL AID FUND,DALTON HOLMES GRAY,1618956:151260762,"40,090.00",Legal Aid Lower Crime
MOJ,LAA,02/01/19,Legal Help,LEGAL AID FUND,DAVID GRAY LLP,1620750:151259634,"38,560.00",Legal Aid Legal Help
MOJ,LAA,02/01/19,Higher Crime,LEGAL AID FUND,DAVID NORMAN SOLICITORS LTD,1619755:151267880,"70,047.67",Legal Aid Higher Crime
MOJ,LAA,02/01/19,Lower Crime,LEGAL AID FUND,DAVID W HARRIS & CO,1619340:151260577,"26,828.00",Legal Aid Lower Crime
MOJ,LAA,02/01/19,Civil Representation,LEGAL AID FUND,DEIRDRE FOTTRELL QC,1618393:3000003416270002,"49,896.00",Legal Aid Civil Representation
MOJ,LAA,02/01/19,Lower Crime,LEGAL AID FUND,DEVAS KEOGH JAMES SOLICITORS LTD,1621046:151260664,"28,409.00",Legal Aid Lower Crime
MOJ,LAA,02/01/19,Lower Crime,LEGAL AID FUND,DJMS SOLICITORS LTD,1620564:151260821,"35,984.00",Legal Aid Lower Crime
MOJ,LAA,02/01/19,Civil Representation,LEGAL AID FUND,DODDS SOLICITORS LLP,1619116:3000002020910020,"33,084.88",Legal Aid Civil Representation
MOJ,LAA,02/01/19,Legal Help,LEGAL AID FUND,DONOVAN NEWTON SOLICITORS,1618725:151259655,"36,206.00",Legal Aid Legal Help
MOJ,LAA,02/01/19,Higher Crime,LEGAL AID FUND,DRAYCOTT BROWNE LTD,1620857:151267689,"54,902.04",Legal Aid Higher Crime
MOJ,LAA,02/01/19,Higher Crime,LEGAL AID FUND,DRAYCOTT BROWNE LTD,1620857:151255881,"35,073.07",Legal Aid Higher Crime
MOJ,LAA,02/01/19,Lower Crime,LEGAL AID FUND,DRISCOLL YOUNG SOLICITORS LTD,1620774:151260536,"29,802.00",Legal Aid Lower Crime
MOJ,LAA,02/01/19,Lower Crime,LEGAL AID FUND,DUNCAN LEWIS SOLICITORS  LTD,1620848:151260243,"102,700.00",Legal Aid Lower Crime
MOJ,LAA,02/01/19,Legal Help,LEGAL AID FUND,DUNCAN LEWIS SOLICITORS  LTD,1620848:151252689,"95,000.00",Legal Aid Legal Help
MOJ,LAA,02/01/19,Legal Help,LEGAL AID FUND,DUNCAN LEWIS SOLICITORS  LTD,1620849:151252687,"94,000.00",Legal Aid Legal Help
MOJ,LAA,02/01/19,Legal Help,LEGAL AID FUND,DUNCAN LEWIS SOLICITORS  LTD,1620848:151252691,"93,000.00",Legal Aid Legal Help
MOJ,LAA,02/01/19,Legal Help,LEGAL AID FUND,DUNCAN LEWIS SOLICITORS  LTD,1620849:151252616,"92,000.00",Legal Aid Legal Help
MOJ,LAA,02/01/19,Legal Help,LEGAL AID FUND,DUNCAN LEWIS SOLICITORS  LTD,1620849:151252615,"90,000.00",Legal Aid Legal Help
MOJ,LAA,02/01/19,Legal Help,LEGAL AID FUND,DUNCAN LEWIS SOLICITORS  LTD,1620849:151252614,"88,000.00",Legal Aid Legal Help
MOJ,LAA,02/01/19,Legal Help,LEGAL AID FUND,DUNCAN LEWIS SOLICITORS  LTD,1620848:151252692,"80,400.00",Legal Aid Legal Help
MOJ,LAA,02/01/19,Lower Crime,LEGAL AID FUND,DUNCAN LEWIS SOLICITORS  LTD,1620849:151260732,"72,357.00",Legal Aid Lower Crime
MOJ,LAA,02/01/19,Legal Help,LEGAL AID FUND,DUNCAN LEWIS SOLICITORS  LTD,1619815:151259230,"59,300.00",Legal Aid Legal Help
MOJ,LAA,02/01/19,Legal Help,LEGAL AID FUND,DUNCAN LEWIS SOLICITORS  LTD,1620849:151252688,"36,000.00",Legal Aid Legal Help
MOJ,LAA,02/01/19,Lower Crime,LEGAL AID FUND,DUNCAN LEWIS SOLICITORS  LTD,1620397:151261691,"28,959.00",Legal Aid Lower Crime
MOJ,LAA,02/01/19,Lower Crime,LEGAL AID FUND,EBR ATTRIDGE LLP,1620591:151260694,"32,923.00",Legal Aid Lower Crime
MOJ,LAA,02/01/19,Higher Crime,LEGAL AID FUND,EDMUND B B VICKERS QC,1618537:151283721,"32,400.00",Legal Aid Higher Crime
MOJ,LAA,02/01/19,Lower Crime,LEGAL AID FUND,EDWARD FAIL BRADSHAW & WATERSON,1619453:151260777,"28,272.00",Legal Aid Lower Crime
MOJ,LAA,02/01/19,Lower Crime,LEGAL AID FUND,EDWARDS DUTHIE,1621326:151261325,"27,521.00",Legal Aid Lower Crime
MOJ,LAA,02/01/19,Lower Crime,LEGAL AID FUND,EDWARDS VAZIRANEY,1620581:151260704,"30,010.00",Legal Aid Lower Crime
MOJ,LAA,02/01/19,Legal Help,LEGAL AID FUND,ELDER RAHIMI LIMITED,1620947:151259560,"51,069.00",Legal Aid Legal Help
MOJ,LAA,02/01/19,Higher Crime,LEGAL AID FUND,ELIZABETH A MARSH QC,1618503:151255037,"28,841.57",Legal Aid Higher Crime
MOJ,LAA,02/01/19,Higher Crime,LEGAL AID FUND,ELLIOT MATHER LLP,1618124:151255707,"37,791.76",Legal Aid Higher Crime
MOJ,LAA,02/01/19,Lower Crime,LEGAL AID FUND,ELLIOT MATHER LLP,1621026:151260177,"28,800.00",Legal Aid Lower Crime
MOJ,LAA,02/01/19,Civil Representation,LEGAL AID FUND,EMMA C V HUDSON,1618444:3000003416270003,"33,834.24",Legal Aid Civil Representation
MOJ,LAA,02/01/19,Higher Crime,LEGAL AID FUND,ENNON & CO LTD,1620569:151255656,"89,975.11",Legal Aid Higher Crime
MOJ,LAA,02/01/19,Lower Crime,LEGAL AID FUND,EVANS HAYES BURNELL SOLICITORS LTD,1619581:151261433,"30,101.00",Legal Aid Lower Crime
MOJ,LAA,02/01/19,Legal Help,LEGAL AID FUND,FADIGA & CO LTD,1621089:151259501,"33,520.00",Legal Aid Legal Help
MOJ,LAA,02/01/19,Lower Crime,LEGAL AID FUND,FARLEYS SOLICITORS LLP,1621077:151260350,"25,700.00",Legal Aid Lower Crime
MOJ,LAA,02/01/19,Legal Help,LEGAL AID FUND,FISHER JONES GREENWOOD LLP,1618095:151259934,"26,035.00",Legal Aid Legal Help
MOJ,LAA,02/01/19,Lower Crime,LEGAL AID FUND,FORBES SOLICITORS,1619008:151260358,"37,000.00",Legal Aid Lower Crime
MOJ,LAA,02/01/19,Legal Help,LEGAL AID FUND,FOUNTAIN SOLICITORS LTD,1618706:151259070,"77,300.00",Legal Aid Legal Help
MOJ,LAA,02/01/19,Higher Crime,LEGAL AID FUND,FRANCIS G H D FITZGIBBON QC,1618369:151255913,"50,912.81",Legal Aid Higher Crime
MOJ,LAA,02/01/19,Lower Crime,LEGAL AID FUND,FREEMANS SOLICITORS,1621248:151260253,"25,000.00",Legal Aid Lower Crime
MOJ,LAA,02/01/19,Lower Crime,LEGAL AID FUND,G T STEWART LTD,1620608:151260768,"57,012.00",Legal Aid Lower Crime
MOJ,LAA,02/01/19,Lower Crime,LEGAL AID FUND,G T STEWART LTD,1620533:151261202,"35,080.00",Legal Aid Lower Crime
MOJ,LAA,02/01/19,Lower Crime,LEGAL AID FUND,G T STEWART LTD,1620560:151261204,"30,855.00",Legal Aid Lower Crime
MOJ,LAA,02/01/19,Higher Crime,LEGAL AID FUND,GAMLINS LAW LTD,1620805:151255091,"107,970.13",Legal Aid Higher Crime
MOJ,LAA,02/01/19,Lower Crime,LEGAL AID FUND,GAMMON PIERCY & GAIGER,1621277:151261005,"64,582.00",Legal Aid Lower Crime
MOJ,LAA,02/01/19,Higher Crime,LEGAL AID FUND,GARETH WEETMAN,1618311:151283390,"28,170.48",Legal Aid Higher Crime
MOJ,LAA,02/01/19,Lower Crime,LEGAL AID FUND,GARTSIDES,1619330:151260534,"27,739.00",Legal Aid Lower Crime
MOJ,LAA,02/01/19,Civil Representation,LEGAL AID FUND,GARY JACOBS & CO LTD,1620899:3000002436810019,"38,586.78",Legal Aid Civil Representation
MOJ,LAA,02/01/19,Legal Help,LEGAL AID FUND,GENESIS LAW ASSOCIATES SOLICITORS LTD,1618020:151259935,"41,560.00",Legal Aid Legal Help
MOJ,LAA,02/01/19,Lower Crime,LEGAL AID FUND,GEOFF WHITE & CO,1620506:151260993,"28,515.00",Legal Aid Lower Crime
MOJ,LAA,02/01/19,Lower Crime,LEGAL AID FUND,GEOFFREY FORRESTER & CO,1619155:151260294,"28,100.00",Legal Aid Lower Crime
MOJ,LAA,02/01/19,Lower Crime,LEGAL AID FUND,GEPP & SONS SOLICITORS,1619047:151260200,"25,800.00",Legal Aid Lower Crime
MOJ,LAA,02/01/19,Lower Crime,LEGAL AID FUND,GHP LEGAL,1620791:151260156,"43,900.00",Legal Aid Lower Crime
MOJ,LAA,02/01/19,Legal Help,LEGAL AID FUND,GLEDHILL GILL SOLICITORS,1621306:151259297,"51,032.00",Legal Aid Legal Help
MOJ,LAA,02/01/19,Lower Crime,LEGAL AID FUND,GOLDKORNS,1620558:151261155,"26,336.00",Legal Aid Lower Crime
MOJ,LAA,02/01/19,Lower Crime,LEGAL AID FUND,GOMER WILLIAMS,1619332:151260546,"32,033.00",Legal Aid Lower Crime
MOJ,LAA,02/01/19,Lower Crime,LEGAL AID FUND,GOODALL BARNETT JAMES SOLICITORS,1619241:151260392,"27,100.00",Legal Aid Lower Crime
MOJ,LAA,02/01/19,Civil Representation,LEGAL AID FUND,GRAHAME STOWE BATESON,1618935:3000002701890018,"31,680.11",Legal Aid Civil Representation
MOJ,LAA,02/01/19,Lower Crime,LEGAL AID FUND,GRAY & CO SOLICITORS LTD,1620043:151261297,"25,734.00",Legal Aid Lower Crime
MOJ,LAA,02/01/19,Lower Crime,LEGAL AID FUND,GRECH GOODEN SOLICITORS LTD,1618727:151260562,"27,125.00",Legal Aid Lower Crime
MOJ,LAA,02/01/19,Legal Help,LEGAL AID FUND,GUILE NICHOLAS-INC DONALD GALBRAITH & CO,1618708:151259140,"80,000.00",Legal Aid Legal Help
MOJ,LAA,02/01/19,Legal Help,LEGAL AID FUND,GUILE NICHOLAS-INC DONALD GALBRAITH & CO,1617975:151260047,"39,945.00",Legal Aid Legal Help
MOJ,LAA,02/01/19,Lower Crime,LEGAL AID FUND,GULLANDS,1619439:151260978,"35,613.00",Legal Aid Lower Crime
MOJ,LAA,02/01/19,Lower Crime,LEGAL AID FUND,GURNEY HARDEN SOLICITORS LTD,1620510:151260984,"26,008.00",Legal Aid Lower Crime
MOJ,LAA,02/01/19,Lower Crime,LEGAL AID FUND,GWB HARTHILLS LLP,1620731:151260863,"39,178.00",Legal Aid Lower Crime
MOJ,LAA,02/01/19,Lower Crime,LEGAL AID FUND,H P GOWER SOLICITORS,1618620:151261244,"64,892.00",Legal Aid Lower Crime
MOJ,LAA,02/01/19,Lower Crime,LEGAL AID FUND,HARRIS CUFFARO & NICHOLS,1621048:151260195,"44,500.00",Legal Aid Lower Crime
MOJ,LAA,02/01/19,Lower Crime,LEGAL AID FUND,HASKELL & CO,1618698:151260983,"31,723.00",Legal Aid Lower Crime
MOJ,LAA,02/01/19,Lower Crime,LEGAL AID FUND,HAY & KILNER LLP,1619211:151260830,"27,179.00",Legal Aid Lower Crime
MOJ,LAA,02/01/19,Lower Crime,LEGAL AID FUND,HENNESSY & HAMMUDI,1618684:151260418,"60,000.00",Legal Aid Lower Crime
MOJ,LAA,02/01/19,Lower Crime,LEGAL AID FUND,HENRY HYAMS LTD,1620990:151260887,"38,603.00",Legal Aid Lower Crime
MOJ,LAA,02/01/19,Lower Crime,LEGAL AID FUND,HENRY'S SOLICITORS LTD,1620707:151260974,"35,009.00",Legal Aid Lower Crime
MOJ,LAA,02/01/19,Lower Crime,LEGAL AID FUND,HINE SOLICITORS,1619654:151261507,"44,868.00",Legal Aid Lower Crime
MOJ,LAA,02/01/19,Lower Crime,LEGAL AID FUND,HINE SOLICITORS,1618581:151261207,"35,172.00",Legal Aid Lower Crime
MOJ,LAA,02/01/19,Lower Crime,LEGAL AID FUND,HODGE JONES & ALLEN LLP,1621194:151260752,"63,380.00",Legal Aid Lower Crime
MOJ,LAA,02/01/19,Legal Help,LEGAL AID FUND,HODGE JONES & ALLEN LLP,1621194:151259536,"27,059.00",Legal Aid Legal Help
MOJ,LAA,02/01/19,Lower Crime,LEGAL AID FUND,HODGSON COULTHARD & CO,1619186:151260824,"29,497.00",Legal Aid Lower Crime
MOJ,LAA,02/01/19,Lower Crime,LEGAL AID FUND,HORSMAN SOLICITORS LTD,1621112:151260987,"32,067.00",Legal Aid Lower Crime
MOJ,LAA,02/01/19,Lower Crime,LEGAL AID FUND,HOWARD & BYRNE SOLICITORS,1618816:151260326,"46,000.00",Legal Aid Lower Crime
MOJ,LAA,02/01/19,Legal Help,LEGAL AID FUND,HOWE & CO,1620732:151259554,"57,278.00",Legal Aid Legal Help
MOJ,LAA,02/01/19,Lower Crime,LEGAL AID FUND,HOWELLS LLP,1620976:151260315,"44,900.00",Legal Aid Lower Crime
MOJ,LAA,02/01/19,Legal Help,LEGAL AID FUND,HOWELLS LLP,1620976:151259110,"33,500.00",Legal Aid Legal Help
MOJ,LAA,02/01/19,Lower Crime,LEGAL AID FUND,HPJV SOLICITORS,1621154:151260535,"28,689.00",Legal Aid Lower Crime
MOJ,LAA,02/01/19,Higher Crime,LEGAL AID FUND,HUMPHRYS DAWSON,1618881:151283728,"109,249.20",Legal Aid Higher Crime
MOJ,LAA,02/01/19,Legal Help,LEGAL AID FUND,HUNT & COOMBS LLP,1619053:151259375,"30,396.00",Legal Aid Legal Help
MOJ,LAA,02/01/19,Lower Crime,LEGAL AID FUND,I B B SOLICITORS,1618776:151260230,"50,700.00",Legal Aid Lower Crime
MOJ,LAA,02/01/19,Higher Crime,LEGAL AID FUND,IGNATIUS L HUGHES QC,1618394:151283825,"39,240.00",Legal Aid Higher Crime
MOJ,LAA,02/01/19,Lower Crime,LEGAL AID FUND,INSTALAW,1619749:151261378,"76,156.00",Legal Aid Lower Crime
MOJ,LAA,02/01/19,Lower Crime,LEGAL AID FUND,IRVINE THANVI NATAS SOLICITORS,1620714:151260216,"43,500.00",Legal Aid Lower Crime
MOJ,LAA,02/01/19,Legal Help,LEGAL AID FUND,ISON HARRISON LTD,1620669:151259471,"40,390.00",Legal Aid Legal Help
MOJ,LAA,02/01/19,Lower Crime,LEGAL AID FUND,ISON HARRISON LTD,1620669:151260513,"28,900.00",Legal Aid Lower Crime
MOJ,LAA,02/01/19,Lower Crime,LEGAL AID FUND,J D SOLICITORS,1619690:151261553,"72,198.00",Legal Aid Lower Crime
MOJ,LAA,02/01/19,Lower Crime,LEGAL AID FUND,J D SPICER ZEB,1621197:151260714,"75,895.00",Legal Aid Lower Crime
MOJ,LAA,02/01/19,Higher Crime,LEGAL AID FUND,J D SPICER ZEB,1621197:151255242,"58,111.06",Legal Aid Higher Crime
MOJ,LAA,02/01/19,Legal Help,LEGAL AID FUND,J D SPICER ZEB,1621196:151259514,"35,163.00",Legal Aid Legal Help
MOJ,LAA,02/01/19,Legal Help,LEGAL AID FUND,JACKSON LEES GROUP LTD,1620092:151260024,"76,317.00",Legal Aid Legal Help
MOJ,LAA,02/01/19,Lower Crime,LEGAL AID FUND,JACKSON LEES GROUP LTD,1620092:151261303,"73,460.00",Legal Aid Lower Crime
MOJ,LAA,02/01/19,Legal Help,LEGAL AID FUND,JACKSON LEES GROUP LTD,1619253:151259484,"27,632.00",Legal Aid Legal Help
MOJ,LAA,02/01/19,Lower Crime,LEGAL AID FUND,JAMES MURRAY SOLICITORS,1619012:151260798,"27,085.00",Legal Aid Lower Crime
MOJ,LAA,02/01/19,Lower Crime,LEGAL AID FUND,JASON NICHOLSON,1617735:151261611,"27,111.00",Legal Aid Lower Crime
MOJ,LAA,02/01/19,Lower Crime,LEGAL AID FUND,JERMAN SAMUELS & PEARSON LLP,1617773:151260508,"57,000.00",Legal Aid Lower Crime
MOJ,LAA,02/01/19,Higher Crime,LEGAL AID FUND,JESSICA STRANGE,1620037:151267736,"31,919.40",Legal Aid Higher Crime
MOJ,LAA,02/01/19,Higher Crime,LEGAL AID FUND,JESSICA STRANGE,1620037:151267769,"31,919.40",Legal Aid Higher Crime
MOJ,LAA,02/01/19,Higher Crime,LEGAL AID FUND,JESSICA STRANGE,1620037:151267766,"(33,356.46)",Legal Aid Higher Crime
MOJ,LAA,02/01/19,Lower Crime,LEGAL AID FUND,JOHN DELANEY & CO SOLICITORS,1620670:151260335,"33,000.00",Legal Aid Lower Crime
MOJ,LAA,02/01/19,Lower Crime,LEGAL AID FUND,JOHN FULLER & PARTNERS,1618756:151260627,"29,464.00",Legal Aid Lower Crime
MOJ,LAA,02/01/19,Higher Crime,LEGAL AID FUND,JOHN G O'HIGGINS,1618249:151255620,"47,392.08",Legal Aid Higher Crime
MOJ,LAA,02/01/19,Lower Crime,LEGAL AID FUND,JOHN ONIONS SOLICITORS,1619281:151261078,"28,054.00",Legal Aid Lower Crime
MOJ,LAA,02/01/19,Civil Representation,LEGAL AID FUND,JONES MYERS LTD,1620986:3000004155230001,"36,000.00",Legal Aid Civil Representation
MOJ,LAA,02/01/19,Lower Crime,LEGAL AID FUND,JOSEPH HILL & CO,1621044:151260717,"28,865.00",Legal Aid Lower Crime
MOJ,LAA,02/01/19,Lower Crime,LEGAL AID FUND,JSP LAW LTD,1618004:151261340,"46,219.00",Legal Aid Lower Crime
MOJ,LAA,02/01/19,Civil Representation,LEGAL AID FUND,JWP SOLICITORS,1619982:3000004222260002,"30,251.75",Legal Aid Civil Representation
MOJ,LAA,02/01/19,Lower Crime,LEGAL AID FUND,K LEGAL SOLICITORS,1620430:151261264,"35,381.00",Legal Aid Lower Crime
MOJ,LAA,02/01/19,Lower Crime,LEGAL AID FUND,KEANEY WHITEHEAD PARTNERSHIP,1618737:151260806,"25,103.00",Legal Aid Lower Crime
MOJ,LAA,02/01/19,Legal Help,LEGAL AID FUND,KESAR & CO SOLICITORS,1620425:151260015,"47,541.00",Legal Aid Legal Help
MOJ,LAA,02/01/19,Lower Crime,LEGAL AID FUND,KESAR & CO SOLICITORS,1620425:151261266,"26,294.00",Legal Aid Lower Crime
MOJ,LAA,02/01/19,Higher Crime,LEGAL AID FUND,KINGSMAN SOLICITORS LTD,1619683:151283185,"49,253.36",Legal Aid Higher Crime
MOJ,LAA,02/01/19,Lower Crime,LEGAL AID FUND,KIRWANS,1619014:151260795,"29,507.00",Legal Aid Lower Crime
MOJ,LAA,02/01/19,Higher Crime,LEGAL AID FUND,KYLES LEGAL PRACTICE,1618602:151255352,"61,854.86",Legal Aid Higher Crime
MOJ,LAA,02/01/19,Lower Crime,LEGAL AID FUND,KYLES LEGAL PRACTICE,1618602:151261153,"28,443.00",Legal Aid Lower Crime
MOJ,LAA,02/01/19,Lower Crime,LEGAL AID FUND,LANSBURY WORTHINGTON LTD,1621138:151260207,"54,900.00",Legal Aid Lower Crime
MOJ,LAA,02/01/19,Legal Help,LEGAL AID FUND,LAWANA & CO,1618669:151259129,"64,000.00",Legal Aid Legal Help
MOJ,LAA,02/01/19,Lower Crime,LEGAL AID FUND,LAWRENCE & CO SOLICITORS CDS LLP,1620950:151260256,"60,700.00",Legal Aid Lower Crime
MOJ,LAA,02/01/19,Lower Crime,LEGAL AID FUND,LAWTONS SOLICITORS LTD,1618612:151260489,"35,500.00",Legal Aid Lower Crime
MOJ,LAA,02/01/19,Lower Crime,LEGAL AID FUND,LAWTONS SOLICITORS LTD,1619578:151260509,"35,000.00",Legal Aid Lower Crime
MOJ,LAA,02/01/19,Higher Crime,LEGAL AID FUND,LEE N KARUNAIRETNAM,1618505:151284246,"41,022.84",Legal Aid Higher Crime
MOJ,LAA,02/01/19,Legal Help,LEGAL AID FUND,LEGAL JUSTICE SOLICITORS,1619849:151259958,"35,588.00",Legal Aid Legal Help
MOJ,LAA,02/01/19,Legal Help,LEGAL AID FUND,LEI DAT & BAIG SOLICITORS LTD,1620460:151263541,"47,779.00",Legal Aid Legal Help
MOJ,LAA,02/01/19,Lower Crime,LEGAL AID FUND,LESLIE FRANKS SOLICITORS,1620659:151260757,"52,120.00",Legal Aid Lower Crime
MOJ,LAA,02/01/19,Lower Crime,LEGAL AID FUND,LEVY & CO SOLICITORS LLP,1620513:151260197,"30,700.00",Legal Aid Lower Crime
MOJ,LAA,02/01/19,Lower Crime,LEGAL AID FUND,LHD SOLICITORS LTD,1620609:151260345,"37,000.00",Legal Aid Lower Crime
MOJ,LAA,02/01/19,Higher Crime,LEGAL AID FUND,LIBERTY LAW SOLICITORS LTD-ADVOCATE,1618056:151267799,"33,618.26",Legal Aid Higher Crime
MOJ,LAA,02/01/19,Lower Crime,LEGAL AID FUND,LIONEL BLACKMAN SOLICITORS,1619446:151260397,"25,200.00",Legal Aid Lower Crime
MOJ,LAA,02/01/19,Legal Help,LEGAL AID FUND,LISA MARIE MCNULTY SOLICITOR,1618947:151259581,"28,378.00",Legal Aid Legal Help
MOJ,LAA,02/01/19,Lower Crime,LEGAL AID FUND,LLM SOLICITORS (LONDON) LTD,1618608:151261256,"27,285.00",Legal Aid Lower Crime
MOJ,LAA,02/01/19,Lower Crime,LEGAL AID FUND,LLOYDS PR SOLICITORS,1620686:151260624,"33,071.00",Legal Aid Lower Crime
MOJ,LAA,02/01/19,Lower Crime,LEGAL AID FUND,LLOYDS PR SOLICITORS,1620529:151260629,"31,316.00",Legal Aid Lower Crime
MOJ,LAA,02/01/19,Higher Crime,LEGAL AID FUND,LOUND MULRENAN SOLICITORS,1619203:151283852,"29,664.55",Legal Aid Higher Crime
MOJ,LAA,02/01/19,Lower Crime,LEGAL AID FUND,LUMB & MACGILL,1620752:151260328,"35,000.00",Legal Aid Lower Crime
MOJ,LAA,02/01/19,Legal Help,LEGAL AID FUND,LUQMANI THOMPSON & PARTNERS,1618903:151259492,"34,750.00",Legal Aid Legal Help
MOJ,LAA,02/01/19,Lower Crime,LEGAL AID FUND,M K LAW SOLICITORS LTD,1618635:151261216,"50,306.00",Legal Aid Lower Crime
MOJ,LAA,02/01/19,Lower Crime,LEGAL AID FUND,M K LAW SOLICITORS LTD,1618142:151261410,"25,223.00",Legal Aid Lower Crime
MOJ,LAA,02/01/19,Higher Crime,LEGAL AID FUND,MARK A VAN DER ZWART,1618422:151255921,"34,692.22",Legal Aid Higher Crime
MOJ,LAA,02/01/19,Lower Crime,LEGAL AID FUND,MARTIN MURRAY & ASSOCIATES,1619471:151260705,"53,685.00",Legal Aid Lower Crime
MOJ,LAA,02/01/19,Lower Crime,LEGAL AID FUND,MARTIN MURRAY & ASSOCIATES,1619470:151261019,"34,152.00",Legal Aid Lower Crime
MOJ,LAA,02/01/19,Lower Crime,LEGAL AID FUND,MARTYN HEWETT,1619434:151260395,"33,500.00",Legal Aid Lower Crime
MOJ,LAA,02/01/19,Lower Crime,LEGAL AID FUND,MCGRATH & CO SOLICITORS,1618809:151260457,"25,000.00",Legal Aid Lower Crime
MOJ,LAA,02/01/19,Lower Crime,LEGAL AID FUND,MCLARTYS SOLICITORS,1620646:151260240,"25,000.00",Legal Aid Lower Crime
MOJ,LAA,02/01/19,Lower Crime,LEGAL AID FUND,MCSORLEY LEWIS LAW LTD,1619337:151260554,"30,000.00",Legal Aid Lower Crime
MOJ,LAA,02/01/19,Legal Help,LEGAL AID FUND,MENTAL HEALTH LEGAL REPRESENTATION LTD,1618785:151259656,"34,804.00",Legal Aid Legal Help
MOJ,LAA,02/01/19,Lower Crime,LEGAL AID FUND,METCALFE COPEMAN & PETTEFAR,1619042:151260204,"38,700.00",Legal Aid Lower Crime
MOJ,LAA,02/01/19,Lower Crime,LEGAL AID FUND,MICHAEL PURDON,1621116:151260834,"49,303.00",Legal Aid Lower Crime
MOJ,LAA,02/01/19,Higher Crime,LEGAL AID FUND,MICHAEL T CRANMER-BROWN,1618424:151255708,"31,710.96",Legal Aid Higher Crime
MOJ,LAA,02/01/19,Civil Representation,LEGAL AID FUND,MOLESWORTHS BRIGHT CLEGG,1619260:3000003447900029RC,"(25,609.50)",Legal Aid Civil Representation
MOJ,LAA,02/01/19,Legal Help,LEGAL AID FUND,MTG SOLICITORS,1620688:151259138,"25,000.00",Legal Aid Legal Help
MOJ,LAA,02/01/19,Legal Help,LEGAL AID FUND,NATIONAL COUNCIL FOR CIVIL LIBERTIES,1618871:151259544,"95,722.62",Legal Aid Legal Help
MOJ,LAA,02/01/19,Civil Representation,LEGAL AID FUND,NATIONAL FAMILY MEDIATION,1620443:151261790,"25,617.00",Legal Aid Civil Representation
MOJ,LAA,02/01/19,Lower Crime,LEGAL AID FUND,NEEDHAM POULIER LTD,1618901:151260783,"33,308.00",Legal Aid Lower Crime
MOJ,LAA,02/01/19,Higher Crime,LEGAL AID FUND,NELSON GUEST & PARTNERS,1619431:151268192,"127,029.30",Legal Aid Higher Crime
MOJ,LAA,02/01/19,Lower Crime,LEGAL AID FUND,NELSON GUEST & PARTNERS,1619431:151260710,"25,807.00",Legal Aid Lower Crime
MOJ,LAA,02/01/19,Lower Crime,LEGAL AID FUND,NOBLE SOLICITORS,1618637:151261168,"42,791.00",Legal Aid Lower Crime
MOJ,LAA,02/01/19,Lower Crime,LEGAL AID FUND,NOBLE SOLICITORS,1618994:151260632,"27,152.00",Legal Aid Lower Crime
MOJ,LAA,02/01/19,Legal Help,LEGAL AID FUND,NOBLE SOLICITORS,1618994:151259723,"26,100.00",Legal Aid Legal Help
MOJ,LAA,02/01/19,Lower Crime,LEGAL AID FUND,OBW PERERA LTD,1618800:151260202,"29,000.00",Legal Aid Lower Crime
MOJ,LAA,02/01/19,Legal Help,LEGAL AID FUND,O'DONNELLS SOLICITORS,1620820:151259579,"25,503.00",Legal Aid Legal Help
MOJ,LAA,02/01/19,Lower Crime,LEGAL AID FUND,OLD BAILEY SOLICITORS LTD,1618587:151261205,"41,385.00",Legal Aid Lower Crime
MOJ,LAA,02/01/19,Lower Crime,LEGAL AID FUND,ONE LEGAL SERVICES LTD,1619718:151261534,"35,264.00",Legal Aid Lower Crime
MOJ,LAA,02/01/19,Lower Crime,LEGAL AID FUND,ONE LEGAL SERVICES LTD,1619719:151261533,"28,042.00",Legal Aid Lower Crime
MOJ,LAA,02/01/19,Lower Crime,LEGAL AID FUND,O'NEILL WRIGHT & NASH,1618591:151261154,"38,961.00",Legal Aid Lower Crime
MOJ,LAA,02/01/19,Lower Crime,LEGAL AID FUND,OSLERS SOLICITORS,1620516:151260657,"32,053.00",Legal Aid Lower Crime
MOJ,LAA,02/01/19,Lower Crime,LEGAL AID FUND,OWEN NASH & CO,1621188:151260467,"25,000.00",Legal Aid Lower Crime
MOJ,LAA,02/01/19,Legal Help,LEGAL AID FUND,OXFORD LAW GROUP,1620696:151259221,"27,700.00",Legal Aid Legal Help
MOJ,LAA,02/01/19,Legal Help,LEGAL AID FUND,PARAGON LAW LTD,1618784:151259204,"50,000.00",Legal Aid Legal Help
MOJ,LAA,02/01/19,Legal Help,LEGAL AID FUND,PARKER RHODES HICKMOTTS,1620972:151259437,"32,925.00",Legal Aid Legal Help
MOJ,LAA,02/01/19,Legal Help,LEGAL AID FUND,PARKER RHODES HICKMOTTS,1618047:151259980,"28,713.00",Legal Aid Legal Help
MOJ,LAA,02/01/19,Lower Crime,LEGAL AID FUND,PENFOLD & MCPHERSON LTD,1619276:151261020,"25,218.00",Legal Aid Lower Crime
MOJ,LAA,02/01/19,Lower Crime,LEGAL AID FUND,PETER CLARKE SOLICITORS LLP,1619262:151261007,"29,336.00",Legal Aid Lower Crime
MOJ,LAA,02/01/19,Legal Help,LEGAL AID FUND,PETER EDWARDS LAW LTD,1620845:151259126,"41,200.00",Legal Aid Legal Help
MOJ,LAA,02/01/19,Lower Crime,LEGAL AID FUND,PETHERBRIDGE BASSRA SOLICITORS LTD,1620724:151260875,"30,667.00",Legal Aid Lower Crime
MOJ,LAA,02/01/19,Legal Help,LEGAL AID FUND,PICKUP & SCOTT SOLICITORS,1619367:151259706,"26,620.00",Legal Aid Legal Help
MOJ,LAA,02/01/19,Higher Crime,LEGAL AID FUND,PIETER D R BRIEGEL,1619959:151283892,"52,238.76",Legal Aid Higher Crime
MOJ,LAA,02/01/19,Higher Crime,LEGAL AID FUND,PILLAI & JONES LTD,1619449:151254831,"73,726.79",Legal Aid Higher Crime
MOJ,LAA,02/01/19,Lower Crime,LEGAL AID FUND,POOLE ALCOCK LLP,1620883:151260924,"25,073.00",Legal Aid Lower Crime
MOJ,LAA,02/01/19,Lower Crime,LEGAL AID FUND,POWELL SPENCER AND PARTNERS,1621198:151260217,"36,900.00",Legal Aid Lower Crime
MOJ,LAA,02/01/19,Lower Crime,LEGAL AID FUND,PURCELL PARKER LTD,1618997:151260459,"106,700.00",Legal Aid Lower Crime
MOJ,LAA,02/01/19,Lower Crime,LEGAL AID FUND,PURE LAW CRIMINAL DEFENCE,1619702:151261437,"34,280.00",Legal Aid Lower Crime
MOJ,LAA,02/01/19,Higher Crime,LEGAL AID FUND,RAHMAN RAVELLI SOLICITORS LTD,1619679:151283706,"105,857.75",Legal Aid Higher Crime
MOJ,LAA,02/01/19,Higher Crime,LEGAL AID FUND,REDHEAD & JONES,1618592:151267562,"95,707.01",Legal Aid Higher Crime
MOJ,LAA,02/01/19,Lower Crime,LEGAL AID FUND,REECE THOMAS WATSON LTD,1619740:151261381,"39,211.00",Legal Aid Lower Crime
MOJ,LAA,02/01/19,Lower Crime,LEGAL AID FUND,REEDS SOLICITORS LTD,1617743:151261603,"55,065.00",Legal Aid Lower Crime
MOJ,LAA,02/01/19,Lower Crime,LEGAL AID FUND,REEDS SOLICITORS LTD,1620878:151261025,"53,504.00",Legal Aid Lower Crime
MOJ,LAA,02/01/19,Lower Crime,LEGAL AID FUND,REEDS SOLICITORS LTD,1617739:151261607,"38,995.00",Legal Aid Lower Crime
MOJ,LAA,02/01/19,Lower Crime,LEGAL AID FUND,REEVES  & CO SOLICITORS,1618736:151260985,"26,236.00",Legal Aid Lower Crime
MOJ,LAA,02/01/19,Lower Crime,LEGAL AID FUND,RENSHAW DERRICK & CO,1621302:151261033,"83,194.00",Legal Aid Lower Crime
MOJ,LAA,02/01/19,Higher Crime,LEGAL AID FUND,RENSHAW DERRICK & CO,1621302:151255398,"53,687.96",Legal Aid Higher Crime
MOJ,LAA,02/01/19,Higher Crime,LEGAL AID FUND,RHIANNON S CRIMMINS,1620299:151255904,"25,140.00",Legal Aid Higher Crime
MOJ,LAA,02/01/19,Lower Crime,LEGAL AID FUND,RICHARD HASWELL SOLICITORS LTD,1621137:151260832,"25,521.00",Legal Aid Lower Crime
MOJ,LAA,02/01/19,Higher Crime,LEGAL AID FUND,RICHARDSON SOLICITORS,1618957:151255506,"33,018.98",Legal Aid Higher Crime
MOJ,LAA,02/01/19,Higher Crime,LEGAL AID FUND,RILEY HAYES & CO,1618998:151283712,"76,984.21",Legal Aid Higher Crime
MOJ,LAA,02/01/19,Lower Crime,LEGAL AID FUND,RILEY HAYES & CO,1618998:151260477,"33,900.00",Legal Aid Lower Crime
MOJ,LAA,02/01/19,Lower Crime,LEGAL AID FUND,RMNJ SOLICITORS ***,1620869:151260794,"64,038.00",Legal Aid Lower Crime
MOJ,LAA,02/01/19,Legal Help,LEGAL AID FUND,RMNJ SOLICITORS ***,1620869:151259482,"30,870.00",Legal Aid Legal Help
MOJ,LAA,02/01/19,Lower Crime,LEGAL AID FUND,ROBERT LIZAR,1619294:151260970,"35,904.00",Legal Aid Lower Crime
MOJ,LAA,02/01/19,Lower Crime,LEGAL AID FUND,ROBERTSON'S SOLICITORS,1619070:151260324,"36,300.00",Legal Aid Lower Crime
MOJ,LAA,02/01/19,Higher Crime,LEGAL AID FUND,ROBIN M PATTON,1620288:151255669,"31,944.19",Legal Aid Higher Crime
MOJ,LAA,02/01/19,Legal Help,LEGAL AID FUND,ROEBUCKS SOLICITORS,1621071:151259589,"33,090.00",Legal Aid Legal Help
MOJ,LAA,02/01/19,Lower Crime,LEGAL AID FUND,ROWE SPARKES SOLICITORS LTD,1620617:151260410,"41,600.00",Legal Aid Lower Crime
MOJ,LAA,02/01/19,Lower Crime,LEGAL AID FUND,S A LAW CHAMBERS SOLICITORS,1618863:151260211,"32,500.00",Legal Aid Lower Crime
MOJ,LAA,02/01/19,Higher Crime,LEGAL AID FUND,SALHAN & CO LTD,1618931:151284121,"59,674.88",Legal Aid Higher Crime
MOJ,LAA,02/01/19,Lower Crime,LEGAL AID FUND,SANSBURY DOUGLAS,1620475:151260484,"55,000.00",Legal Aid Lower Crime
MOJ,LAA,02/01/19,Higher Crime,LEGAL AID FUND,SARGINSONS LAW LLP,1621169:151268022,"27,519.18",Legal Aid Higher Crime
MOJ,LAA,02/01/19,Higher Crime,LEGAL AID FUND,SATYA CHOTALIA,1618291:151267825,"33,651.60",Legal Aid Higher Crime
MOJ,LAA,02/01/19,Lower Crime,LEGAL AID FUND,SAUNDERS GOODIN RIDDLESTON SOLICITORS,1621111:151260198,"27,600.00",Legal Aid Lower Crime
MOJ,LAA,02/01/19,Lower Crime,LEGAL AID FUND,SAUNDERS SOLICITORS LTD,1621289:151260254,"31,000.00",Legal Aid Lower Crime
MOJ,LAA,02/01/19,Higher Crime,LEGAL AID FUND,SAUNDERS SOLICITORS LTD,1621289:151255349,"29,884.85",Legal Aid Higher Crime
MOJ,LAA,02/01/19,Lower Crime,LEGAL AID FUND,SHAHID ALI & CO SOLICITORS,1619791:151261424,"29,755.00",Legal Aid Lower Crime
MOJ,LAA,02/01/19,Lower Crime,LEGAL AID FUND,SHELLEY & CO,1618993:151260670,"28,937.00",Legal Aid Lower Crime
MOJ,LAA,02/01/19,Lower Crime,LEGAL AID FUND,SJ LAW,1617753:151261595,"25,946.00",Legal Aid Lower Crime
MOJ,LAA,02/01/19,Lower Crime,LEGAL AID FUND,SMITH PARTNERSHIP,1620742:151260179,"38,500.00",Legal Aid Lower Crime
MOJ,LAA,02/01/19,Lower Crime,LEGAL AID FUND,SMITH PARTNERSHIP,1620740:151260180,"27,600.00",Legal Aid Lower Crime
MOJ,LAA,02/01/19,Lower Crime,LEGAL AID FUND,SMITH PARTNERSHIP,1620743:151260463,"25,600.00",Legal Aid Lower Crime
MOJ,LAA,02/01/19,Higher Crime,LEGAL AID FUND,SONAL AHYA,1618426:151254908,"26,397.91",Legal Aid Higher Crime
MOJ,LAA,02/01/19,Lower Crime,LEGAL AID FUND,SONN MACMILLAN WALKER LTD,1619428:151260208,"51,500.00",Legal Aid Lower Crime
MOJ,LAA,02/01/19,Higher Crime,LEGAL AID FUND,SONN MACMILLAN WALKER LTD,1619428:151268420,"26,698.09",Legal Aid Higher Crime
MOJ,LAA,02/01/19,Legal Help,LEGAL AID FUND,SOUTHERNS SOLICITORS LTD,1621128:151259590,"33,757.00",Legal Aid Legal Help
MOJ,LAA,02/01/19,Lower Crime,LEGAL AID FUND,STEPHEN RIMMER LLP,1620927:151260393,"26,000.00",Legal Aid Lower Crime
MOJ,LAA,02/01/19,Lower Crime,LEGAL AID FUND,STEPHENSONS SOLICITORS LLP,1619298:151262909,"45,614.00",Legal Aid Lower Crime
MOJ,LAA,02/01/19,Legal Help,LEGAL AID FUND,STERNBERG REED SOLICITORS,1620491:151259719,"28,204.00",Legal Aid Legal Help
MOJ,LAA,02/01/19,Lower Crime,LEGAL AID FUND,STEVEN YOUNG & CO INC ROWBIS,1620711:151261062,"26,546.00",Legal Aid Lower Crime
MOJ,LAA,02/01/19,Lower Crime,LEGAL AID FUND,STEVENS SOLICITORS,1621102:151260449,"51,100.00",Legal Aid Lower Crime
MOJ,LAA,02/01/19,Lower Crime,LEGAL AID FUND,STEVENS SOLICITORS,1621101:151260450,"50,800.00",Legal Aid Lower Crime
MOJ,LAA,02/01/19,Lower Crime,LEGAL AID FUND,STUART MILLER SOLICITORS LTD,1621109:151260754,"74,877.00",Legal Aid Lower Crime
MOJ,LAA,02/01/19,Legal Help,LEGAL AID FUND,SUTOVIC & HARTIGAN,1621297:151259146,"38,000.00",Legal Aid Legal Help
MOJ,LAA,02/01/19,Lower Crime,LEGAL AID FUND,SWAIN & CO SOLICITORS,1620712:151260408,"110,000.00",Legal Aid Lower Crime
MOJ,LAA,02/01/19,Legal Help,LEGAL AID FUND,SWAIN & CO SOLICITORS,1620713:151259212,"39,000.00",Legal Aid Legal Help
MOJ,LAA,02/01/19,Lower Crime,LEGAL AID FUND,T S LAW LTD,1618950:151260246,"25,000.00",Legal Aid Lower Crime
MOJ,LAA,02/01/19,Lower Crime,LEGAL AID FUND,T V EDWARDS LLP,1621045:151260244,"68,000.00",Legal Aid Lower Crime
MOJ,LAA,02/01/19,Legal Help,LEGAL AID FUND,T V EDWARDS LLP,1621045:151259131,"64,900.00",Legal Aid Legal Help
MOJ,LAA,02/01/19,Lower Crime,LEGAL AID FUND,TAIT FARRIER GRAHAM,1619174:151260304,"32,700.00",Legal Aid Lower Crime
MOJ,LAA,02/01/19,Higher Crime,LEGAL AID FUND,TALBOTS LAW LTD,1620478:151267926,"29,884.85",Legal Aid Higher Crime
MOJ,LAA,02/01/19,Lower Crime,LEGAL AID FUND,TANG BENTLEY & JACKSON LIMITED,1617827:151261454,"26,586.00",Legal Aid Lower Crime
MOJ,LAA,02/01/19,Lower Crime,LEGAL AID FUND,TAYLOR HALDANE BARLEX LLP,1619775:151261413,"39,211.00",Legal Aid Lower Crime
MOJ,LAA,02/01/19,Lower Crime,LEGAL AID FUND,TAYLOR STREET SOLICITORS LLP,1619231:151260398,"29,000.00",Legal Aid Lower Crime
MOJ,LAA,02/01/19,Lower Crime,LEGAL AID FUND,TEESSIDE LAW LTD,1619903:151261324,"34,289.00",Legal Aid Lower Crime
MOJ,LAA,02/01/19,Legal Help,LEGAL AID FUND,THALIWAL & VEJA SOLICITORS,1620754:151259654,"35,973.00",Legal Aid Legal Help
MOJ,LAA,02/01/19,Higher Crime,LEGAL AID FUND,THE CENTRAL LAW PRACTICE,1620772:151284364,"89,975.11",Legal Aid Higher Crime
MOJ,LAA,02/01/19,Lower Crime,LEGAL AID FUND,THE JOHNSON PARTNERSHIP,1619128:151260171,"190,000.00",Legal Aid Lower Crime
MOJ,LAA,02/01/19,Lower Crime,LEGAL AID FUND,THE JOHNSON PARTNERSHIP,1619126:151260173,"49,000.00",Legal Aid Lower Crime
MOJ,LAA,02/01/19,Lower Crime,LEGAL AID FUND,THE JOHNSON PARTNERSHIP,1619127:151260172,"37,500.00",Legal Aid Lower Crime
MOJ,LAA,02/01/19,Lower Crime,LEGAL AID FUND,THE JOHNSON PARTNERSHIP,1620473:151260486,"33,000.00",Legal Aid Lower Crime
MOJ,LAA,02/01/19,Lower Crime,LEGAL AID FUND,THE JOHNSON PARTNERSHIP,1619905:151260498,"29,000.00",Legal Aid Lower Crime
MOJ,LAA,02/01/19,Civil Representation,LEGAL AID FUND,THE WATSON RAMSBOTTOM LIMITED,1621210:3000002515600032,"42,392.95",Legal Aid Civil Representation
MOJ,LAA,02/01/19,Civil Representation,LEGAL AID FUND,THE WATSON RAMSBOTTOM LIMITED,1621210:3000002515600024RC,"(37,928.18)",Legal Aid Civil Representation
MOJ,LAA,02/01/19,Lower Crime,LEGAL AID FUND,THOMAS BOYD WHYTE,1621274:151260713,"36,350.00",Legal Aid Lower Crime
MOJ,LAA,02/01/19,Legal Help,LEGAL AID FUND,THOMPSON & CO SOLICITORS LTD,1621090:151259135,"42,200.00",Legal Aid Legal Help
MOJ,LAA,02/01/19,Lower Crime,LEGAL AID FUND,TILLY BAILEY & IRVINE LLP,1619214:151260300,"28,100.00",Legal Aid Lower Crime
MOJ,LAA,02/01/19,Civil Representation,LEGAL AID FUND,TIMOTHY W BERGIN,1620104:3000003449830012,"25,377.80",Legal Aid Civil Representation
MOJ,LAA,02/01/19,Lower Crime,LEGAL AID FUND,TRINITY ADVOCATES,1620487:151260480,"25,000.00",Legal Aid Lower Crime
MOJ,LAA,02/01/19,Lower Crime,LEGAL AID FUND,TUCKERS SOLICITORS LLP,1621124:151260378,"130,300.00",Legal Aid Lower Crime
MOJ,LAA,02/01/19,Lower Crime,LEGAL AID FUND,TUCKERS SOLICITORS LLP,1621125:151260255,"90,000.00",Legal Aid Lower Crime
MOJ,LAA,02/01/19,Lower Crime,LEGAL AID FUND,TUCKERS SOLICITORS LLP,1620517:151260259,"50,500.00",Legal Aid Lower Crime
MOJ,LAA,02/01/19,Lower Crime,LEGAL AID FUND,TUCKERS SOLICITORS LLP,1619891:151260499,"46,300.00",Legal Aid Lower Crime
MOJ,LAA,02/01/19,Lower Crime,LEGAL AID FUND,TUCKERS SOLICITORS LLP,1621126:151260460,"30,000.00",Legal Aid Lower Crime
MOJ,LAA,02/01/19,Lower Crime,LEGAL AID FUND,TUCKERS SOLICITORS LLP,1617844:151261417,"27,658.00",Legal Aid Lower Crime
MOJ,LAA,02/01/19,Lower Crime,LEGAL AID FUND,USMANI KING LTD,1618867:151260633,"43,112.00",Legal Aid Lower Crime
MOJ,LAA,02/01/19,Lower Crime,LEGAL AID FUND,VCW LAW,1620999:151260283,"29,100.00",Legal Aid Lower Crime
MOJ,LAA,02/01/19,Lower Crime,LEGAL AID FUND,VHS FLETCHERS,1619115:151260174,"43,200.00",Legal Aid Lower Crime
MOJ,LAA,02/01/19,Lower Crime,LEGAL AID FUND,VHS FLETCHERS,1617991:151260504,"29,100.00",Legal Aid Lower Crime
MOJ,LAA,02/01/19,Legal Help,LEGAL AID FUND,VIRGO SOLICITORS LTD,1618067:151259994,"32,908.00",Legal Aid Legal Help
MOJ,LAA,02/01/19,Lower Crime,LEGAL AID FUND,VYMAN SOLICITORS LTD,1620684:151260977,"30,761.00",Legal Aid Lower Crime
MOJ,LAA,02/01/19,Lower Crime,LEGAL AID FUND,WAINWRIGHT & CUMMINS LLP,1618777:151260265,"33,000.00",Legal Aid Lower Crime
MOJ,LAA,02/01/19,Lower Crime,LEGAL AID FUND,WANNOPS LLP,1618636:151261287,"42,567.00",Legal Aid Lower Crime
MOJ,LAA,02/01/19,Lower Crime,LEGAL AID FUND,WATERS MOORE AT THE LAW CHAMBER,1618703:151261034,"39,143.00",Legal Aid Lower Crime
MOJ,LAA,02/01/19,Lower Crime,LEGAL AID FUND,WATSON WOODHOUSE SOLICITORS LLP,1621120:151260284,"50,700.00",Legal Aid Lower Crime
MOJ,LAA,02/01/19,Lower Crime,LEGAL AID FUND,WELLS BURCOMBE LLP,1620522:151260628,"89,597.00",Legal Aid Lower Crime
MOJ,LAA,02/01/19,Lower Crime,LEGAL AID FUND,WELLS BURCOMBE LLP,1620434:151261218,"54,038.00",Legal Aid Lower Crime
MOJ,LAA,02/01/19,Lower Crime,LEGAL AID FUND,WESSEX SOLICITORS CHAMBERS,1620489:151260481,"59,000.00",Legal Aid Lower Crime
MOJ,LAA,02/01/19,Lower Crime,LEGAL AID FUND,WHELDON LAW,1619219:151260188,"27,000.00",Legal Aid Lower Crime
MOJ,LAA,02/01/19,Lower Crime,LEGAL AID FUND,WILLIAMSONS SOLICITORS LTD,1619161:151260337,"41,600.00",Legal Aid Lower Crime
MOJ,LAA,02/01/19,Lower Crime,LEGAL AID FUND,WILSON DEVONALD GRIFFITHS JOHN,1620920:151260151,"45,000.00",Legal Aid Lower Crime
MOJ,LAA,02/01/19,Legal Help,LEGAL AID FUND,WILSON SOLICITORS LLP,1618989:151252702,"75,000.00",Legal Aid Legal Help
MOJ,LAA,02/01/19,Legal Help,LEGAL AID FUND,WILSON SOLICITORS LLP,1619863:151259996,"48,293.00",Legal Aid Legal Help
MOJ,LAA,02/01/19,Legal Help,LEGAL AID FUND,WILSON SOLICITORS LLP,1618989:151252703,"44,954.00",Legal Aid Legal Help
MOJ,LAA,02/01/19,Legal Help,LEGAL AID FUND,WOLTON & CO,1618819:151259288,"43,424.00",Legal Aid Legal Help
MOJ,LAA,02/01/19,Lower Crime,LEGAL AID FUND,YARWOOD & STUBLEY,1621118:151260285,"32,200.00",Legal Aid Lower Crime
MOJ,LAA,02/01/19,Higher Crime,LEGAL AID FUND,YOUNG SWISTAK,1618984:151284012,"47,517.76",Legal Aid Higher Crime
MOJ,LAA,02/01/19,Higher Crime,LEGAL AID FUND,ZMS LEGAL LTD TA ZMS SOLICITORS,1618700:151268005,"89,975.11",Legal Aid Higher Crime
MOJ,LAA,07/01/19,Civil Representation,LEGAL AID FUND,ABIGAIL BOND,1621451:3000001364160015RC,"(25,660.80)",Legal Aid Civil Representation
MOJ,LAA,07/01/19,Civil Representation,LEGAL AID FUND,HANNAH M MARKHAM QC,1621453:3000001681400016RC,"(39,916.80)",Legal Aid Civil Representation
MOJ,LAA,07/01/19,Civil Representation,LEGAL AID FUND,KATE TOMPKINS,1621457:3000001681400018RC,"(25,660.80)",Legal Aid Civil Representation
MOJ,LAA,08/01/19,EXP - PURCHASE OF GOODS/SERVICES - SUPPORT - APPLICATION MAINTENANCE AND SUPPORT,Business Systems Mgmt,ATOS IT SERVICES UK LTD,5584280194,"70,553.15",IT Costs
MOJ,LAA,08/01/19,Higher Crime,LEGAL AID FUND,JAMES E NEWTON-PRICE,1621473:150563765,"(59,403.00)",Legal Aid Higher Crime
MOJ,LAA,08/01/19,Civil Representation,LEGAL AID FUND,MANJEET K KALER,1621471:150722617,"(27,135.00)",Legal Aid Civil Representation
MOJ,LAA,08/01/19,Civil Representation,LEGAL AID FUND,ROGER J MCCARTHY QC,1621483:150954734,"(25,609.24)",Legal Aid Civil Representation
MOJ,LAA,09/01/19,EXP - PURCHASE OF GOODS/SERVICES - OTHER PROFESSIONAL SERVICES - LEGAL SERVICES - THIRD PARTY LEGAL COSTS,National Courts Core Team NCT,MARSTON HOLDINGS LTD,40113,"65,887.67",Legal Costs
MOJ,LAA,09/01/19,Higher Crime,LEGAL AID FUND,ABBAS LAKHA,1622646:151304926,"32,293.08",Legal Aid Higher Crime
MOJ,LAA,09/01/19,Higher Crime,LEGAL AID FUND,ABRAHAM SOLICITORS LTD,1622671:151304762,"33,851.38",Legal Aid Higher Crime
MOJ,LAA,09/01/19,Civil Representation,LEGAL AID FUND,ALLETSONS LTD,1624678:3000003445160008,"34,200.00",Legal Aid Civil Representation
MOJ,LAA,09/01/19,Civil Representation,LEGAL AID FUND,ALSTERS KELLEY SOLICITORS LTD,1624535:3000003292670032,"25,296.73",Legal Aid Civil Representation
MOJ,LAA,09/01/19,Higher Crime,LEGAL AID FUND,ALTAF SOLICITORS LTD,1622737:151313650,"32,008.69",Legal Aid Higher Crime
MOJ,LAA,09/01/19,Higher Crime,LEGAL AID FUND,AM INTERNATIONAL SOLICITORS LTD,1623409:151305028,"89,975.11",Legal Aid Higher Crime
MOJ,LAA,09/01/19,Higher Crime,LEGAL AID FUND,ANDREW T J COPELAND,1622448:151305608,"31,030.56",Legal Aid Higher Crime
MOJ,LAA,09/01/19,Higher Crime,LEGAL AID FUND,ANTHONY D WILSON LTD,1622693:151313156,"44,644.57",Legal Aid Higher Crime
MOJ,LAA,09/01/19,Civil Representation,LEGAL AID FUND,ANTHONY KING & COMPANY,1624772:3000002708100011,"36,792.22",Legal Aid Civil Representation
MOJ,LAA,09/01/19,Civil Representation,LEGAL AID FUND,BARBARA CARTER,1623079:151340073,"26,400.88",Legal Aid Civil Representation
MOJ,LAA,09/01/19,Civil Representation,LEGAL AID FUND,BEST SOLICITORS,1622933:3000002369430032,"30,019.61",Legal Aid Civil Representation
MOJ,LAA,09/01/19,Higher Crime,LEGAL AID FUND,BIRDS SOLICITORS LTD,1624546:151313662,"63,804.94",Legal Aid Higher Crime
MOJ,LAA,09/01/19,Civil Representation,LEGAL AID FUND,BIRMINGHAM LEGAL LTD,1622717:3000002471540005,"29,032.65",Legal Aid Civil Representation
MOJ,LAA,09/01/19,Higher Crime,LEGAL AID FUND,BIRNBERG PEIRCE LTD,1624629:151313686,"107,970.13",Legal Aid Higher Crime
MOJ,LAA,09/01/19,Civil Representation,LEGAL AID FUND,BLACKWHITE SOLICITORS LTD,1622575:3000003342930003,"26,535.60",Legal Aid Civil Representation
MOJ,LAA,09/01/19,Civil Representation,LEGAL AID FUND,BRENDAN FLEMING SOLICITORS,1624887:3000003260090046,"44,833.50",Legal Aid Civil Representation
MOJ,LAA,09/01/19,Higher Crime,LEGAL AID FUND,BURTON COPELAND LLP,1622918:151314105,"46,404.34",Legal Aid Higher Crime
MOJ,LAA,09/01/19,Civil Representation,LEGAL AID FUND,CAMPBELL HOOPER & CO LLP,1623129:3000001012190018,"26,287.02",Legal Aid Civil Representation
MOJ,LAA,09/01/19,Higher Crime,LEGAL AID FUND,CARSON KAYE SOLICITORS,1623479:151333380,"89,975.11",Legal Aid Higher Crime
MOJ,LAA,09/01/19,Higher Crime,LEGAL AID FUND,CARTWRIGHT KING LTD,1622813:151313972,"77,273.47",Legal Aid Higher Crime
MOJ,LAA,09/01/19,Civil Representation,LEGAL AID FUND,CHARLES S HALE,1624105:3000001937550029,"25,515.00",Legal Aid Civil Representation
MOJ,LAA,09/01/19,Higher Crime,LEGAL AID FUND,CHIVERS SOLICITORS,1624421:151305587,"67,267.44",Legal Aid Higher Crime
MOJ,LAA,09/01/19,Higher Crime,LEGAL AID FUND,CITY LAW CHAMBERS LTD,1624389:151312789,"71,829.82",Legal Aid Higher Crime
MOJ,LAA,09/01/19,Higher Crime,LEGAL AID FUND,CITY LAW CHAMBERS LTD,1624389:151314309,"27,518.70",Legal Aid Higher Crime
MOJ,LAA,09/01/19,Civil Representation,LEGAL AID FUND,CORINNE ITEN,1623971:3000002315840009,"31,006.80",Legal Aid Civil Representation
MOJ,LAA,09/01/19,Higher Crime,LEGAL AID FUND,COUSINS TYRER SOLICITORS,1623026:151313463,"41,139.28",Legal Aid Higher Crime
MOJ,LAA,09/01/19,Higher Crime,LEGAL AID FUND,DANIELLE BARDEN,1621722:151312871,"25,984.34",Legal Aid Higher Crime
MOJ,LAA,09/01/19,Higher Crime,LEGAL AID FUND,DAVID  MILLER,1621875:151334735,"32,256.35",Legal Aid Higher Crime
MOJ,LAA,09/01/19,Civil Representation,LEGAL AID FUND,DAVINA KRISHNAN,1622145:3000002587560012,"26,856.36",Legal Aid Civil Representation
MOJ,LAA,09/01/19,Higher Crime,LEGAL AID FUND,DPP LAW LTD,1622753:151313962,"107,302.80",Legal Aid Higher Crime
MOJ,LAA,09/01/19,Civil Representation,LEGAL AID FUND,DUNCAN LEWIS SOLICITORS  LTD,1622587:3000001479500020,"30,859.40",Legal Aid Civil Representation
MOJ,LAA,09/01/19,Civil Representation,LEGAL AID FUND,DUNCAN LEWIS SOLICITORS  LTD,1624616:3000002421190013,"26,624.58",Legal Aid Civil Representation
MOJ,LAA,09/01/19,Higher Crime,LEGAL AID FUND,EDWARD J A HENRY,1623693:151334866,"39,240.00",Legal Aid Higher Crime
MOJ,LAA,09/01/19,Higher Crime,LEGAL AID FUND,EDWARDS DUTHIE,1623182:151305012,"89,975.11",Legal Aid Higher Crime
MOJ,LAA,09/01/19,Higher Crime,LEGAL AID FUND,EDWARDS DUTHIE,1623182:151305016,"67,726.70",Legal Aid Higher Crime
MOJ,LAA,09/01/19,Higher Crime,LEGAL AID FUND,EDWARDS DUTHIE,1623182:151305026,"(89,975.11)",Legal Aid Higher Crime
MOJ,LAA,09/01/19,Higher Crime,LEGAL AID FUND,ELLIOTT STERN SOLICITORS,1624636:151296969,"44,756.16",Legal Aid Higher Crime
MOJ,LAA,09/01/19,Civil Representation,LEGAL AID FUND,FAMILY LAW LTD,1624527:3000002520940015,"29,966.67",Legal Aid Civil Representation
MOJ,LAA,09/01/19,Higher Crime,LEGAL AID FUND,FPH LAW SOLICITORS,1623048:151305497,"43,833.53",Legal Aid Higher Crime
MOJ,LAA,09/01/19,Higher Crime,LEGAL AID FUND,FRAZER BRADSHAW,1622707:151313974,"105,857.75",Legal Aid Higher Crime
MOJ,LAA,09/01/19,Civil Representation,LEGAL AID FUND,FREEMANS SOLICITORS,1623135:3000002808460010,"53,265.60",Legal Aid Civil Representation
MOJ,LAA,09/01/19,Civil Representation,LEGAL AID FUND,GARY JACOBS & CO LTD,1622844:3000003025730015,"25,018.39",Legal Aid Civil Representation
MOJ,LAA,09/01/19,Higher Crime,LEGAL AID FUND,GOLDMAN BAILEY SOLICITORS,1622733:151314124,"89,975.11",Legal Aid Higher Crime
MOJ,LAA,09/01/19,Higher Crime,LEGAL AID FUND,HAMPTON SOLICITORS,1623489:151304975,"31,947.96",Legal Aid Higher Crime
MOJ,LAA,09/01/19,Lower Crime,LEGAL AID FUND,HDH LAW,1624435:151308592,"25,000.00",Legal Aid Lower Crime
MOJ,LAA,09/01/19,Higher Crime,LEGAL AID FUND,HODGE JONES & ALLEN LLP-ADVOCATE,1623874:151297417,"26,016.89",Legal Aid Higher Crime
MOJ,LAA,09/01/19,Higher Crime,LEGAL AID FUND,HODGSON COULTHARD & CO,1624808:151313802,"38,624.83",Legal Aid Higher Crime
MOJ,LAA,09/01/19,Higher Crime,LEGAL AID FUND,HULLOCK & CO,1622710:151312793,"99,299.36",Legal Aid Higher Crime
MOJ,LAA,09/01/19,Higher Crime,LEGAL AID FUND,IAN F HENDERSON,1622203:151304848,"59,940.00",Legal Aid Higher Crime
MOJ,LAA,09/01/19,Higher Crime,LEGAL AID FUND,IMRAN KHAN & PARTNERS,1624990:151313706,"89,975.11",Legal Aid Higher Crime
MOJ,LAA,09/01/19,Higher Crime,LEGAL AID FUND,ISABELLA L FORSHALL QC,1623909:151334859,"45,508.37",Legal Aid Higher Crime
MOJ,LAA,09/01/19,Higher Crime,LEGAL AID FUND,J D SPICER ZEB,1624933:151297398,"79,048.40",Legal Aid Higher Crime
MOJ,LAA,09/01/19,Higher Crime,LEGAL AID FUND,JAMES C DAWES,1622515:151334004,"41,107.80",Legal Aid Higher Crime
MOJ,LAA,09/01/19,Civil Representation,LEGAL AID FUND,JANE E CROWLEY QC,1624094:3000002373890021,"74,844.00",Legal Aid Civil Representation
MOJ,LAA,09/01/19,Civil Representation,LEGAL AID FUND,JANE PAGE,1624314:3000001875980011,"26,988.47",Legal Aid Civil Representation
MOJ,LAA,09/01/19,Civil Representation,LEGAL AID FUND,JI SOLICITORS LTD,1622965:150618740,"25,347.47",Legal Aid Civil Representation
MOJ,LAA,09/01/19,Higher Crime,LEGAL AID FUND,JMW SOLICITORS LLP,1623109:151340924,"109,598.97",Legal Aid Higher Crime
MOJ,LAA,09/01/19,Higher Crime,LEGAL AID FUND,JOHN A BUTTERFIELD,1622349:151333949,"61,350.47",Legal Aid Higher Crime
MOJ,LAA,09/01/19,Higher Crime,LEGAL AID FUND,JOHN BLACK SOLICITORS LTD,1623332:151312785,"28,512.60",Legal Aid Higher Crime
MOJ,LAA,09/01/19,Higher Crime,LEGAL AID FUND,K A LEGAL PROVIDERS LTD,1624440:151297593,"56,183.02",Legal Aid Higher Crime
MOJ,LAA,09/01/19,Higher Crime,LEGAL AID FUND,KELLOCKS,1624632:151334929,"89,975.11",Legal Aid Higher Crime
MOJ,LAA,09/01/19,Higher Crime,LEGAL AID FUND,KENNETH M BARROW & CO,1624829:151333683,"127,029.30",Legal Aid Higher Crime
MOJ,LAA,09/01/19,Higher Crime,LEGAL AID FUND,KHATTAK SOLICITORS,1622994:151334237,"107,079.44",Legal Aid Higher Crime
MOJ,LAA,09/01/19,Higher Crime,LEGAL AID FUND,LAWRENCE HAMBLIN SOLICITORS,1623572:151333635,"82,143.24",Legal Aid Higher Crime
MOJ,LAA,09/01/19,Higher Crime,LEGAL AID FUND,LEWIS POWER QC,1623690:151305357,"42,973.32",Legal Aid Higher Crime
MOJ,LAA,09/01/19,Higher Crime,LEGAL AID FUND,LLM SOLICITORS (LONDON) LTD,1624436:151314152,"33,962.11",Legal Aid Higher Crime
MOJ,LAA,09/01/19,Higher Crime,LEGAL AID FUND,MACAULEY SMITH  LTD,1624698:151334016,"43,121.64",Legal Aid Higher Crime
MOJ,LAA,09/01/19,Higher Crime,LEGAL AID FUND,MANN & CO SOLICITORS LTD,1624626:151334249,"76,539.77",Legal Aid Higher Crime
MOJ,LAA,09/01/19,Higher Crime,LEGAL AID FUND,MARTIN RUTHERFORD QC,1622416:151305436,"41,022.84",Legal Aid Higher Crime
MOJ,LAA,09/01/19,Higher Crime,LEGAL AID FUND,MATHEW W DANCE,1622285:151304402,"35,687.40",Legal Aid Higher Crime
MOJ,LAA,09/01/19,Higher Crime,LEGAL AID FUND,MAURICE ANDREWS SOLICITORS,1622866:151333446,"89,975.11",Legal Aid Higher Crime
MOJ,LAA,09/01/19,Higher Crime,LEGAL AID FUND,MCLARTYS SOLICITORS,1622705:151313056,"25,314.74",Legal Aid Higher Crime
MOJ,LAA,09/01/19,Civil Representation,LEGAL AID FUND,MEENA K GILL,1622434:3000001628630013,"38,188.80",Legal Aid Civil Representation
MOJ,LAA,09/01/19,Higher Crime,LEGAL AID FUND,MICHAEL G BROMLEY-MARTIN QC,1624309:151296638,"28,140.00",Legal Aid Higher Crime
MOJ,LAA,09/01/19,Higher Crime,LEGAL AID FUND,MOHAMMED A QAZI,1622269:151297142,"32,400.00",Legal Aid Higher Crime
MOJ,LAA,09/01/19,Higher Crime,LEGAL AID FUND,NADINE RADFORD QC,1623799:151334570,"29,580.00",Legal Aid Higher Crime
MOJ,LAA,09/01/19,Higher Crime,LEGAL AID FUND,NAVJOT SIDHU,1624306:151334143,"49,348.97",Legal Aid Higher Crime
MOJ,LAA,09/01/19,Higher Crime,LEGAL AID FUND,NEEDHAM POULIER LTD,1622750:151312753,"79,106.90",Legal Aid Higher Crime
MOJ,LAA,09/01/19,Civil Representation,LEGAL AID FUND,NKUMBE EKANEY QC,1624103:3000003126370020,"36,936.00",Legal Aid Civil Representation
MOJ,LAA,09/01/19,Higher Crime,LEGAL AID FUND,NOBLE SOLICITORS,1624572:151297595,"29,002.13",Legal Aid Higher Crime
MOJ,LAA,09/01/19,Higher Crime,LEGAL AID FUND,ORACLE SOLICITORS & CONSULTANTS LTD,1622769:151331491,"74,927.16",Legal Aid Higher Crime
MOJ,LAA,09/01/19,Higher Crime,LEGAL AID FUND,PARLBYS SOLCITORS,1622810:151312791,"65,378.40",Legal Aid Higher Crime
MOJ,LAA,09/01/19,Civil Representation,LEGAL AID FUND,PAULINE TROY,1623735:3000003761550019,"30,199.73",Legal Aid Civil Representation
MOJ,LAA,09/01/19,Civil Representation,LEGAL AID FUND,PENELOPE A M HOWE,1623940:3000002315840008,"44,906.40",Legal Aid Civil Representation
MOJ,LAA,09/01/19,Higher Crime,LEGAL AID FUND,REEDS SOLICITORS LTD,1623357:151297660,"41,981.23",Legal Aid Higher Crime
MOJ,LAA,09/01/19,Higher Crime,LEGAL AID FUND,RICH &  CARR,1624727:151334253,"72,332.71",Legal Aid Higher Crime
MOJ,LAA,09/01/19,Higher Crime,LEGAL AID FUND,RICHARD L SMITH QC,1622361:151297042,"39,240.00",Legal Aid Higher Crime
MOJ,LAA,09/01/19,Higher Crime,LEGAL AID FUND,RICHARD M BARRACLOUGH QC,1623816:151334826,"39,848.04",Legal Aid Higher Crime
MOJ,LAA,09/01/19,Higher Crime,LEGAL AID FUND,RILEY HAYES & CO,1624576:151333422,"89,975.11",Legal Aid Higher Crime
MOJ,LAA,09/01/19,Higher Crime,LEGAL AID FUND,SHAHID ALI & CO SOLICITORS,1621643:151333433,"89,975.11",Legal Aid Higher Crime
MOJ,LAA,09/01/19,Civil Representation,LEGAL AID FUND,SHARON LOVE,1621827:3000003906550011,"38,355.12",Legal Aid Civil Representation
MOJ,LAA,09/01/19,Higher Crime,LEGAL AID FUND,SONN MACMILLAN WALKER LTD,1624955:151313533,"29,447.85",Legal Aid Higher Crime
MOJ,LAA,09/01/19,Higher Crime,LEGAL AID FUND,STEPHEN C MEADOWCROFT QC,1623806:151305728,"30,264.38",Legal Aid Higher Crime
MOJ,LAA,09/01/19,Civil Representation,LEGAL AID FUND,STEPHEN D ABBERLEY,1622283:3000004414540002,"40,017.60",Legal Aid Civil Representation
MOJ,LAA,09/01/19,Higher Crime,LEGAL AID FUND,STERNBERG REED SOLICITORS,1624520:151296758,"49,510.58",Legal Aid Higher Crime
MOJ,LAA,09/01/19,Higher Crime,LEGAL AID FUND,STUART MILLER SOLICITORS LTD,1624775:151334598,"89,975.11",Legal Aid Higher Crime
MOJ,LAA,09/01/19,Civil Representation,LEGAL AID FUND,SUSAN A SHACKLEFORD,1624145:3000002744270030,"43,674.60",Legal Aid Civil Representation
MOJ,LAA,09/01/19,Higher Crime,LEGAL AID FUND,TAHIR KHAN,1622610:151296751,"28,301.09",Legal Aid Higher Crime
MOJ,LAA,09/01/19,Lower Crime,LEGAL AID FUND,THE JOHNSON PARTNERSHIP,1624726:151295216,"28,556.54",Legal Aid Lower Crime
MOJ,LAA,09/01/19,Higher Crime,LEGAL AID FUND,THOMAS L SCHOFIELD,1622346:151334126,"25,642.82",Legal Aid Higher Crime
MOJ,LAA,09/01/19,Civil Representation,LEGAL AID FUND,THOMPSON WILLIAMS LAW SOLICITORS,1624454:3000003488470014,"33,601.50",Legal Aid Civil Representation
MOJ,LAA,09/01/19,Higher Crime,LEGAL AID FUND,TIMOTHY J MOLONEY QC,1624310:151334656,"29,677.85",Legal Aid Higher Crime
MOJ,LAA,09/01/19,Higher Crime,LEGAL AID FUND,TUCKERS SOLICITORS LLP,1621691:151334255,"83,673.98",Legal Aid Higher Crime
MOJ,LAA,09/01/19,Civil Representation,LEGAL AID FUND,VANESSA V MEACHIN QC,1622300:3000004414540001,"72,014.40",Legal Aid Civil Representation
MOJ,LAA,09/01/19,Higher Crime,LEGAL AID FUND,WADDINGTON & SON,1623118:151334522,"35,597.46",Legal Aid Higher Crime
MOJ,LAA,09/01/19,Higher Crime,LEGAL AID FUND,WALKER LAW LTD,1623403:151313159,"25,394.21",Legal Aid Higher Crime
MOJ,LAA,09/01/19,Civil Representation,LEGAL AID FUND,WATKINS & GUNN,1624896:3000002773290005,"27,199.99",Legal Aid Civil Representation
MOJ,LAA,09/01/19,Higher Crime,LEGAL AID FUND,WOOLLCOMBE YONGE LLP,1623178:151334403,"101,197.23",Legal Aid Higher Crime
MOJ,LAA,10/01/19,EXP - PURCHASE OF GOODS/SERVICES - SUPPORT - APPLICATION DEVELOPMENT,Business Systems Mgmt,HOME OFFICE IT,SR01403,"75,956.00",IT Costs
MOJ,LAA,10/01/19,EXP - PURCHASE OF GOODS/SERVICES - SUPPORT - APPLICATION DEVELOPMENT,Business Systems Mgmt,HOME OFFICE IT,SR01393,"62,596.00",IT Costs
MOJ,LAA,10/01/19,EXP - PURCHASE OF GOODS/SERVICES - HOSTING - Hosting,Business Systems Mgmt,TOPLEVEL COMPUTING LTD,19082566,"43,904.40",IT Costs
MOJ,LAA,10/01/19,Civil Representation,LEGAL AID FUND,MARK J TWOMEY QC,1625178:3000002284080012RC,"(57,380.40)",Legal Aid Civil Representation
MOJ,LAA,15/01/19,EXP - PURCHASE OF GOODS/SERVICES - SUPPORT - APPLICATION MAINTENANCE AND SUPPORT,Civil Case Management - Newcastle,NORTHGATE PUBLIC SERVICES (UK) LTD,91415586,"79,350.00",IT Costs
MOJ,LAA,16/01/19,Higher Crime,LEGAL AID FUND,@CORNWALL LAW LLP,1629448:151388683,"69,492.00",Legal Aid Higher Crime
MOJ,LAA,16/01/19,Higher Crime,LEGAL AID FUND,ABBEY SOLICITORS,1628515:151372154,"65,378.40",Legal Aid Higher Crime
MOJ,LAA,16/01/19,Higher Crime,LEGAL AID FUND,ABV SOLICITORS,1628490:151388860,"32,517.52",Legal Aid Higher Crime
MOJ,LAA,16/01/19,Higher Crime,LEGAL AID FUND,ALI N BAJWA QC,1627994:151371275,"50,278.69",Legal Aid Higher Crime
MOJ,LAA,16/01/19,Higher Crime,LEGAL AID FUND,ALSTERS KELLEY SOLICITORS LTD,1628466:151388515,"61,558.57",Legal Aid Higher Crime
MOJ,LAA,16/01/19,Higher Crime,LEGAL AID FUND,AMANDA E PINTO QC,1627436:151394719,"96,720.00",Legal Aid Higher Crime
MOJ,LAA,16/01/19,Civil Representation,LEGAL AID FUND,AMANDA GINSBURG,1627045:3000003493810020,"39,949.20",Legal Aid Civil Representation
MOJ,LAA,16/01/19,Civil Representation,LEGAL AID FUND,AMY J EPHGRAVE,1628178:3000002687530002RC,"(28,252.80)",Legal Aid Civil Representation
MOJ,LAA,16/01/19,Civil Representation,LEGAL AID FUND,ANDREW G LORIE,1626309:3000003943730028,"26,753.06",Legal Aid Civil Representation
MOJ,LAA,16/01/19,Civil Representation,LEGAL AID FUND,ANDREW K BAGCHI QC,1627666:3000002927740020,"45,166.32",Legal Aid Civil Representation
MOJ,LAA,16/01/19,Higher Crime,LEGAL AID FUND,ANTHONY D E METZER QC,1627623:151343618,"37,498.44",Legal Aid Higher Crime
MOJ,LAA,16/01/19,Civil Representation,LEGAL AID FUND,ASHLEY LORD,1625373:3000003493810019,"25,833.60",Legal Aid Civil Representation
MOJ,LAA,16/01/19,Higher Crime,LEGAL AID FUND,ASHMANS SOLICITORS LTD,1628199:151372193,"87,561.91",Legal Aid Higher Crime
MOJ,LAA,16/01/19,Higher Crime,LEGAL AID FUND,ASHMANS SOLICITORS LTD,1625709:151202144,"(28,205.28)",Legal Aid Higher Crime
MOJ,LAA,16/01/19,Civil Representation,LEGAL AID FUND,BACHES SOLICITORS LLP,1629349:3000001377410018,"46,126.86",Legal Aid Civil Representation
MOJ,LAA,16/01/19,Civil Representation,LEGAL AID FUND,BACHES SOLICITORS LLP,1629349:3000003330420013,"29,389.90",Legal Aid Civil Representation
MOJ,LAA,16/01/19,Higher Crime,LEGAL AID FUND,BDH SOLICITORS LTD,1629151:151389942,"115,435.08",Legal Aid Higher Crime
MOJ,LAA,16/01/19,Higher Crime,LEGAL AID FUND,BENJAMIN J MYERS QC,1627096:151395361,"174,240.00",Legal Aid Higher Crime
MOJ,LAA,16/01/19,Civil Representation,LEGAL AID FUND,BG LAWYERS LLP,1629497:3000002979230010,"26,581.53",Legal Aid Civil Representation
MOJ,LAA,16/01/19,Higher Crime,LEGAL AID FUND,BIRD & CO SOLICITORS LLP,1629008:151371744,"50,508.51",Legal Aid Higher Crime
MOJ,LAA,16/01/19,Higher Crime,LEGAL AID FUND,BIRDS SOLICITORS LTD,1628601:151362270,"29,664.55",Legal Aid Higher Crime
MOJ,LAA,16/01/19,Higher Crime,LEGAL AID FUND,BIVONAS LLP,1629048:151362308,"29,884.85",Legal Aid Higher Crime
MOJ,LAA,16/01/19,Higher Crime,LEGAL AID FUND,BLACKFORDS LLP,1629501:151371877,"105,857.75",Legal Aid Higher Crime
MOJ,LAA,16/01/19,Civil Representation,LEGAL AID FUND,BRENDAN FLEMING SOLICITORS,1629347:3000002267520004,"44,730.42",Legal Aid Civil Representation
MOJ,LAA,16/01/19,Higher Crime,LEGAL AID FUND,BRIAN L ST LOUIS,1626738:151353320,"58,002.47",Legal Aid Higher Crime
MOJ,LAA,16/01/19,Higher Crime,LEGAL AID FUND,BRIAN P ONEILL QC,1627501:151371229,"43,380.00",Legal Aid Higher Crime
MOJ,LAA,16/01/19,Higher Crime,LEGAL AID FUND,CAIRNS L D NELSON QC,1627625:151344010,"46,800.00",Legal Aid Higher Crime
MOJ,LAA,16/01/19,Higher Crime,LEGAL AID FUND,CAROLINE T GOODWIN,1628108:151389904,"43,442.78",Legal Aid Higher Crime
MOJ,LAA,16/01/19,Lower Crime,LEGAL AID FUND,CARSON KAYE SOLICITORS,1625896:151348670,"65,598.57",Legal Aid Lower Crime
MOJ,LAA,16/01/19,Higher Crime,LEGAL AID FUND,CARSON KAYE SOLICITORS,1625896:151343201,"25,915.85",Legal Aid Higher Crime
MOJ,LAA,16/01/19,Higher Crime,LEGAL AID FUND,CCW SOLICITORS,1628326:151388486,"31,497.83",Legal Aid Higher Crime
MOJ,LAA,16/01/19,Civil Representation,LEGAL AID FUND,CHILD LAW PARTNERSHIP LTD,1626411:3000002684840003,"33,243.94",Legal Aid Civil Representation
MOJ,LAA,16/01/19,Higher Crime,LEGAL AID FUND,CHRISTOPHER M  CONVEY,1626773:151394717,"48,520.00",Legal Aid Higher Crime
MOJ,LAA,16/01/19,Civil Representation,LEGAL AID FUND,CLAIRE L M WILLS-GOLDINGHAM,1626948:3000003445160009,"62,370.00",Legal Aid Civil Representation
MOJ,LAA,16/01/19,Civil Representation,LEGAL AID FUND,CLARK BROOKES TURNER CARY LTD,1629265:3000003760140007,"36,000.00",Legal Aid Civil Representation
MOJ,LAA,16/01/19,Higher Crime,LEGAL AID FUND,CONNOR ROSS-BROWN SOLICITORS,1626423:151389575,"77,558.06",Legal Aid Higher Crime
MOJ,LAA,16/01/19,Higher Crime,LEGAL AID FUND,COWANS SOLICITORS LLP,1625685:151343454,"79,835.81",Legal Aid Higher Crime
MOJ,LAA,16/01/19,Higher Crime,LEGAL AID FUND,COWANS SOLICITORS LLP,1625685:151342944,"31,088.05",Legal Aid Higher Crime
MOJ,LAA,16/01/19,Higher Crime,LEGAL AID FUND,CRAMP & MULLANEY LLP,1628892:151389277,"29,664.55",Legal Aid Higher Crime
MOJ,LAA,16/01/19,Civil Representation,LEGAL AID FUND,CREIGHTON & PARTNERS,1628424:151394819,"25,156.44",Legal Aid Civil Representation
MOJ,LAA,16/01/19,Higher Crime,LEGAL AID FUND,DALTON HOLMES GRAY,1628741:151353197,"89,975.11",Legal Aid Higher Crime
MOJ,LAA,16/01/19,Higher Crime,LEGAL AID FUND,DAVID  MILLER,1626191:151368820,"234,453.60",Legal Aid Higher Crime
MOJ,LAA,16/01/19,Higher Crime,LEGAL AID FUND,DAVID C L ETHERINGTON QC,1627490:151371701,"54,420.00",Legal Aid Higher Crime
MOJ,LAA,16/01/19,Higher Crime,LEGAL AID FUND,DAVID ELIAS,1627341:151344365,"29,580.00",Legal Aid Higher Crime
MOJ,LAA,16/01/19,Civil Representation,LEGAL AID FUND,DAVINA KRISHNAN,1627004:3000002587560013,"27,410.57",Legal Aid Civil Representation
MOJ,LAA,16/01/19,Civil Representation,LEGAL AID FUND,DAVIS & SIMMONDS & DONAGHEY,1628388:3000003587440008,"34,870.50",Legal Aid Civil Representation
MOJ,LAA,16/01/19,Civil Representation,LEGAL AID FUND,DAVIS & SIMMONDS & DONAGHEY,1628388:3000002832000003,"30,140.10",Legal Aid Civil Representation
MOJ,LAA,16/01/19,Civil Representation,LEGAL AID FUND,DAVISONS SOLICITORS LIMITED,1628618:3000000557850029,"26,992.12",Legal Aid Civil Representation
MOJ,LAA,16/01/19,Higher Crime,LEGAL AID FUND,DDE LAW LTD,1628288:151370587,"72,713.37",Legal Aid Higher Crime
MOJ,LAA,16/01/19,Higher Crime,LEGAL AID FUND,DEXTER HENRY & CO,1629254:151343215,"107,970.13",Legal Aid Higher Crime
MOJ,LAA,16/01/19,Higher Crime,LEGAL AID FUND,DPP LAW LTD,1628634:151390049,"40,169.36",Legal Aid Higher Crime
MOJ,LAA,16/01/19,Higher Crime,LEGAL AID FUND,EBR ATTRIDGE LLP,1628536:151343925,"81,847.29",Legal Aid Higher Crime
MOJ,LAA,16/01/19,Civil Representation,LEGAL AID FUND,EDWARDS DUTHIE,1629579:3000003541980009,"26,120.47",Legal Aid Civil Representation
MOJ,LAA,16/01/19,Civil Representation,LEGAL AID FUND,ELIZABETH M CALLAGHAN,1628043:3000002704440014,"26,190.87",Legal Aid Civil Representation
MOJ,LAA,16/01/19,Higher Crime,LEGAL AID FUND,ENNON & CO LTD,1628414:151389115,"89,975.11",Legal Aid Higher Crime
MOJ,LAA,16/01/19,Higher Crime,LEGAL AID FUND,EQ SOLICITORS,1628494:151371659,"32,531.96",Legal Aid Higher Crime
MOJ,LAA,16/01/19,Civil Representation,LEGAL AID FUND,ESKINAZI & CO,1629101:3000000423430010,"25,584.84",Legal Aid Civil Representation
MOJ,LAA,16/01/19,Higher Crime,LEGAL AID FUND,FELICIA M T DAVY,1626187:151371775,"25,140.00",Legal Aid Higher Crime
MOJ,LAA,16/01/19,Higher Crime,LEGAL AID FUND,FOXES SOLICITORS,1628346:151343555,"30,579.66",Legal Aid Higher Crime
MOJ,LAA,16/01/19,Civil Representation,LEGAL AID FUND,FRANK T FEEHAN QC,1627567:151368964,"74,844.00",Legal Aid Civil Representation
MOJ,LAA,16/01/19,Civil Representation,LEGAL AID FUND,FRANK T FEEHAN QC,1627567:151369035,"37,152.00",Legal Aid Civil Representation
MOJ,LAA,16/01/19,Civil Representation,LEGAL AID FUND,FRANK T FEEHAN QC,1627567:151369043,"(31,320.00)",Legal Aid Civil Representation
MOJ,LAA,16/01/19,Civil Representation,LEGAL AID FUND,FRANK T FEEHAN QC,1627567:151369039,"(74,844.00)",Legal Aid Civil Representation
MOJ,LAA,16/01/19,Higher Crime,LEGAL AID FUND,GARY T BELL QC,1627325:151343962,"39,240.00",Legal Aid Higher Crime
MOJ,LAA,16/01/19,Civil Representation,LEGAL AID FUND,GEMMA FARRINGTON,1626969:3000003594520025,"31,395.60",Legal Aid Civil Representation
MOJ,LAA,16/01/19,Higher Crime,LEGAL AID FUND,GLP SOLICITORS,1628887:151343211,"107,574.07",Legal Aid Higher Crime
MOJ,LAA,16/01/19,Higher Crime,LEGAL AID FUND,GLP SOLICITORS,1628887:151343415,"29,664.55",Legal Aid Higher Crime
MOJ,LAA,16/01/19,Higher Crime,LEGAL AID FUND,GOLDSTONES SOLICITORS LTD,1625701:151388673,"89,975.11",Legal Aid Higher Crime
MOJ,LAA,16/01/19,Higher Crime,LEGAL AID FUND,GRAHAM & CO SOLICITORS LTD,1625550:151353235,"79,328.09",Legal Aid Higher Crime
MOJ,LAA,16/01/19,Civil Representation,LEGAL AID FUND,GRAHAME STOWE BATESON,1628547:3000002292000010,"26,097.98",Legal Aid Civil Representation
MOJ,LAA,16/01/19,Civil Representation,LEGAL AID FUND,GREENS SOLICITORS LTD,1628867:3000002976180019,"54,247.12",Legal Aid Civil Representation
MOJ,LAA,16/01/19,Civil Representation,LEGAL AID FUND,GWB HARTHILLS LLP,1628439:3000001456140038,"75,258.94",Legal Aid Civil Representation
MOJ,LAA,16/01/19,Civil Representation,LEGAL AID FUND,GWB HARTHILLS LLP,1628439:3000001456140016RC,"(29,881.66)",Legal Aid Civil Representation
MOJ,LAA,16/01/19,Civil Representation,LEGAL AID FUND,HARINDER KAUR,1626976:3000002752880028,"47,964.36",Legal Aid Civil Representation
MOJ,LAA,16/01/19,Higher Crime,LEGAL AID FUND,HARWOOD SOLICITORS,1625868:151371115,"34,311.85",Legal Aid Higher Crime
MOJ,LAA,16/01/19,Civil Representation,LEGAL AID FUND,HATCH BRENNER LLP,1628839:3000002323190018,"34,079.40",Legal Aid Civil Representation
MOJ,LAA,16/01/19,Civil Representation,LEGAL AID FUND,HAWLEY & RODGERS,1629080:3000002469670011,"45,853.45",Legal Aid Civil Representation
MOJ,LAA,16/01/19,Civil Representation,LEGAL AID FUND,HCB PARK WOODFINE LLP,1628835:3000002158970022,"32,283.64",Legal Aid Civil Representation
MOJ,LAA,16/01/19,Higher Crime,LEGAL AID FUND,HODGE JONES & ALLEN LLP,1629360:151388622,"48,568.57",Legal Aid Higher Crime
MOJ,LAA,16/01/19,Higher Crime,LEGAL AID FUND,HODGE JONES & ALLEN LLP,1629360:151396456,"31,778.76",Legal Aid Higher Crime
MOJ,LAA,16/01/19,Higher Crime,LEGAL AID FUND,HODGE JONES & ALLEN LLP,1629360:151343596,"29,360.98",Legal Aid Higher Crime
MOJ,LAA,16/01/19,Higher Crime,LEGAL AID FUND,HODGE JONES & ALLEN LLP,1629360:151343777,"26,893.52",Legal Aid Higher Crime
MOJ,LAA,16/01/19,Higher Crime,LEGAL AID FUND,HOGAN BROWN SOLICITORS,1628491:151370764,"47,057.66",Legal Aid Higher Crime
MOJ,LAA,16/01/19,Higher Crime,LEGAL AID FUND,HUSSAIN SOLICITORS LTD,1628557:151389563,"89,975.11",Legal Aid Higher Crime
MOJ,LAA,16/01/19,Higher Crime,LEGAL AID FUND,I B B SOLICITORS,1628509:151362750,"26,756.13",Legal Aid Higher Crime
MOJ,LAA,16/01/19,Higher Crime,LEGAL AID FUND,IAIN R O SUGGETT,1627968:151353799,"26,500.90",Legal Aid Higher Crime
MOJ,LAA,16/01/19,Higher Crime,LEGAL AID FUND,IMRAN KHAN & PARTNERS,1629525:151362788,"38,367.89",Legal Aid Higher Crime
MOJ,LAA,16/01/19,Civil Representation,LEGAL AID FUND,IRWIN MITCHELL LLP,1629062:151330738,"(35,951.36)",Legal Aid Civil Representation
MOJ,LAA,16/01/19,Higher Crime,LEGAL AID FUND,J D SPICER ZEB,1629361:151343242,"105,857.75",Legal Aid Higher Crime
MOJ,LAA,16/01/19,Civil Representation,LEGAL AID FUND,J D SPICER ZEB,1629361:3000002630130017,"46,125.49",Legal Aid Civil Representation
MOJ,LAA,16/01/19,Higher Crime,LEGAL AID FUND,JACOB W HALLAM,1627639:151389450,"26,358.05",Legal Aid Higher Crime
MOJ,LAA,16/01/19,Higher Crime,LEGAL AID FUND,JAMES P HOLLAND,1628248:151388452,"38,268.60",Legal Aid Higher Crime
MOJ,LAA,16/01/19,Civil Representation,LEGAL AID FUND,JEFFERIES (ESSEX) LLP,1629009:3000003234370007,"46,269.86",Legal Aid Civil Representation
MOJ,LAA,16/01/19,Higher Crime,LEGAL AID FUND,JEREMY K BENSON QC,1627491:151343291,"59,940.00",Legal Aid Higher Crime
MOJ,LAA,16/01/19,Higher Crime,LEGAL AID FUND,JMW SOLICITORS LLP,1629222:151359734,"122,378.50",Legal Aid Higher Crime
MOJ,LAA,16/01/19,Civil Representation,LEGAL AID FUND,JOHNSON & GAUNT SOLICITORS LTD,1629419:3000003002240011,"28,412.27",Legal Aid Civil Representation
MOJ,LAA,16/01/19,Higher Crime,LEGAL AID FUND,JONAS ROY BLOOM,1628619:151363437,"26,893.52",Legal Aid Higher Crime
MOJ,LAA,16/01/19,Higher Crime,LEGAL AID FUND,JONAS ROY BLOOM,1628619:151389928,"26,464.44",Legal Aid Higher Crime
MOJ,LAA,16/01/19,Higher Crime,LEGAL AID FUND,JONATHAN J LAIDLAW,1627502:151348332,"122,520.00",Legal Aid Higher Crime
MOJ,LAA,16/01/19,Higher Crime,LEGAL AID FUND,JOSEPH HILL & CO,1628978:151389012,"89,975.11",Legal Aid Higher Crime
MOJ,LAA,16/01/19,Higher Crime,LEGAL AID FUND,JOSEPH HILL & CO,1628978:151388626,"29,884.85",Legal Aid Higher Crime
MOJ,LAA,16/01/19,Civil Representation,LEGAL AID FUND,KATHERINE WOOD,1626146:3000001863600021,"52,704.00",Legal Aid Civil Representation
MOJ,LAA,16/01/19,Higher Crime,LEGAL AID FUND,KATY H THORNE,1628149:151389007,"34,671.48",Legal Aid Higher Crime
MOJ,LAA,16/01/19,Higher Crime,LEGAL AID FUND,KBS SOLICITORS,1628398:151343413,"53,347.49",Legal Aid Higher Crime
MOJ,LAA,16/01/19,Higher Crime,LEGAL AID FUND,KENNETH M BARROW & CO,1629123:151370598,"66,820.84",Legal Aid Higher Crime
MOJ,LAA,16/01/19,Civil Representation,LEGAL AID FUND,KING STREET SOLICITORS LLP,1628719:3000002983810024,"28,765.28",Legal Aid Civil Representation
MOJ,LAA,16/01/19,Higher Crime,LEGAL AID FUND,L P EVANS SOLICITORS,1628267:151363135,"43,836.96",Legal Aid Higher Crime
MOJ,LAA,16/01/19,Civil Representation,LEGAL AID FUND,LAWRENCE & CO SOLICITORS CDS LLP,1628979:3000002887970011,"37,773.82",Legal Aid Civil Representation
MOJ,LAA,16/01/19,Higher Crime,LEGAL AID FUND,LAWRENCE J C SELBY,1628260:151343182,"46,724.40",Legal Aid Higher Crime
MOJ,LAA,16/01/19,Higher Crime,LEGAL AID FUND,LAWRENCE J C SELBY,1628260:151370577,"25,300.68",Legal Aid Higher Crime
MOJ,LAA,16/01/19,Civil Representation,LEGAL AID FUND,LEGAL SERVICES FOR CHILDREN,1628530:3000002354830003,"27,045.48",Legal Aid Civil Representation
MOJ,LAA,16/01/19,Higher Crime,LEGAL AID FUND,LISA WILSON,1627685:151389217,"46,159.56",Legal Aid Higher Crime
MOJ,LAA,16/01/19,Higher Crime,LEGAL AID FUND,LLOYDS PR SOLICITORS,1628440:151362320,"76,816.69",Legal Aid Higher Crime
MOJ,LAA,16/01/19,Civil Representation,LEGAL AID FUND,LOUISE B HARVEY,1627916:3000003488470015,"40,507.54",Legal Aid Civil Representation
MOJ,LAA,16/01/19,Higher Crime,LEGAL AID FUND,LOUND MULRENAN SOLICITORS,1629050:151362359,"89,975.11",Legal Aid Higher Crime
MOJ,LAA,16/01/19,Higher Crime,LEGAL AID FUND,LUCIE WIBBERLEY,1627782:151343910,"26,310.55",Legal Aid Higher Crime
MOJ,LAA,16/01/19,Higher Crime,LEGAL AID FUND,M & M SOLICITORS.,1628514:151344362,"88,657.92",Legal Aid Higher Crime
MOJ,LAA,16/01/19,Higher Crime,LEGAL AID FUND,M & M SOLICITORS.,1628514:151390053,"40,775.59",Legal Aid Higher Crime
MOJ,LAA,16/01/19,Higher Crime,LEGAL AID FUND,MANN & CO SOLICITORS LTD,1628680:151343733,"46,773.25",Legal Aid Higher Crime
MOJ,LAA,16/01/19,Higher Crime,LEGAL AID FUND,MARK ANDREWS & CO-ADVOCATE,1626721:151362267,"29,025.60",Legal Aid Higher Crime
MOJ,LAA,16/01/19,Higher Crime,LEGAL AID FUND,MARK JONES & PARTNERS,1628656:151352490,"89,975.11",Legal Aid Higher Crime
MOJ,LAA,16/01/19,Civil Representation,LEGAL AID FUND,MARK WHITEHALL,1626974:3000002260820030,"29,453.78",Legal Aid Civil Representation
MOJ,LAA,16/01/19,Civil Representation,LEGAL AID FUND,MATTHEW D MAYNARD,1628243:3000001660260015,"32,880.00",Legal Aid Civil Representation
MOJ,LAA,16/01/19,Higher Crime,LEGAL AID FUND,MAURICE ANDREWS SOLICITORS,1628870:151389870,"42,151.73",Legal Aid Higher Crime
MOJ,LAA,16/01/19,Higher Crime,LEGAL AID FUND,METRO LAW SOLICITORS LTD,1625683:151390012,"61,429.18",Legal Aid Higher Crime
MOJ,LAA,16/01/19,Higher Crime,LEGAL AID FUND,METRO LAW SOLICITORS LTD,1625683:151388524,"25,166.48",Legal Aid Higher Crime
MOJ,LAA,16/01/19,Higher Crime,LEGAL AID FUND,MIAN & CO SOLICITORS,1628767:151344589,"76,989.39",Legal Aid Higher Crime
MOJ,LAA,16/01/19,Higher Crime,LEGAL AID FUND,MICHAEL BISGROVE,1626196:151344127,"26,790.00",Legal Aid Higher Crime
MOJ,LAA,16/01/19,Higher Crime,LEGAL AID FUND,MICHAEL J MAHER,1626772:151395304,"89,920.01",Legal Aid Higher Crime
MOJ,LAA,16/01/19,Higher Crime,LEGAL AID FUND,MICHAEL MAGARIAN QC,1627055:151389915,"49,380.00",Legal Aid Higher Crime
MOJ,LAA,16/01/19,Higher Crime,LEGAL AID FUND,MOHAMMAD M HOSSAIN,1627166:151343479,"39,573.25",Legal Aid Higher Crime
MOJ,LAA,16/01/19,Higher Crime,LEGAL AID FUND,MOHAMMED LATIF,1626915:151353895,"32,128.90",Legal Aid Higher Crime
MOJ,LAA,16/01/19,Higher Crime,LEGAL AID FUND,MPR SOLICITORS LLP,1628896:151371270,"44,987.56",Legal Aid Higher Crime
MOJ,LAA,16/01/19,Higher Crime,LEGAL AID FUND,MTG SOLICITORS,1628564:151343514,"83,335.13",Legal Aid Higher Crime
MOJ,LAA,16/01/19,Higher Crime,LEGAL AID FUND,NARITA BAHRA,1628083:151389841,"25,969.03",Legal Aid Higher Crime
MOJ,LAA,16/01/19,Civil Representation,LEGAL AID FUND,NASH & CO SOLICITORS LLP,1629583:3000003103280011,"33,512.57",Legal Aid Civil Representation
MOJ,LAA,16/01/19,Higher Crime,LEGAL AID FUND,NAWAZ HUSSAIN,1626933:151343662,"25,440.00",Legal Aid Higher Crime
MOJ,LAA,16/01/19,Higher Crime,LEGAL AID FUND,NICHOLAS S HAGGAN QC,1627429:151363330,"33,516.00",Legal Aid Higher Crime
MOJ,LAA,16/01/19,Higher Crime,LEGAL AID FUND,NICHOLAS S HAGGAN QC,1627429:151353942,"33,000.00",Legal Aid Higher Crime
MOJ,LAA,16/01/19,Higher Crime,LEGAL AID FUND,NICHOLAS S HAGGAN QC,1627429:151353950,"(33,516.00)",Legal Aid Higher Crime
MOJ,LAA,16/01/19,Civil Representation,LEGAL AID FUND,NICHOLAS W STONOR,1628106:3000003733360042,"64,864.80",Legal Aid Civil Representation
MOJ,LAA,16/01/19,Civil Representation,LEGAL AID FUND,NICHOLAS W STONOR,1628106:3000003733360043,"64,864.80",Legal Aid Civil Representation
MOJ,LAA,16/01/19,Civil Representation,LEGAL AID FUND,NICHOLAS W STONOR,1628106:3000003437300025,"47,763.96",Legal Aid Civil Representation
MOJ,LAA,16/01/19,Civil Representation,LEGAL AID FUND,NICHOLAS W STONOR,1628106:3000001972730019RC,"(38,140.20)",Legal Aid Civil Representation
MOJ,LAA,16/01/19,Civil Representation,LEGAL AID FUND,NICOL DENVIR & PURNELL SOLICITORS,1629329:151341219,"25,513.86",Legal Aid Civil Representation
MOJ,LAA,16/01/19,Higher Crime,LEGAL AID FUND,NOBLE SOLICITORS,1628761:151342936,"68,928.27",Legal Aid Higher Crime
MOJ,LAA,16/01/19,Higher Crime,LEGAL AID FUND,O'REILLYS SOLICITORS LTD,1628531:151343080,"26,517.52",Legal Aid Higher Crime
MOJ,LAA,16/01/19,Civil Representation,LEGAL AID FUND,ORLA C S GRANT,1627317:3000001663910014,"47,942.69",Legal Aid Civil Representation
MOJ,LAA,16/01/19,Civil Representation,LEGAL AID FUND,OSBORNES SOLICITORS LLP,1629499:3000001686030025,"26,452.31",Legal Aid Civil Representation
MOJ,LAA,16/01/19,Civil Representation,LEGAL AID FUND,PATRICK LAWRENCE PARTNERSHIP LLP,1628805:151197942,"80,680.31",Legal Aid Civil Representation
MOJ,LAA,16/01/19,Civil Representation,LEGAL AID FUND,PATRICK LAWRENCE PARTNERSHIP LLP,1628805:151348758,"(40,617.00)",Legal Aid Civil Representation
MOJ,LAA,16/01/19,Civil Representation,LEGAL AID FUND,PHILCOX GRAY & CO,1629591:151368962,"91,422.04",Legal Aid Civil Representation
MOJ,LAA,16/01/19,Civil Representation,LEGAL AID FUND,PHILCOX GRAY & CO,1629591:151369037,"(59,040.00)",Legal Aid Civil Representation
MOJ,LAA,16/01/19,Higher Crime,LEGAL AID FUND,QUALITYSOLICITORS JONES ROBERTSON,1628635:151344031,"31,037.00",Legal Aid Higher Crime
MOJ,LAA,16/01/19,Higher Crime,LEGAL AID FUND,QUINN MELVILLE,1628724:151353764,"34,255.98",Legal Aid Higher Crime
MOJ,LAA,16/01/19,Higher Crime,LEGAL AID FUND,RAHMAN RAVELLI SOLICITORS LTD,1628742:151370890,"35,861.82",Legal Aid Higher Crime
MOJ,LAA,16/01/19,Higher Crime,LEGAL AID FUND,RAJ LAW,1628483:151388501,"30,179.76",Legal Aid Higher Crime
MOJ,LAA,16/01/19,Civil Representation,LEGAL AID FUND,RAMSDENS SOLICITORS LLP,1626604:3000001934830012,"35,170.34",Legal Aid Civil Representation
MOJ,LAA,16/01/19,Higher Crime,LEGAL AID FUND,REBECCA L FAIRBAIRN,1627042:151352485,"59,499.60",Legal Aid Higher Crime
MOJ,LAA,16/01/19,Higher Crime,LEGAL AID FUND,REBECCA L FAIRBAIRN,1627042:151362065,"28,587.60",Legal Aid Higher Crime
MOJ,LAA,16/01/19,Higher Crime,LEGAL AID FUND,REBECCA L FAIRBAIRN,1627042:151352379,"(66,466.80)",Legal Aid Higher Crime
MOJ,LAA,16/01/19,Higher Crime,LEGAL AID FUND,RILEY HAYES & CO,1628766:151371244,"89,975.11",Legal Aid Higher Crime
MOJ,LAA,16/01/19,Civil Representation,LEGAL AID FUND,ROLAND ROBINSONS AND FENTONS LLP,1629239:3000001343490014,"63,760.45",Legal Aid Civil Representation
MOJ,LAA,16/01/19,Civil Representation,LEGAL AID FUND,RUSSELL-COOKE LLP,1629142:3000001326400026,"25,817.06",Legal Aid Civil Representation
MOJ,LAA,16/01/19,Civil Representation,LEGAL AID FUND,RUTH PHILLIPS,1626954:3000001863600020,"28,512.00",Legal Aid Civil Representation
MOJ,LAA,16/01/19,Higher Crime,LEGAL AID FUND,SAHOTA & SAHOTA SOLICITORS,1625881:151389190,"107,970.13",Legal Aid Higher Crime
MOJ,LAA,16/01/19,Higher Crime,LEGAL AID FUND,SAK SOLICITORS,1625883:151352452,"29,664.55",Legal Aid Higher Crime
MOJ,LAA,16/01/19,Higher Crime,LEGAL AID FUND,SANJEEV M SHARMA,1626994:151344295,"28,590.00",Legal Aid Higher Crime
MOJ,LAA,16/01/19,Higher Crime,LEGAL AID FUND,SCANLANS,1629029:151370897,"89,975.11",Legal Aid Higher Crime
MOJ,LAA,16/01/19,Higher Crime,LEGAL AID FUND,SHEPHERD HARRIS & CO LTD,1628264:151362369,"49,729.07",Legal Aid Higher Crime
MOJ,LAA,16/01/19,Higher Crime,LEGAL AID FUND,SMITH & GRAHAM,1629070:151362711,"58,979.45",Legal Aid Higher Crime
MOJ,LAA,16/01/19,Higher Crime,LEGAL AID FUND,SMITH PARTNERSHIP,1628608:151370594,"38,063.30",Legal Aid Higher Crime
MOJ,LAA,16/01/19,Higher Crime,LEGAL AID FUND,SONN MACMILLAN WALKER LTD,1629539:151362715,"74,312.09",Legal Aid Higher Crime
MOJ,LAA,16/01/19,Higher Crime,LEGAL AID FUND,STEPHEN LICKRISH & ASSOCIATES LTD,1628486:151389125,"32,980.10",Legal Aid Higher Crime
MOJ,LAA,16/01/19,Civil Representation,LEGAL AID FUND,STEPHEN REEDER,1627038:3000000662370047,"31,091.36",Legal Aid Civil Representation
MOJ,LAA,16/01/19,Higher Crime,LEGAL AID FUND,STEPHENSONS SOLICITORS LLP,1629217:151354095,"36,527.94",Legal Aid Higher Crime
MOJ,LAA,16/01/19,Higher Crime,LEGAL AID FUND,STERNBERG REED SOLICITORS,1628472:151362272,"29,884.85",Legal Aid Higher Crime
MOJ,LAA,16/01/19,Higher Crime,LEGAL AID FUND,STOKOE PARTNERSHIP,1629586:151389131,"49,729.07",Legal Aid Higher Crime
MOJ,LAA,16/01/19,Higher Crime,LEGAL AID FUND,STOKOE PARTNERSHIP,1629585:151390188,"25,329.91",Legal Aid Higher Crime
MOJ,LAA,16/01/19,Higher Crime,LEGAL AID FUND,STUART MILLER SOLICITORS LTD,1629127:151370542,"29,798.27",Legal Aid Higher Crime
MOJ,LAA,16/01/19,Civil Representation,LEGAL AID FUND,SUSAN E JACKLIN QC,1626288:3000001942630013,"28,480.92",Legal Aid Civil Representation
MOJ,LAA,16/01/19,Higher Crime,LEGAL AID FUND,SUSSEX DEFENCE SOLICITORS,1628361:151342975,"25,053.67",Legal Aid Higher Crime
MOJ,LAA,16/01/19,Civil Representation,LEGAL AID FUND,T V EDWARDS LLP,1629146:151347947,"28,978.18",Legal Aid Civil Representation
MOJ,LAA,16/01/19,Civil Representation,LEGAL AID FUND,T V EDWARDS LLP,1629146:151347950,"(29,182.78)",Legal Aid Civil Representation
MOJ,LAA,16/01/19,Higher Crime,LEGAL AID FUND,THE CENTRAL LAW PRACTICE,1628682:151389767,"105,857.75",Legal Aid Higher Crime
MOJ,LAA,16/01/19,Higher Crime,LEGAL AID FUND,THE JOHNSON PARTNERSHIP,1628880:151343725,"94,601.00",Legal Aid Higher Crime
MOJ,LAA,16/01/19,Higher Crime,LEGAL AID FUND,TILSON SOLICITORS,1625520:151343783,"30,564.11",Legal Aid Higher Crime
MOJ,LAA,16/01/19,Civil Representation,LEGAL AID FUND,TINA G COOK QC,1627569:3000001789700009,"25,489.13",Legal Aid Civil Representation
MOJ,LAA,16/01/19,Higher Crime,LEGAL AID FUND,TUCKERS SOLICITORS LLP,1628211:151344214,"30,204.99",Legal Aid Higher Crime
MOJ,LAA,16/01/19,Higher Crime,LEGAL AID FUND,TUCKERS SOLICITORS LLP,1629125:151353239,"29,664.55",Legal Aid Higher Crime
MOJ,LAA,16/01/19,Higher Crime,LEGAL AID FUND,VESEY CLARKE SOLICITORS LTD,1628591:151389385,"89,975.11",Legal Aid Higher Crime
MOJ,LAA,16/01/19,Higher Crime,LEGAL AID FUND,WATSON WOODHOUSE SOLICITORS LLP,1629119:151389066,"107,970.13",Legal Aid Higher Crime
MOJ,LAA,16/01/19,Civil Representation,LEGAL AID FUND,WOLFERSTANS,1628871:3000003806220014,"28,170.37",Legal Aid Civil Representation
MOJ,LAA,16/01/19,Higher Crime,LEGAL AID FUND,ZMS LEGAL LTD TA ZMS SOLICITORS,1628374:151362524,"62,987.91",Legal Aid Higher Crime
MOJ,LAA,17/01/19,EXP - PURCHASE OF GOODS/SERVICES - OTHER TRAVEL - UK Other,Centralised Costs,CORPORATE TRAVEL MANAGEMENT NORTH LTD,7838,"44,504.89",Travel Costs
MOJ,LAA,21/01/19,EXP - PURCHASE OF GOODS/SERVICES - OTHER - Central Funds - Other,Central Funds,EDMONDS MARSHALL MCMAHON,M1106899/118747,"40,434.54",Fund Costs
MOJ,LAA,23/01/19,EXP - MISCELLANEOUS EXPENDITURE - Litigator,Central Funds,DPP LAW,M1079213/118821,"38,261.76",Fund Costs
MOJ,LAA,23/01/19,EXP - PURCHASE OF GOODS/SERVICES - OTHER PROFESSIONAL SERVICES - Legal Services - Government Legal Department,Legal,GOVERNMENT LEGAL DEPARTMENT,A2779,"157,500.00",Legal Costs
MOJ,LAA,23/01/19,EXP - MISCELLANEOUS EXPENDITURE - Litigator,Central Funds,LEWIS NEDAS LAW LTD,M1106110/118773,"107,413.05",Fund Costs
MOJ,LAA,23/01/19,EXP - MISCELLANEOUS EXPENDITURE - Litigator,Central Funds,STRAIN & COMPANY,M1075324/118874,"25,719.98",Fund Costs
MOJ,LAA,23/01/19,Civil Representation,LEGAL AID FUND,ABBEY SOLICITORS,1633385:3000001303910024,"35,372.70",Legal Aid Civil Representation
MOJ,LAA,23/01/19,Higher Crime,LEGAL AID FUND,ABR SOLICITORS,1631210:151398695,"89,975.11",Legal Aid Higher Crime
MOJ,LAA,23/01/19,Higher Crime,LEGAL AID FUND,ABRAHAMS LAW LTD,1633764:151398321,"82,575.95",Legal Aid Higher Crime
MOJ,LAA,23/01/19,Higher Crime,LEGAL AID FUND,ACHOM & PARTNERS,1633306:151399252,"40,384.80",Legal Aid Higher Crime
MOJ,LAA,23/01/19,Higher Crime,LEGAL AID FUND,ALEXANDER BENNETT,1630069:151443291,"89,975.11",Legal Aid Higher Crime
MOJ,LAA,23/01/19,Civil Representation,LEGAL AID FUND,ALISON S GRIEF,1630662:3000002502380039,"50,770.80",Legal Aid Civil Representation
MOJ,LAA,23/01/19,Higher Crime,LEGAL AID FUND,ALLEN HOOLE LTD,1630126:151443821,"44,153.12",Legal Aid Higher Crime
MOJ,LAA,23/01/19,Higher Crime,LEGAL AID FUND,ALLEN HOOLE LTD,1631577:151443595,"32,272.22",Legal Aid Higher Crime
MOJ,LAA,23/01/19,Higher Crime,LEGAL AID FUND,AMANDA DENTON,1632636:151399103,"30,508.39",Legal Aid Higher Crime
MOJ,LAA,23/01/19,Higher Crime,LEGAL AID FUND,AMOSU ROBINSHAW LTD,1633457:151441472,"31,513.92",Legal Aid Higher Crime
MOJ,LAA,23/01/19,Higher Crime,LEGAL AID FUND,ANDREW THOMAS QC,1630365:151406064,"96,720.00",Legal Aid Higher Crime
MOJ,LAA,23/01/19,Higher Crime,LEGAL AID FUND,ANNETTE P HENRY QC,1631122:151437760,"353,440.80",Legal Aid Higher Crime
MOJ,LAA,23/01/19,Higher Crime,LEGAL AID FUND,APPLEBY HOPE & MATTHEWS,1631726:151423018,"89,975.11",Legal Aid Higher Crime
MOJ,LAA,23/01/19,Civil Representation,LEGAL AID FUND,ATKINS HOPE SOLICITORS LTD,1630486:3000003587390014,"52,720.20",Legal Aid Civil Representation
MOJ,LAA,23/01/19,Civil Representation,LEGAL AID FUND,ATKINS HOPE SOLICITORS LTD,1631854:3000002763470022,"39,838.15",Legal Aid Civil Representation
MOJ,LAA,23/01/19,Civil Representation,LEGAL AID FUND,BARBARA W CONNOLLY QC,1632736:3000001628630014,"35,748.02",Legal Aid Civil Representation
MOJ,LAA,23/01/19,Higher Crime,LEGAL AID FUND,BARK & CO,1631676:151423263,"53,991.02",Legal Aid Higher Crime
MOJ,LAA,23/01/19,Higher Crime,LEGAL AID FUND,BERRI'S LAW LLP,1632061:151442146,"63,566.18",Legal Aid Higher Crime
MOJ,LAA,23/01/19,Higher Crime,LEGAL AID FUND,BIRNBERG PEIRCE LTD,1633532:151442112,"42,425.81",Legal Aid Higher Crime
MOJ,LAA,23/01/19,Higher Crime,LEGAL AID FUND,BLUE TRINITY LTD,1632293:151442126,"44,992.52",Legal Aid Higher Crime
MOJ,LAA,23/01/19,Civil Representation,LEGAL AID FUND,BRENDAN FLEMING SOLICITORS,1631737:3000001692780036,"40,064.44",Legal Aid Civil Representation
MOJ,LAA,23/01/19,Civil Representation,LEGAL AID FUND,BRENDAN FLEMING SOLICITORS,1631737:3000002605730013,"26,704.58",Legal Aid Civil Representation
MOJ,LAA,23/01/19,Civil Representation,LEGAL AID FUND,BRENDAN FLEMING SOLICITORS,1631737:3000001692780032RC,"(27,677.70)",Legal Aid Civil Representation
MOJ,LAA,23/01/19,Higher Crime,LEGAL AID FUND,CCW SOLICITORS,1631187:151442639,"89,689.03",Legal Aid Higher Crime
MOJ,LAA,23/01/19,Higher Crime,LEGAL AID FUND,CHARLES I SHERRARD,1630974:151399186,"39,720.00",Legal Aid Higher Crime
MOJ,LAA,23/01/19,Higher Crime,LEGAL AID FUND,CHARLES I SHERRARD,1630974:151399225,"25,440.00",Legal Aid Higher Crime
MOJ,LAA,23/01/19,Higher Crime,LEGAL AID FUND,CHARLES I SHERRARD,1630974:151399217,"(41,028.00)",Legal Aid Higher Crime
MOJ,LAA,23/01/19,Civil Representation,LEGAL AID FUND,CHARLOTTE F PITTS,1632750:3000003130360010,"77,268.59",Legal Aid Civil Representation
MOJ,LAA,23/01/19,Higher Crime,LEGAL AID FUND,COBLEYS SOLICITORS LTD,1633503:151397668,"89,975.11",Legal Aid Higher Crime
MOJ,LAA,23/01/19,Higher Crime,LEGAL AID FUND,COLIN C AYLOTT,1630701:151398908,"58,239.28",Legal Aid Higher Crime
MOJ,LAA,23/01/19,Legal Help,LEGAL AID FUND,CORAM CHILDREN'S LEGAL CENTRE,1633602:151402941,"40,299.55",Legal Aid Legal Help
MOJ,LAA,23/01/19,Higher Crime,LEGAL AID FUND,COWANS SOLICITORS LLP,1630113:151444403,"37,131.84",Legal Aid Higher Crime
MOJ,LAA,23/01/19,Civil Representation,LEGAL AID FUND,CREIGHTON & PARTNERS,1631340:151449107,"25,871.44",Legal Aid Civil Representation
MOJ,LAA,23/01/19,Civil Representation,LEGAL AID FUND,CREIGHTON & PARTNERS,1631340:151449108,"(25,156.44)",Legal Aid Civil Representation
MOJ,LAA,23/01/19,Civil Representation,LEGAL AID FUND,CYRUS R LARIZADEH,1632886:3000004229890003,"39,497.70",Legal Aid Civil Representation
MOJ,LAA,23/01/19,Civil Representation,LEGAL AID FUND,DAVIS & SIMMONDS & DONAGHEY,1631301:3000000674930012,"28,385.58",Legal Aid Civil Representation
MOJ,LAA,23/01/19,Higher Crime,LEGAL AID FUND,DOBSON FISHER LLP,1632051:151444187,"62,602.56",Legal Aid Higher Crime
MOJ,LAA,23/01/19,Higher Crime,LEGAL AID FUND,DUNCAN LEWIS SOLICITORS  LTD,1631217:151423924,"88,806.98",Legal Aid Higher Crime
MOJ,LAA,23/01/19,Higher Crime,LEGAL AID FUND,DUNCAN LEWIS SOLICITORS  LTD,1633478:151443261,"25,336.85",Legal Aid Higher Crime
MOJ,LAA,23/01/19,Higher Crime,LEGAL AID FUND,EDWARD BOATENG-ADDO,1632477:151398390,"27,077.71",Legal Aid Higher Crime
MOJ,LAA,23/01/19,Civil Representation,LEGAL AID FUND,EDWARD HAYES LLP,1633668:151437385,"27,637.73",Legal Aid Civil Representation
MOJ,LAA,23/01/19,Civil Representation,LEGAL AID FUND,ELIZABETH LUGG,1630819:3000001326410063,"29,548.80",Legal Aid Civil Representation
MOJ,LAA,23/01/19,Civil Representation,LEGAL AID FUND,ELIZABETH SHAW,1630688:3000002151820020,"37,116.63",Legal Aid Civil Representation
MOJ,LAA,23/01/19,Higher Crime,LEGAL AID FUND,ELLIOT MATHER LLP,1632440:151442661,"52,183.35",Legal Aid Higher Crime
MOJ,LAA,23/01/19,Civil Representation,LEGAL AID FUND,ELLIOT MATHER LLP,1631582:3000001977160003,"47,448.73",Legal Aid Civil Representation
MOJ,LAA,23/01/19,Higher Crime,LEGAL AID FUND,FARADAYS SOLICITORS LTD,1633445:151444556,"41,334.58",Legal Aid Higher Crime
MOJ,LAA,23/01/19,Higher Crime,LEGAL AID FUND,FOXES SOLICITORS,1631181:151423732,"39,021.02",Legal Aid Higher Crime
MOJ,LAA,23/01/19,Higher Crime,LEGAL AID FUND,FOXES SOLICITORS,1631181:151442299,"36,851.24",Legal Aid Higher Crime
MOJ,LAA,23/01/19,Civil Representation,LEGAL AID FUND,FRANCESCA P D WILEY QC,1632881:3000002625180010,"27,442.80",Legal Aid Civil Representation
MOJ,LAA,23/01/19,Higher Crime,LEGAL AID FUND,G T STEWART LTD,1632050:151422365,"27,123.32",Legal Aid Higher Crime
MOJ,LAA,23/01/19,Civil Representation,LEGAL AID FUND,GADSBY WICKS,1633565:151404899,"25,618.50",Legal Aid Civil Representation
MOJ,LAA,23/01/19,Civil Representation,LEGAL AID FUND,GERALD R BROWNE,1632907:3000002678970031,"35,622.04",Legal Aid Civil Representation
MOJ,LAA,23/01/19,Higher Crime,LEGAL AID FUND,GLAISYERS LLP,1633346:151398393,"44,737.75",Legal Aid Higher Crime
MOJ,LAA,23/01/19,Higher Crime,LEGAL AID FUND,H P GOWER SOLICITORS,1633304:151423470,"28,199.38",Legal Aid Higher Crime
MOJ,LAA,23/01/19,Civil Representation,LEGAL AID FUND,HANNAH J SIMPSON,1631084:3000001366840042,"34,114.82",Legal Aid Civil Representation
MOJ,LAA,23/01/19,Civil Representation,LEGAL AID FUND,HANNAH M MARKHAM QC,1630952:3000001366840043,"27,185.76",Legal Aid Civil Representation
MOJ,LAA,23/01/19,Higher Crime,LEGAL AID FUND,HARRIS SOLICITORS LTD,1631185:151422636,"29,664.55",Legal Aid Higher Crime
MOJ,LAA,23/01/19,Higher Crime,LEGAL AID FUND,HARWOOD SOLICITORS,1632212:151441573,"71,545.90",Legal Aid Higher Crime
MOJ,LAA,23/01/19,Higher Crime,LEGAL AID FUND,HARWOOD SOLICITORS,1632212:151423642,"26,049.95",Legal Aid Higher Crime
MOJ,LAA,23/01/19,Higher Crime,LEGAL AID FUND,HASAN SOLICITORS,1633675:151423720,"43,773.37",Legal Aid Higher Crime
MOJ,LAA,23/01/19,Higher Crime,LEGAL AID FUND,HE LAW LTD,1631172:151441621,"35,597.46",Legal Aid Higher Crime
MOJ,LAA,23/01/19,Higher Crime,LEGAL AID FUND,HEDLEY SOLICITORS,1631199:151415788,"37,296.80",Legal Aid Higher Crime
MOJ,LAA,23/01/19,Civil Representation,LEGAL AID FUND,HENRY HYAMS LTD,1633719:3000002678970032,"31,473.16",Legal Aid Civil Representation
MOJ,LAA,23/01/19,Higher Crime,LEGAL AID FUND,HGH CRIMINAL DEFENCE SOLICITORS,1631219:151442655,"72,372.67",Legal Aid Higher Crime
MOJ,LAA,23/01/19,Higher Crime,LEGAL AID FUND,HODGE JONES & ALLEN LLP,1631751:151442653,"59,005.50",Legal Aid Higher Crime
MOJ,LAA,23/01/19,Higher Crime,LEGAL AID FUND,HODGE JONES & ALLEN LLP,1631751:151441672,"26,314.46",Legal Aid Higher Crime
MOJ,LAA,23/01/19,Higher Crime,LEGAL AID FUND,HUGHMANS,1631917:151443829,"60,601.09",Legal Aid Higher Crime
MOJ,LAA,23/01/19,Higher Crime,LEGAL AID FUND,HURRAIRAH HARRIS SOLICITORS,1631173:151443619,"31,438.68",Legal Aid Higher Crime
MOJ,LAA,23/01/19,Higher Crime,LEGAL AID FUND,I B B SOLICITORS,1633379:151423280,"34,827.60",Legal Aid Higher Crime
MOJ,LAA,23/01/19,Civil Representation,LEGAL AID FUND,ISON HARRISON LTD,1631421:3000003508060012,"29,212.66",Legal Aid Civil Representation
MOJ,LAA,23/01/19,Civil Representation,LEGAL AID FUND,JACQUELINE RENTON,1632590:3000001937550030,"32,791.50",Legal Aid Civil Representation
MOJ,LAA,23/01/19,Higher Crime,LEGAL AID FUND,JAGDEV LEGAL,1630078:151422264,"89,975.11",Legal Aid Higher Crime
MOJ,LAA,23/01/19,Civil Representation,LEGAL AID FUND,JEREMY P WESTON,1633198:3000002976180018,"26,697.60",Legal Aid Civil Representation
MOJ,LAA,23/01/19,Civil Representation,LEGAL AID FUND,JEREMY P WESTON,1633198:3000001803640013RC,"(28,544.40)",Legal Aid Civil Representation
MOJ,LAA,23/01/19,Higher Crime,LEGAL AID FUND,JOE STONE,1630762:151397974,"58,239.28",Legal Aid Higher Crime
MOJ,LAA,23/01/19,Higher Crime,LEGAL AID FUND,JOHN DONKIN SOLICITORS LTD,1633694:151398201,"102,517.10",Legal Aid Higher Crime
MOJ,LAA,23/01/19,Civil Representation,LEGAL AID FUND,JOHN DONKIN SOLICITORS LTD,1633283:3000002466930034,"25,617.95",Legal Aid Civil Representation
MOJ,LAA,23/01/19,Civil Representation,LEGAL AID FUND,JULIA CHEETHAM,1632880:3000003234850016,"54,885.60",Legal Aid Civil Representation
MOJ,LAA,23/01/19,Civil Representation,LEGAL AID FUND,JULIA M GASPARRO,1630840:3000003067900012,"27,109.30",Legal Aid Civil Representation
MOJ,LAA,23/01/19,Higher Crime,LEGAL AID FUND,JVA LAW,1631332:151398222,"36,468.22",Legal Aid Higher Crime
MOJ,LAA,23/01/19,Civil Representation,LEGAL AID FUND,KATHARINE SCOTT,1630919:3000003727890012,"27,432.38",Legal Aid Civil Representation
MOJ,LAA,23/01/19,Civil Representation,LEGAL AID FUND,KATHRYN HUGHES,1630727:3000003284730015,"26,130.60",Legal Aid Civil Representation
MOJ,LAA,23/01/19,Civil Representation,LEGAL AID FUND,KENNETH BUSH LTD,1631462:3000002752880029,"42,748.40",Legal Aid Civil Representation
MOJ,LAA,23/01/19,Higher Crime,LEGAL AID FUND,KERIM FUAD QC,1631020:151398540,"48,994.72",Legal Aid Higher Crime
MOJ,LAA,23/01/19,Higher Crime,LEGAL AID FUND,LAM & MEERABUX SOLICITORS,1633323:151423251,"78,959.45",Legal Aid Higher Crime
MOJ,LAA,23/01/19,Higher Crime,LEGAL AID FUND,LAWSON & THOMPSON,1633646:151442465,"29,884.85",Legal Aid Higher Crime
MOJ,LAA,23/01/19,Higher Crime,LEGAL AID FUND,LEWIS NEDAS LAW LTD,1632055:151441732,"62,393.91",Legal Aid Higher Crime
MOJ,LAA,23/01/19,Higher Crime,LEGAL AID FUND,M K LAW SOLICITORS LTD,1631261:151423429,"60,152.98",Legal Aid Higher Crime
MOJ,LAA,23/01/19,Higher Crime,LEGAL AID FUND,MANN & CO SOLICITORS LTD,1633491:151442643,"105,857.75",Legal Aid Higher Crime
MOJ,LAA,23/01/19,Higher Crime,LEGAL AID FUND,MARTIN MURRAY & ASSOCIATES,1631883:151423795,"65,368.38",Legal Aid Higher Crime
MOJ,LAA,23/01/19,Civil Representation,LEGAL AID FUND,MASON BAGGOTT & GARTON,1631545:3000000615510017,"44,962.60",Legal Aid Civil Representation
MOJ,LAA,23/01/19,Civil Representation,LEGAL AID FUND,MASON BAGGOTT & GARTON,1631545:3000000615510016RC,"(40,478.40)",Legal Aid Civil Representation
MOJ,LAA,23/01/19,Higher Crime,LEGAL AID FUND,MICHAEL G BROMLEY-MARTIN QC,1631126:151398686,"36,960.00",Legal Aid Higher Crime
MOJ,LAA,23/01/19,Higher Crime,LEGAL AID FUND,MOHAMMED HUSSAIN SOLICITORS,1631275:151398411,"127,029.30",Legal Aid Higher Crime
MOJ,LAA,23/01/19,Higher Crime,LEGAL AID FUND,MONTAGUE SOLICITORS LTD,1631212:151422641,"28,314.44",Legal Aid Higher Crime
MOJ,LAA,23/01/19,Higher Crime,LEGAL AID FUND,MORRISON SPOWART LTD,1633458:151415794,"32,041.97",Legal Aid Higher Crime
MOJ,LAA,23/01/19,Higher Crime,LEGAL AID FUND,MTG SOLICITORS,1631209:151408226,"50,238.81",Legal Aid Higher Crime
MOJ,LAA,23/01/19,Higher Crime,LEGAL AID FUND,MURRAYS PARTNERSHIP SOLICITORS,1630120:151443843,"67,726.70",Legal Aid Higher Crime
MOJ,LAA,23/01/19,Higher Crime,LEGAL AID FUND,NELSON GUEST & PARTNERS,1631925:151422903,"32,517.52",Legal Aid Higher Crime
MOJ,LAA,23/01/19,Higher Crime,LEGAL AID FUND,NICOLA MERRICK,1633046:151423973,"35,481.00",Legal Aid Higher Crime
MOJ,LAA,23/01/19,Higher Crime,LEGAL AID FUND,NOBLE SOLICITORS,1631487:151422630,"26,820.01",Legal Aid Higher Crime
MOJ,LAA,23/01/19,Higher Crime,LEGAL AID FUND,NUNN RICKARD LITIGATION LTD,1631401:151423114,"107,970.13",Legal Aid Higher Crime
MOJ,LAA,23/01/19,Higher Crime,LEGAL AID FUND,O'KEEFFE SOLICITORS,1631875:151422530,"52,704.13",Legal Aid Higher Crime
MOJ,LAA,23/01/19,Civil Representation,LEGAL AID FUND,PAUL R GREANEY QC,1630632:3000002351290002,"36,432.00",Legal Aid Civil Representation
MOJ,LAA,23/01/19,Higher Crime,LEGAL AID FUND,PETHERBRIDGE BASSRA SOLICITORS LTD,1630040:151423523,"79,214.08",Legal Aid Higher Crime
MOJ,LAA,23/01/19,Higher Crime,LEGAL AID FUND,PHILIPPA M MCATASNEY QC,1630381:151397780,"29,686.39",Legal Aid Higher Crime
MOJ,LAA,23/01/19,Higher Crime,LEGAL AID FUND,PHILIPPA M MCATASNEY QC,1630381:151443474,"25,440.00",Legal Aid Higher Crime
MOJ,LAA,23/01/19,Higher Crime,LEGAL AID FUND,QUINN MELVILLE,1633502:151399094,"89,975.11",Legal Aid Higher Crime
MOJ,LAA,23/01/19,Civil Representation,LEGAL AID FUND,RAMSDENS SOLICITORS LLP,1630277:3000003198750010,"27,217.79",Legal Aid Civil Representation
MOJ,LAA,23/01/19,Higher Crime,LEGAL AID FUND,REEDS SOLICITORS LTD,1630052:151442649,"86,627.05",Legal Aid Higher Crime
MOJ,LAA,23/01/19,Civil Representation,LEGAL AID FUND,REEDS SOLICITORS LTD,1630273:3000004111240020,"25,899.67",Legal Aid Civil Representation
MOJ,LAA,23/01/19,Higher Crime,LEGAL AID FUND,RICHARD BROWN & CO,1633577:151423202,"89,762.36",Legal Aid Higher Crime
MOJ,LAA,23/01/19,Civil Representation,LEGAL AID FUND,RICHARD M A HADLEY,1630791:3000001660260016,"45,981.60",Legal Aid Civil Representation
MOJ,LAA,23/01/19,Higher Crime,LEGAL AID FUND,RICHARD P SUTTON QC,1632941:151444475,"51,660.00",Legal Aid Higher Crime
MOJ,LAA,23/01/19,Higher Crime,LEGAL AID FUND,RILEY HAYES & CO,1631494:151423300,"27,615.24",Legal Aid Higher Crime
MOJ,LAA,23/01/19,Higher Crime,LEGAL AID FUND,ROLAND ROBINSONS AND FENTONS LLP,1633778:151443195,"89,975.11",Legal Aid Higher Crime
MOJ,LAA,23/01/19,Higher Crime,LEGAL AID FUND,SALHAN & CO LTD,1631382:151443285,"89,975.11",Legal Aid Higher Crime
MOJ,LAA,23/01/19,Higher Crime,LEGAL AID FUND,SAM ROBINSON,1633186:151443708,"30,394.56",Legal Aid Higher Crime
MOJ,LAA,23/01/19,Higher Crime,LEGAL AID FUND,SARANGI COYLE SOLICITORS,1633809:151443788,"89,975.11",Legal Aid Higher Crime
MOJ,LAA,23/01/19,Higher Crime,LEGAL AID FUND,SEAN KIVDEH,1630716:151398036,"37,795.80",Legal Aid Higher Crime
MOJ,LAA,23/01/19,Higher Crime,LEGAL AID FUND,SHAFI SOLICITORS LLP,1632479:151398808,"39,523.79",Legal Aid Higher Crime
MOJ,LAA,23/01/19,Higher Crime,LEGAL AID FUND,SHEPPARDS SOLICITORS LTD,1631398:151444623,"29,664.55",Legal Aid Higher Crime
MOJ,LAA,23/01/19,Higher Crime,LEGAL AID FUND,SIMON BETHEL SOLICITORS,1633253:151423804,"61,003.78",Legal Aid Higher Crime
MOJ,LAA,23/01/19,Legal Help,LEGAL AID FUND,SIMPSON MILLAR SOLICITORS LLP,1631233:151403094,"113,658.59",Legal Aid Legal Help
MOJ,LAA,23/01/19,Higher Crime,LEGAL AID FUND,SMITH PARTNERSHIP,1633358:151444493,"89,975.11",Legal Aid Higher Crime
MOJ,LAA,23/01/19,Higher Crime,LEGAL AID FUND,SONN MACMILLAN WALKER LTD,1631922:151398177,"68,560.95",Legal Aid Higher Crime
MOJ,LAA,23/01/19,Civil Representation,LEGAL AID FUND,SORIA KAJUE,1632769:3000002061680022,"25,251.76",Legal Aid Civil Representation
MOJ,LAA,23/01/19,Higher Crime,LEGAL AID FUND,SPARTANS LAW LTD,1632048:151399488,"89,975.11",Legal Aid Higher Crime
MOJ,LAA,23/01/19,Higher Crime,LEGAL AID FUND,STEPHEN BURDON SOLICITORS,1633485:151423613,"29,664.55",Legal Aid Higher Crime
MOJ,LAA,23/01/19,Higher Crime,LEGAL AID FUND,STEPHEN P ROSE,1630332:151444466,"25,830.00",Legal Aid Higher Crime
MOJ,LAA,23/01/19,Higher Crime,LEGAL AID FUND,STOKOE PARTNERSHIP,1631912:151443827,"29,664.55",Legal Aid Higher Crime
MOJ,LAA,23/01/19,Higher Crime,LEGAL AID FUND,STUART MILLER SOLICITORS LTD,1631668:151423072,"105,857.75",Legal Aid Higher Crime
MOJ,LAA,23/01/19,Higher Crime,LEGAL AID FUND,THOMPSONS,1633892:151423268,"87,306.96",Legal Aid Higher Crime
MOJ,LAA,23/01/19,Higher Crime,LEGAL AID FUND,TIMOTHY J JACOBS,1629939:151399324,"25,044.72",Legal Aid Higher Crime
MOJ,LAA,23/01/19,Higher Crime,LEGAL AID FUND,TRANTERS SOLICITORS LTD,1631498:151398850,"85,684.55",Legal Aid Higher Crime
MOJ,LAA,23/01/19,Higher Crime,LEGAL AID FUND,TUCKERS SOLICITORS LLP,1633252:151408401,"89,975.11",Legal Aid Higher Crime
MOJ,LAA,23/01/19,Higher Crime,LEGAL AID FUND,VIENNA KANG ADVOCATES LTD,1632035:151443220,"30,756.59",Legal Aid Higher Crime
MOJ,LAA,23/01/19,Higher Crime,LEGAL AID FUND,WALKER LAW LTD- ADVOCATE,1629981:151398805,"29,296.08",Legal Aid Higher Crime
MOJ,LAA,23/01/19,Civil Representation,LEGAL AID FUND,WOODFINES LLP,1633400:3000001185000033,"28,955.66",Legal Aid Civil Representation
MOJ,LAA,23/01/19,Higher Crime,LEGAL AID FUND,YASMIN & SHAID SOLICITORS LTD,1633417:151398405,"105,857.75",Legal Aid Higher Crime
MOJ,LAA,24/01/19,EXP - PURCHASE OF GOODS/SERVICES - SUPPORT - HOSTING,ISD Management and Admin.,REDCENTRIC SOLUTIONS LTD,257931,"58,543.80",IT Costs
MOJ,LAA,24/01/19,EXP - PURCHASE OF GOODS/SERVICES - OTHER - Translation / Interpreting Services,Central Funds,THEBIGWORD INTERPRETING SERVICES LTD,90257926,"958,409.88",Interpreter/Translation Costs
MOJ,LAA,25/01/19,EXP - PURCHASE OF GOODS/SERVICES - OTHER - Translation / Interpreting Services,Central Funds,CLARION INTERPRETING LTD,60110,"25,908.58",Interpreter/Translation Costs
MOJ,LAA,25/01/19,EXP - PURCHASE OF GOODS/SERVICES - OTHER - Translation / Interpreting Services,Central Funds,THEBIGWORD INTERPRETING SERVICES LTD,90259845,"1,000,841.48",Interpreter/Translation Costs
MOJ,LAA,30/01/19,EXP - MISCELLANEOUS EXPENDITURE - Litigator,Central Funds,IMRAN KHAN AND PARTNERS,M1102735/119230,"27,270.41",Fund Costs
MOJ,LAA,30/01/19,EXP - PURCHASE OF GOODS/SERVICES - SUPPORT - LICENCES,Business Systems Mgmt,TRUSTMARQUE SOLUTIONS LTD,2277947,"30,678.75",IT Costs
MOJ,LAA,30/01/19,Higher Crime,LEGAL AID FUND,AB MACKENZIE SOLICITORS,1638716:151474784,"40,492.67",Legal Aid Higher Crime
MOJ,LAA,30/01/19,Legal Help,LEGAL AID FUND,ABBOTSTONE LAW LLP,1637470:151500954,"46,128.00",Legal Aid Legal Help
MOJ,LAA,30/01/19,Legal Help,LEGAL AID FUND,ABR SOLICITORS,1638962:151500639,"29,194.00",Legal Aid Legal Help
MOJ,LAA,30/01/19,Lower Crime,LEGAL AID FUND,ABV SOLICITORS,1636056:151501140,"67,600.00",Legal Aid Lower Crime
MOJ,LAA,30/01/19,Higher Crime,LEGAL AID FUND,ACHOM & PARTNERS,1638782:151464918,"89,975.11",Legal Aid Higher Crime
MOJ,LAA,30/01/19,Civil Representation,LEGAL AID FUND,ADELLE EVELEIGH-WINSTONE,1635712:3000002422960023RC,"(26,548.02)",Legal Aid Civil Representation
MOJ,LAA,30/01/19,Lower Crime,LEGAL AID FUND,ALBIN & CO LTD,1638907:151501923,"44,590.00",Legal Aid Lower Crime
MOJ,LAA,30/01/19,Lower Crime,LEGAL AID FUND,ALEXANDER BENNETT,1634469:151502569,"42,393.00",Legal Aid Lower Crime
MOJ,LAA,30/01/19,Lower Crime,LEGAL AID FUND,ALEXANDER BENNETT,1637386:151501405,"25,400.00",Legal Aid Lower Crime
MOJ,LAA,30/01/19,Civil Representation,LEGAL AID FUND,ALICE DARIAN,1635398:3000003680730017,"58,525.20",Legal Aid Civil Representation
MOJ,LAA,30/01/19,Lower Crime,LEGAL AID FUND,ALLEN HOOLE LTD,1635911:151501340,"37,700.00",Legal Aid Lower Crime
MOJ,LAA,30/01/19,Lower Crime,LEGAL AID FUND,ALLEN HOOLE LTD,1634438:151502396,"31,333.00",Legal Aid Lower Crime
MOJ,LAA,30/01/19,Civil Representation,LEGAL AID FUND,ANTHONY J N KIRK QC,1634821:3000003825290020,"28,625.40",Legal Aid Civil Representation
MOJ,LAA,30/01/19,Higher Crime,LEGAL AID FUND,APPLEBY HOPE & MATTHEWS,1636487:151454629,"55,233.83",Legal Aid Higher Crime
MOJ,LAA,30/01/19,Legal Help,LEGAL AID FUND,APPLEMAN LEGAL,1634594:151500959,"61,818.00",Legal Aid Legal Help
MOJ,LAA,30/01/19,Higher Crime,LEGAL AID FUND,ARLETTE M PIERCY,1638537:151463793,"54,748.68",Legal Aid Higher Crime
MOJ,LAA,30/01/19,Lower Crime,LEGAL AID FUND,ASGHAR & CO,1639643:151501672,"29,364.00",Legal Aid Lower Crime
MOJ,LAA,30/01/19,Higher Crime,LEGAL AID FUND,ASHLEY HENDRON,1635354:151454838,"37,815.91",Legal Aid Higher Crime
MOJ,LAA,30/01/19,Lower Crime,LEGAL AID FUND,BAINS SOLICITORS,1636199:151501507,"30,264.00",Legal Aid Lower Crime
MOJ,LAA,30/01/19,Higher Crime,LEGAL AID FUND,BALAAL KHAN & PARTNERS LTD,1634304:151475708,"89,975.11",Legal Aid Higher Crime
MOJ,LAA,30/01/19,Legal Help,LEGAL AID FUND,BANKFIELD HEATH SOLICITORS,1637553:151500818,"26,443.00",Legal Aid Legal Help
MOJ,LAA,30/01/19,Higher Crime,LEGAL AID FUND,BANNISTER & CO,1636677:151475406,"25,586.15",Legal Aid Higher Crime
MOJ,LAA,30/01/19,Higher Crime,LEGAL AID FUND,BARK & CO,1636510:151465043,"66,142.61",Legal Aid Higher Crime
MOJ,LAA,30/01/19,Higher Crime,LEGAL AID FUND,BARK & CO,1636510:151511362,"37,791.76",Legal Aid Higher Crime
MOJ,LAA,30/01/19,Legal Help,LEGAL AID FUND,BARNES HARRILD & DYER,1636638:151500441,"26,887.00",Legal Aid Legal Help
MOJ,LAA,30/01/19,Civil Representation,LEGAL AID FUND,BASHARAT HUSSAIN,1638238:3000003760140009,"66,412.80",Legal Aid Civil Representation
MOJ,LAA,30/01/19,Higher Crime,LEGAL AID FUND,BENJAMIN J G GORDON,1638345:151464790,"31,500.00",Legal Aid Higher Crime
MOJ,LAA,30/01/19,Higher Crime,LEGAL AID FUND,BERKELEY SQUARE SOLICITORS LTD,1637099:151475388,"105,857.75",Legal Aid Higher Crime
MOJ,LAA,30/01/19,Higher Crime,LEGAL AID FUND,BERRI'S LAW LLP,1634308:151476329,"61,788.29",Legal Aid Higher Crime
MOJ,LAA,30/01/19,Higher Crime,LEGAL AID FUND,BERRI'S LAW LLP,1634308:151511086,"53,787.04",Legal Aid Higher Crime
MOJ,LAA,30/01/19,Lower Crime,LEGAL AID FUND,BESWICKS SOLICITORS LLP,1639491:151502001,"35,600.00",Legal Aid Lower Crime
MOJ,LAA,30/01/19,Higher Crime,LEGAL AID FUND,BHANDAL LAW,1634473:151485067,"89,975.11",Legal Aid Higher Crime
MOJ,LAA,30/01/19,Lower Crime,LEGAL AID FUND,BHATIA BEST LTD,1639262:151501068,"90,100.00",Legal Aid Lower Crime
MOJ,LAA,30/01/19,Lower Crime,LEGAL AID FUND,BHATIA BEST LTD,1639254:151501071,"28,300.00",Legal Aid Lower Crime
MOJ,LAA,30/01/19,Legal Help,LEGAL AID FUND,BINDMANS LLP,1636248:151515497,"40,000.00",Legal Aid Legal Help
MOJ,LAA,30/01/19,Higher Crime,LEGAL AID FUND,BIRD & CO SOLICITORS LLP,1639203:151476075,"29,935.58",Legal Aid Higher Crime
MOJ,LAA,30/01/19,Lower Crime,LEGAL AID FUND,BIRDS SOLICITORS LTD,1638930:151501130,"103,200.00",Legal Aid Lower Crime
MOJ,LAA,30/01/19,Lower Crime,LEGAL AID FUND,BISHOP & LIGHT SOLICITORS LTD,1636662:151501307,"27,400.00",Legal Aid Lower Crime
MOJ,LAA,30/01/19,Legal Help,LEGAL AID FUND,BISON SOLICITORS LTD,1637397:151481866,"84,823.00",Legal Aid Legal Help
MOJ,LAA,30/01/19,Legal Help,LEGAL AID FUND,BISON SOLICITORS LTD,1637397:151481865,"71,000.00",Legal Aid Legal Help
MOJ,LAA,30/01/19,Legal Help,LEGAL AID FUND,BISON SOLICITORS LTD,1637397:151481858,"70,000.00",Legal Aid Legal Help
MOJ,LAA,30/01/19,Lower Crime,LEGAL AID FUND,BJ & CO SOLICITORS LTD T/A  BRIAN JACKSON & CO,1636136:151501185,"32,100.00",Legal Aid Lower Crime
MOJ,LAA,30/01/19,Lower Crime,LEGAL AID FUND,BLACKFORDS LLP,1639615:151501603,"45,932.00",Legal Aid Lower Crime
MOJ,LAA,30/01/19,Higher Crime,LEGAL AID FUND,BLACKFORDS LLP,1639615:151454437,"33,915.98",Legal Aid Higher Crime
MOJ,LAA,30/01/19,Higher Crime,LEGAL AID FUND,BLACKFORDS LLP,1639615:151453979,"32,517.52",Legal Aid Higher Crime
MOJ,LAA,30/01/19,Higher Crime,LEGAL AID FUND,BLACKFORDS LLP,1639615:151475154,"26,619.47",Legal Aid Higher Crime
MOJ,LAA,30/01/19,Lower Crime,LEGAL AID FUND,BLACKWELLS,1638951:151501233,"35,000.00",Legal Aid Lower Crime
MOJ,LAA,30/01/19,Lower Crime,LEGAL AID FUND,BOBBETTS MACKAN,1636693:151501333,"42,000.00",Legal Aid Lower Crime
MOJ,LAA,30/01/19,Lower Crime,LEGAL AID FUND,BOND JOSEPH,1636142:151501890,"60,380.00",Legal Aid Lower Crime
MOJ,LAA,30/01/19,Lower Crime,LEGAL AID FUND,BREYDONS SOLICITORS LTD,1634583:151502113,"26,945.00",Legal Aid Lower Crime
MOJ,LAA,30/01/19,Civil Representation,LEGAL AID FUND,BRIGHT & SONS (SOLICITORS),1639299:3000001477250014,"28,167.56",Legal Aid Civil Representation
MOJ,LAA,30/01/19,Legal Help,LEGAL AID FUND,BRIGHTON HOUSING TRUST,1638639:151500725,"39,351.00",Legal Aid Legal Help
MOJ,LAA,30/01/19,Legal Help,LEGAL AID FUND,BURKE NIAZI  LTD,1639445:151481853,"77,700.00",Legal Aid Legal Help
MOJ,LAA,30/01/19,Legal Help,LEGAL AID FUND,BURKE NIAZI  LTD,1639445:151481852,"71,000.00",Legal Aid Legal Help
MOJ,LAA,30/01/19,Legal Help,LEGAL AID FUND,BURKE NIAZI  LTD,1639445:151481851,"70,000.00",Legal Aid Legal Help
MOJ,LAA,30/01/19,Legal Help,LEGAL AID FUND,BURTON & BURTON SOLICITOR LTD,1638683:151500738,"29,185.00",Legal Aid Legal Help
MOJ,LAA,30/01/19,Higher Crime,LEGAL AID FUND,BURTON COPELAND LLP,1639084:151508744,"37,791.76",Legal Aid Higher Crime
MOJ,LAA,30/01/19,Lower Crime,LEGAL AID FUND,BURTON COPELAND LLP,1639084:151501868,"33,174.00",Legal Aid Lower Crime
MOJ,LAA,30/01/19,Legal Help,LEGAL AID FUND,BUTLER & CO,1636029:151500063,"30,000.00",Legal Aid Legal Help
MOJ,LAA,30/01/19,Higher Crime,LEGAL AID FUND,CANTARIS LOCKE SOLICITORS,1637114:151464189,"68,489.14",Legal Aid Higher Crime
MOJ,LAA,30/01/19,Lower Crime,LEGAL AID FUND,CARR & CO,1639269:151501231,"27,672.00",Legal Aid Lower Crime
MOJ,LAA,30/01/19,Lower Crime,LEGAL AID FUND,CARRINGTONS SOLICITORS,1638851:151501510,"147,970.00",Legal Aid Lower Crime
MOJ,LAA,30/01/19,Higher Crime,LEGAL AID FUND,CARSON KAYE SOLICITORS,1637314:151454810,"67,726.70",Legal Aid Higher Crime
MOJ,LAA,30/01/19,Higher Crime,LEGAL AID FUND,CARSON KAYE SOLICITORS,1637314:151508685,"29,447.85",Legal Aid Higher Crime
MOJ,LAA,30/01/19,Lower Crime,LEGAL AID FUND,CARTER OSBORNE LTD,1639199:151501508,"101,005.00",Legal Aid Lower Crime
MOJ,LAA,30/01/19,Legal Help,LEGAL AID FUND,CARTWRIGHT KING LTD,1636092:151500593,"46,514.00",Legal Aid Legal Help
MOJ,LAA,30/01/19,Lower Crime,LEGAL AID FUND,CARTWRIGHT KING LTD,1636092:151501516,"31,003.00",Legal Aid Lower Crime
MOJ,LAA,30/01/19,Civil Representation,LEGAL AID FUND,CARTWRIGHT KING LTD,1638610:3000000801270012,"25,605.84",Legal Aid Civil Representation
MOJ,LAA,30/01/19,Higher Crime,LEGAL AID FUND,CHARLES ALLOTEY & CO,1639600:151464245,"40,492.67",Legal Aid Higher Crime
MOJ,LAA,30/01/19,Civil Representation,LEGAL AID FUND,CHARLES G HYDE QC,1635571:3000003122340055,"101,800.80",Legal Aid Civil Representation
MOJ,LAA,30/01/19,Higher Crime,LEGAL AID FUND,CHARLES STRACHAN SOLICITORS LTD,1635936:151508690,"88,135.22",Legal Aid Higher Crime
MOJ,LAA,30/01/19,Higher Crime,LEGAL AID FUND,CITY LAW CHAMBERS LTD,1635926:151511287,"41,690.69",Legal Aid Higher Crime
MOJ,LAA,30/01/19,Legal Help,LEGAL AID FUND,CJCH SOLICITORS,1634664:151500961,"27,934.00",Legal Aid Legal Help
MOJ,LAA,30/01/19,Lower Crime,LEGAL AID FUND,CJH SOLICITORS,1636188:151501090,"28,500.00",Legal Aid Lower Crime
MOJ,LAA,30/01/19,Lower Crime,LEGAL AID FUND,CLARKE KIERNAN LLP,1639012:151501879,"25,277.00",Legal Aid Lower Crime
MOJ,LAA,30/01/19,Higher Crime,LEGAL AID FUND,CLIFFORD JOHNSTON & CO,1639082:151510376,"54,536.19",Legal Aid Higher Crime
MOJ,LAA,30/01/19,Higher Crime,LEGAL AID FUND,CLIFFORD JOHNSTON & CO,1639082:151486277,"35,438.92",Legal Aid Higher Crime
MOJ,LAA,30/01/19,Higher Crime,LEGAL AID FUND,CLIVE REES & ASSOCIATES,1635941:151509842,"26,619.47",Legal Aid Higher Crime
MOJ,LAA,30/01/19,Higher Crime,LEGAL AID FUND,CLIVE STOCKWELL,1635550:151454194,"61,847.27",Legal Aid Higher Crime
MOJ,LAA,30/01/19,Legal Help,LEGAL AID FUND,CMHT SOLICITORS LLP,1639499:151500227,"34,552.00",Legal Aid Legal Help
MOJ,LAA,30/01/19,Lower Crime,LEGAL AID FUND,COBLEYS SOLICITORS LTD,1639021:151501702,"25,193.00",Legal Aid Lower Crime
MOJ,LAA,30/01/19,Lower Crime,LEGAL AID FUND,CONNOR ROSS-BROWN SOLICITORS,1637752:151501399,"35,000.00",Legal Aid Lower Crime
MOJ,LAA,30/01/19,Lower Crime,LEGAL AID FUND,CRIMINAL DEFENCE MILTON KEYNES LTD,1638699:151501316,"29,000.00",Legal Aid Lower Crime
MOJ,LAA,30/01/19,Higher Crime,LEGAL AID FUND,CRIMINAL DEFENCE SOLICITORS,1636017:151475289,"75,482.43",Legal Aid Higher Crime
MOJ,LAA,30/01/19,Lower Crime,LEGAL AID FUND,CRIMINAL DEFENCE SOLICITORS,1636017:151501164,"26,800.00",Legal Aid Lower Crime
MOJ,LAA,30/01/19,Lower Crime,LEGAL AID FUND,CROWE HUMBLE WESENCRAFT,1639001:151501203,"50,700.00",Legal Aid Lower Crime
MOJ,LAA,30/01/19,Lower Crime,LEGAL AID FUND,CROWN DEFENCE SOLICITORS,1635034:151502200,"32,885.00",Legal Aid Lower Crime
MOJ,LAA,30/01/19,Civil Representation,LEGAL AID FUND,CYRUS R LARIZADEH,1638232:3000002677860013,"49,032.00",Legal Aid Civil Representation
MOJ,LAA,30/01/19,Civil Representation,LEGAL AID FUND,D S LEGAL,1635027:3000003127490144,"92,604.90",Legal Aid Civil Representation
MOJ,LAA,30/01/19,Higher Crime,LEGAL AID FUND,DALTON HOLMES GRAY,1639164:151475747,"105,857.75",Legal Aid Higher Crime
MOJ,LAA,30/01/19,Lower Crime,LEGAL AID FUND,DALTON HOLMES GRAY,1639164:151501664,"34,054.00",Legal Aid Lower Crime
MOJ,LAA,30/01/19,Higher Crime,LEGAL AID FUND,DANIEL S ROBINSON,1637790:151454915,"37,768.97",Legal Aid Higher Crime
MOJ,LAA,30/01/19,Legal Help,LEGAL AID FUND,DAVID GRAY LLP,1638956:151500555,"38,530.00",Legal Aid Legal Help
MOJ,LAA,30/01/19,Lower Crime,LEGAL AID FUND,DEFENCE LAW LTD,1638615:151502160,"28,522.00",Legal Aid Lower Crime
MOJ,LAA,30/01/19,Higher Crime,LEGAL AID FUND,DHANJU MCLEAN ARORA SOLICITORS,1638861:151508683,"89,975.11",Legal Aid Higher Crime
MOJ,LAA,30/01/19,Lower Crime,LEGAL AID FUND,DJMS SOLICITORS LTD,1638741:151501721,"27,554.00",Legal Aid Lower Crime
MOJ,LAA,30/01/19,Lower Crime,LEGAL AID FUND,DODDS SOLICITORS LLP,1636269:151501498,"26,289.00",Legal Aid Lower Crime
MOJ,LAA,30/01/19,Legal Help,LEGAL AID FUND,DONOVAN NEWTON SOLICITORS,1638824:151500569,"46,663.00",Legal Aid Legal Help
MOJ,LAA,30/01/19,Higher Crime,LEGAL AID FUND,DORIAN LOVELL-PANK QC,1634890:151465131,"29,882.45",Legal Aid Higher Crime
MOJ,LAA,30/01/19,Lower Crime,LEGAL AID FUND,DRISCOLL YOUNG SOLICITORS LTD,1636187:151501439,"25,250.00",Legal Aid Lower Crime
MOJ,LAA,30/01/19,Lower Crime,LEGAL AID FUND,DUNCAN LEWIS SOLICITORS  LTD,1639076:151501149,"102,700.00",Legal Aid Lower Crime
MOJ,LAA,30/01/19,Legal Help,LEGAL AID FUND,DUNCAN LEWIS SOLICITORS  LTD,1638984:151481700,"99,000.00",Legal Aid Legal Help
MOJ,LAA,30/01/19,Legal Help,LEGAL AID FUND,DUNCAN LEWIS SOLICITORS  LTD,1638984:151481701,"98,000.00",Legal Aid Legal Help
MOJ,LAA,30/01/19,Legal Help,LEGAL AID FUND,DUNCAN LEWIS SOLICITORS  LTD,1639076:151481775,"98,000.00",Legal Aid Legal Help
MOJ,LAA,30/01/19,Legal Help,LEGAL AID FUND,DUNCAN LEWIS SOLICITORS  LTD,1638984:151481702,"97,000.00",Legal Aid Legal Help
MOJ,LAA,30/01/19,Legal Help,LEGAL AID FUND,DUNCAN LEWIS SOLICITORS  LTD,1638984:151481773,"96,000.00",Legal Aid Legal Help
MOJ,LAA,30/01/19,Legal Help,LEGAL AID FUND,DUNCAN LEWIS SOLICITORS  LTD,1639076:151481777,"85,400.00",Legal Aid Legal Help
MOJ,LAA,30/01/19,Legal Help,LEGAL AID FUND,DUNCAN LEWIS SOLICITORS  LTD,1639076:151481776,"85,000.00",Legal Aid Legal Help
MOJ,LAA,30/01/19,Legal Help,LEGAL AID FUND,DUNCAN LEWIS SOLICITORS  LTD,1637392:151500201,"59,300.00",Legal Aid Legal Help
MOJ,LAA,30/01/19,Higher Crime,LEGAL AID FUND,DUNCAN LEWIS SOLICITORS  LTD,1639076:151485974,"59,015.35",Legal Aid Higher Crime
MOJ,LAA,30/01/19,Legal Help,LEGAL AID FUND,DUNCAN LEWIS SOLICITORS  LTD,1636770:151500924,"34,031.00",Legal Aid Legal Help
MOJ,LAA,30/01/19,Lower Crime,LEGAL AID FUND,DUNCAN LEWIS SOLICITORS  LTD,1638984:151501633,"31,395.00",Legal Aid Lower Crime
MOJ,LAA,30/01/19,Higher Crime,LEGAL AID FUND,EBR ATTRIDGE LLP,1638888:151475257,"40,944.89",Legal Aid Higher Crime
MOJ,LAA,30/01/19,Lower Crime,LEGAL AID FUND,EBR ATTRIDGE LLP,1638888:151501598,"39,805.00",Legal Aid Lower Crime
MOJ,LAA,30/01/19,Lower Crime,LEGAL AID FUND,EBR ATTRIDGE LLP,1638794:151501597,"30,540.00",Legal Aid Lower Crime
MOJ,LAA,30/01/19,Higher Crime,LEGAL AID FUND,EBR ATTRIDGE LLP,1638794:151509107,"25,902.45",Legal Aid Higher Crime
MOJ,LAA,30/01/19,Higher Crime,LEGAL AID FUND,EDWARD FAIL BRADSHAW & WATERSON,1636868:151454443,"63,244.96",Legal Aid Higher Crime
MOJ,LAA,30/01/19,Civil Representation,LEGAL AID FUND,EDWARD LLOYD-JONES,1634805:3000002553540022,"34,109.10",Legal Aid Civil Representation
MOJ,LAA,30/01/19,Legal Help,LEGAL AID FUND,ELDER RAHIMI LIMITED,1639088:151500486,"61,385.00",Legal Aid Legal Help
MOJ,LAA,30/01/19,Lower Crime,LEGAL AID FUND,ELLIOT MATHER LLP,1636376:151501086,"28,800.00",Legal Aid Lower Crime
MOJ,LAA,30/01/19,Civil Representation,LEGAL AID FUND,ELLIOT MATHER LLP,1636376:3000002946670012,"25,632.06",Legal Aid Civil Representation
MOJ,LAA,30/01/19,Higher Crime,LEGAL AID FUND,EMILY COOK,1638549:151453912,"32,693.76",Legal Aid Higher Crime
MOJ,LAA,30/01/19,Legal Help,LEGAL AID FUND,FADIGA & CO LTD,1639384:151500436,"49,937.00",Legal Aid Legal Help
MOJ,LAA,30/01/19,Lower Crime,LEGAL AID FUND,FARLEYS SOLICITORS LLP,1639451:151501255,"25,700.00",Legal Aid Lower Crime
MOJ,LAA,30/01/19,Higher Crime,LEGAL AID FUND,FIELDINGS PORTER SOLICITORS,1634810:151511268,"36,993.87",Legal Aid Higher Crime
MOJ,LAA,30/01/19,Higher Crime,LEGAL AID FUND,FIONA N O MCADDY,1637289:151454894,"38,100.31",Legal Aid Higher Crime
MOJ,LAA,30/01/19,Lower Crime,LEGAL AID FUND,FMW LAW LTD,1636645:151501577,"35,315.00",Legal Aid Lower Crime
MOJ,LAA,30/01/19,Lower Crime,LEGAL AID FUND,FORBES SOLICITORS,1636265:151501264,"37,000.00",Legal Aid Lower Crime
MOJ,LAA,30/01/19,Legal Help,LEGAL AID FUND,FOUNTAIN SOLICITORS LTD,1638880:151500041,"77,300.00",Legal Aid Legal Help
MOJ,LAA,30/01/19,Civil Representation,LEGAL AID FUND,FRANCES J JUDD,1638259:3000002274480024,"30,380.40",Legal Aid Civil Representation
MOJ,LAA,30/01/19,Lower Crime,LEGAL AID FUND,FREEMANS SOLICITORS,1639594:151501159,"25,000.00",Legal Aid Lower Crime
MOJ,LAA,30/01/19,Lower Crime,LEGAL AID FUND,G T STEWART LTD,1638731:151502103,"58,062.00",Legal Aid Lower Crime
MOJ,LAA,30/01/19,Lower Crime,LEGAL AID FUND,G T STEWART LTD,1636002:151501669,"56,386.00",Legal Aid Lower Crime
MOJ,LAA,30/01/19,Higher Crime,LEGAL AID FUND,G T STEWART LTD,1638734:151466136,"37,548.90",Legal Aid Higher Crime
MOJ,LAA,30/01/19,Higher Crime,LEGAL AID FUND,G T STEWART LTD,1634975:151485507,"28,675.68",Legal Aid Higher Crime
MOJ,LAA,30/01/19,Lower Crime,LEGAL AID FUND,GAMMON PIERCY & GAIGER,1639625:151501905,"66,822.00",Legal Aid Lower Crime
MOJ,LAA,30/01/19,Lower Crime,LEGAL AID FUND,GARTSIDES,1639471:151501437,"37,165.00",Legal Aid Lower Crime
MOJ,LAA,30/01/19,Civil Representation,LEGAL AID FUND,GEMMA FARRINGTON,1638009:3000000698500022,"62,799.63",Legal Aid Civil Representation
MOJ,LAA,30/01/19,Civil Representation,LEGAL AID FUND,GEMMA M TAYLOR,1638302:3000003761550022,"41,279.45",Legal Aid Civil Representation
MOJ,LAA,30/01/19,Civil Representation,LEGAL AID FUND,GEMMA M TAYLOR,1638302:3000003808020024,"26,195.40",Legal Aid Civil Representation
MOJ,LAA,30/01/19,Lower Crime,LEGAL AID FUND,GEOFF WHITE & CO,1638791:151501892,"25,431.00",Legal Aid Lower Crime
MOJ,LAA,30/01/19,Lower Crime,LEGAL AID FUND,GEOFFREY FORRESTER & CO,1639349:151501198,"28,100.00",Legal Aid Lower Crime
MOJ,LAA,30/01/19,Lower Crime,LEGAL AID FUND,GEPP & SONS SOLICITORS,1639213:151501108,"25,800.00",Legal Aid Lower Crime
MOJ,LAA,30/01/19,Lower Crime,LEGAL AID FUND,GHP LEGAL,1636203:151501066,"43,900.00",Legal Aid Lower Crime
MOJ,LAA,30/01/19,Legal Help,LEGAL AID FUND,GLEDHILL GILL SOLICITORS,1636656:151500258,"42,982.00",Legal Aid Legal Help
MOJ,LAA,30/01/19,Lower Crime,LEGAL AID FUND,GOLDKORNS,1638729:151502054,"25,715.00",Legal Aid Lower Crime
MOJ,LAA,30/01/19,Lower Crime,LEGAL AID FUND,GOMER WILLIAMS,1636735:151501450,"27,078.00",Legal Aid Lower Crime
MOJ,LAA,30/01/19,Lower Crime,LEGAL AID FUND,GOODALL BARNETT JAMES SOLICITORS,1639456:151501298,"27,100.00",Legal Aid Lower Crime
MOJ,LAA,30/01/19,Higher Crime,LEGAL AID FUND,GORDON SHINE & COMPANY SOLICITORS,1636684:151475942,"76,978.34",Legal Aid Higher Crime
MOJ,LAA,30/01/19,Higher Crime,LEGAL AID FUND,GORDON SHINE & COMPANY SOLICITORS,1636684:151484703,"38,829.28",Legal Aid Higher Crime
MOJ,LAA,30/01/19,Lower Crime,LEGAL AID FUND,GRECH GOODEN SOLICITORS LTD,1635944:151501467,"28,393.00",Legal Aid Lower Crime
MOJ,LAA,30/01/19,Higher Crime,LEGAL AID FUND,GREEN & CO,1636423:151476208,"41,834.18",Legal Aid Higher Crime
MOJ,LAA,30/01/19,Legal Help,LEGAL AID FUND,GUILE NICHOLAS-INC DONALD GALBRAITH & CO,1638882:151500112,"80,000.00",Legal Aid Legal Help
MOJ,LAA,30/01/19,Lower Crime,LEGAL AID FUND,GURNEY HARDEN SOLICITORS LTD,1638701:151501883,"25,526.00",Legal Aid Lower Crime
MOJ,LAA,30/01/19,Lower Crime,LEGAL AID FUND,GWB HARTHILLS LLP,1638948:151501763,"51,512.00",Legal Aid Lower Crime
MOJ,LAA,30/01/19,Lower Crime,LEGAL AID FUND,H P GOWER SOLICITORS,1636751:151502141,"45,140.00",Legal Aid Lower Crime
MOJ,LAA,30/01/19,Lower Crime,LEGAL AID FUND,HARRIS CUFFARO & NICHOLS,1636529:151501104,"44,500.00",Legal Aid Lower Crime
MOJ,LAA,30/01/19,Higher Crime,LEGAL AID FUND,HARRIS SOLICITORS LTD,1636813:151485994,"67,531.19",Legal Aid Higher Crime
MOJ,LAA,30/01/19,Higher Crime,LEGAL AID FUND,HARRIS SOLICITORS LTD,1636813:151508615,"29,664.55",Legal Aid Higher Crime
MOJ,LAA,30/01/19,Lower Crime,LEGAL AID FUND,HARRIS SOLICITORS LTD,1636813:151502122,"26,364.00",Legal Aid Lower Crime
MOJ,LAA,30/01/19,Higher Crime,LEGAL AID FUND,HARWOOD SOLICITORS,1634564:151454822,"65,378.40",Legal Aid Higher Crime
MOJ,LAA,30/01/19,Lower Crime,LEGAL AID FUND,HASKELL & CO,1635899:151501882,"39,108.00",Legal Aid Lower Crime
MOJ,LAA,30/01/19,Lower Crime,LEGAL AID FUND,HDH LAW,1636836:151501390,"25,000.00",Legal Aid Lower Crime
MOJ,LAA,30/01/19,Civil Representation,LEGAL AID FUND,HECHT MONTGOMERY SOLICITORS,1637669:3000002942730008,"47,718.41",Legal Aid Civil Representation
MOJ,LAA,30/01/19,Higher Crime,LEGAL AID FUND,HEDLEY SOLICITORS,1638608:151474542,"98,008.80",Legal Aid Higher Crime
MOJ,LAA,30/01/19,Civil Representation,LEGAL AID FUND,HELEN E PRINN,1638284:3000002625180011,"30,640.31",Legal Aid Civil Representation
MOJ,LAA,30/01/19,Higher Crime,LEGAL AID FUND,HELENA DUONG,1637688:151464873,"34,800.00",Legal Aid Higher Crime
MOJ,LAA,30/01/19,Lower Crime,LEGAL AID FUND,HENNESSY & HAMMUDI,1635973:151501323,"60,000.00",Legal Aid Lower Crime
MOJ,LAA,30/01/19,Lower Crime,LEGAL AID FUND,HENRY HYAMS LTD,1636368:151501786,"25,324.00",Legal Aid Lower Crime
MOJ,LAA,30/01/19,Lower Crime,LEGAL AID FUND,HENRY'S SOLICITORS LTD,1636104:151501873,"36,400.00",Legal Aid Lower Crime
MOJ,LAA,30/01/19,Lower Crime,LEGAL AID FUND,HILL TWINE,1634705:151502214,"27,885.00",Legal Aid Lower Crime
MOJ,LAA,30/01/19,Lower Crime,LEGAL AID FUND,HINE SOLICITORS,1634434:151502400,"46,562.00",Legal Aid Lower Crime
MOJ,LAA,30/01/19,Lower Crime,LEGAL AID FUND,HODGE JONES & ALLEN LLP,1639516:151501653,"33,976.00",Legal Aid Lower Crime
MOJ,LAA,30/01/19,Higher Crime,LEGAL AID FUND,HODGE JONES & ALLEN LLP,1639516:151510594,"31,927.75",Legal Aid Higher Crime
MOJ,LAA,30/01/19,Lower Crime,LEGAL AID FUND,HORSMAN SOLICITORS LTD,1636506:151501886,"38,503.00",Legal Aid Lower Crime
MOJ,LAA,30/01/19,Lower Crime,LEGAL AID FUND,HOWARD & BYRNE SOLICITORS,1638927:151501230,"46,000.00",Legal Aid Lower Crime
MOJ,LAA,30/01/19,Lower Crime,LEGAL AID FUND,HOWARD BERNSTEIN SOLICITORS,1636809:151502096,"25,064.00",Legal Aid Lower Crime
MOJ,LAA,30/01/19,Legal Help,LEGAL AID FUND,HOWE & CO,1638950:151500480,"53,433.00",Legal Aid Legal Help
MOJ,LAA,30/01/19,Lower Crime,LEGAL AID FUND,HOWELL HYLTON LTD,1639151:151501931,"25,423.00",Legal Aid Lower Crime
MOJ,LAA,30/01/19,Lower Crime,LEGAL AID FUND,HOWELLS LLP,1636444:151501219,"39,000.00",Legal Aid Lower Crime
MOJ,LAA,30/01/19,Legal Help,LEGAL AID FUND,HOWELLS LLP,1636444:151500082,"33,500.00",Legal Aid Legal Help
MOJ,LAA,30/01/19,Higher Crime,LEGAL AID FUND,HUSSAIN SOLICITORS LTD,1638897:151453909,"89,975.11",Legal Aid Higher Crime
MOJ,LAA,30/01/19,Lower Crime,LEGAL AID FUND,I B B SOLICITORS,1635993:151501137,"50,700.00",Legal Aid Lower Crime
MOJ,LAA,30/01/19,Lower Crime,LEGAL AID FUND,INSTALAW,1637310:151502271,"82,375.00",Legal Aid Lower Crime
MOJ,LAA,30/01/19,Lower Crime,LEGAL AID FUND,IRVINE THANVI NATAS SOLICITORS,1636111:151501123,"43,500.00",Legal Aid Lower Crime
MOJ,LAA,30/01/19,Lower Crime,LEGAL AID FUND,ISON HARRISON LTD,1638890:151501417,"28,900.00",Legal Aid Lower Crime
MOJ,LAA,30/01/19,Lower Crime,LEGAL AID FUND,J D SOLICITORS,1637184:151502444,"49,140.00",Legal Aid Lower Crime
MOJ,LAA,30/01/19,Legal Help,LEGAL AID FUND,J D SPICER ZEB,1639518:151481855,"93,000.00",Legal Aid Legal Help
MOJ,LAA,30/01/19,Lower Crime,LEGAL AID FUND,J D SPICER ZEB,1639519:151501614,"42,405.00",Legal Aid Lower Crime
MOJ,LAA,30/01/19,Higher Crime,LEGAL AID FUND,J DEXTER DIAS,1634886:151453389,"40,648.39",Legal Aid Higher Crime
MOJ,LAA,30/01/19,Legal Help,LEGAL AID FUND,JACKSON LEES GROUP LTD,1637841:151500929,"67,739.00",Legal Aid Legal Help
MOJ,LAA,30/01/19,Lower Crime,LEGAL AID FUND,JACKSON LEES GROUP LTD,1637841:151502197,"38,361.00",Legal Aid Lower Crime
MOJ,LAA,30/01/19,Higher Crime,LEGAL AID FUND,JACOBS & TODD,1637692:151511345,"28,813.57",Legal Aid Higher Crime
MOJ,LAA,30/01/19,Higher Crime,LEGAL AID FUND,JAMES D MCCRINDELL,1638321:151465035,"26,882.76",Legal Aid Higher Crime
MOJ,LAA,30/01/19,Higher Crime,LEGAL AID FUND,JAMES M HOUSE,1638166:151455008,"36,321.60",Legal Aid Higher Crime
MOJ,LAA,30/01/19,Lower Crime,LEGAL AID FUND,JAMES MURRAY SOLICITORS,1636245:151501697,"28,216.00",Legal Aid Lower Crime
MOJ,LAA,30/01/19,Higher Crime,LEGAL AID FUND,JAMES S MARTIN,1637657:151510673,"30,420.00",Legal Aid Higher Crime
MOJ,LAA,30/01/19,Civil Representation,LEGAL AID FUND,JEREMY P WESTON,1635846:3000003329700014,"41,050.80",Legal Aid Civil Representation
MOJ,LAA,30/01/19,Lower Crime,LEGAL AID FUND,JERMAN SAMUELS & PEARSON LLP,1637142:151501412,"57,000.00",Legal Aid Lower Crime
MOJ,LAA,30/01/19,Higher Crime,LEGAL AID FUND,JERMAN SAMUELS & PEARSON LLP,1637142:151464934,"26,916.17",Legal Aid Higher Crime
MOJ,LAA,30/01/19,Civil Representation,LEGAL AID FUND,JOHANNE E DELAHUNTY QC,1635197:3000002843300013,"57,380.40",Legal Aid Civil Representation
MOJ,LAA,30/01/19,Civil Representation,LEGAL AID FUND,JOHANNE E DELAHUNTY QC,1635197:3000003183850007,"36,174.60",Legal Aid Civil Representation
MOJ,LAA,30/01/19,Civil Representation,LEGAL AID FUND,JOHANNE E DELAHUNTY QC,1635197:3000001479500017RC,"(45,910.80)",Legal Aid Civil Representation
MOJ,LAA,30/01/19,Legal Help,LEGAL AID FUND,JOHN BLACK SOLICITORS LTD,1634459:151500990,"27,938.00",Legal Aid Legal Help
MOJ,LAA,30/01/19,Lower Crime,LEGAL AID FUND,JOHN DELANEY & CO SOLICITORS,1638891:151501240,"33,000.00",Legal Aid Lower Crime
MOJ,LAA,30/01/19,Higher Crime,LEGAL AID FUND,JOHN RYDER QC,1638373:151454322,"28,707.65",Legal Aid Higher Crime
MOJ,LAA,30/01/19,Higher Crime,LEGAL AID FUND,JON MAIL SOLICITORS & CO LTD,1638915:151464187,"35,597.46",Legal Aid Higher Crime
MOJ,LAA,30/01/19,Higher Crime,LEGAL AID FUND,JON MAIL SOLICITORS & CO LTD,1638915:151485987,"35,438.92",Legal Aid Higher Crime
MOJ,LAA,30/01/19,Higher Crime,LEGAL AID FUND,JONAS ROY BLOOM,1638918:151484811,"30,820.24",Legal Aid Higher Crime
MOJ,LAA,30/01/19,Lower Crime,LEGAL AID FUND,JOSEPH HILL & CO,1636410:151501617,"32,912.00",Legal Aid Lower Crime
MOJ,LAA,30/01/19,Lower Crime,LEGAL AID FUND,JSP LAW LTD,1637288:151502234,"29,881.00",Legal Aid Lower Crime
MOJ,LAA,30/01/19,Higher Crime,LEGAL AID FUND,JULIAN JEFFERSON,1636717:151485744,"82,479.11",Legal Aid Higher Crime
MOJ,LAA,30/01/19,Civil Representation,LEGAL AID FUND,JWP SOLICITORS,1638957:3000002635310017,"50,419.80",Legal Aid Civil Representation
MOJ,LAA,30/01/19,Higher Crime,LEGAL AID FUND,K LEGAL SOLICITORS,1638616:151510094,"35,597.46",Legal Aid Higher Crime
MOJ,LAA,30/01/19,Lower Crime,LEGAL AID FUND,K LEGAL SOLICITORS,1638616:151502159,"27,965.00",Legal Aid Lower Crime
MOJ,LAA,30/01/19,Higher Crime,LEGAL AID FUND,KARIM & CO SOLICITORS,1636237:151485623,"40,730.89",Legal Aid Higher Crime
MOJ,LAA,30/01/19,Civil Representation,LEGAL AID FUND,KATHERINE BRUNNER,1637992:3000003130360011,"33,145.20",Legal Aid Civil Representation
MOJ,LAA,30/01/19,Higher Crime,LEGAL AID FUND,KAYDERS SOLICITORS,1636208:151509908,"53,082.23",Legal Aid Higher Crime
MOJ,LAA,30/01/19,Higher Crime,LEGAL AID FUND,KAYDERS SOLICITORS,1636208:151509961,"34,033.59",Legal Aid Higher Crime
MOJ,LAA,30/01/19,Higher Crime,LEGAL AID FUND,KEIR B MONTEITH,1634919:151463911,"39,104.40",Legal Aid Higher Crime
MOJ,LAA,30/01/19,Higher Crime,LEGAL AID FUND,KELCEY & HALL SOLICITORS,1639177:151486165,"74,121.43",Legal Aid Higher Crime
MOJ,LAA,30/01/19,Legal Help,LEGAL AID FUND,KESAR & CO SOLICITORS,1638611:151500922,"28,324.00",Legal Aid Legal Help
MOJ,LAA,30/01/19,Higher Crime,LEGAL AID FUND,KEVIN MOLLOY,1634845:151454072,"52,762.68",Legal Aid Higher Crime
MOJ,LAA,30/01/19,Higher Crime,LEGAL AID FUND,KHAN SOLICITORS LTD,1636816:151510635,"54,974.48",Legal Aid Higher Crime
MOJ,LAA,30/01/19,Higher Crime,LEGAL AID FUND,KHAN'S LAW FIRM LTD TA KK & CO,1636812:151509726,"34,311.85",Legal Aid Higher Crime
MOJ,LAA,30/01/19,Higher Crime,LEGAL AID FUND,KIERAN P VAUGHAN,1634913:151476140,"57,218.32",Legal Aid Higher Crime
MOJ,LAA,30/01/19,Higher Crime,LEGAL AID FUND,KINGS SOLICITORS,1634306:151475757,"105,857.75",Legal Aid Higher Crime
MOJ,LAA,30/01/19,Higher Crime,LEGAL AID FUND,L P EVANS SOLICITORS,1638719:151485972,"89,975.11",Legal Aid Higher Crime
MOJ,LAA,30/01/19,Higher Crime,LEGAL AID FUND,LANGFIELD LAW LTD,1634337:151509832,"91,882.98",Legal Aid Higher Crime
MOJ,LAA,30/01/19,Higher Crime,LEGAL AID FUND,LANGFIELD LAW LTD,1634337:151485054,"38,309.48",Legal Aid Higher Crime
MOJ,LAA,30/01/19,Lower Crime,LEGAL AID FUND,LANSBURY WORTHINGTON LTD,1636525:151501115,"54,900.00",Legal Aid Lower Crime
MOJ,LAA,30/01/19,Legal Help,LEGAL AID FUND,LAWANA & CO,1635956:151500101,"64,000.00",Legal Aid Legal Help
MOJ,LAA,30/01/19,Lower Crime,LEGAL AID FUND,LAWRENCE & CO SOLICITORS CDS LLP,1636411:151501162,"60,700.00",Legal Aid Lower Crime
MOJ,LAA,30/01/19,Lower Crime,LEGAL AID FUND,LAWTONS SOLICITORS LTD,1636839:151501393,"35,500.00",Legal Aid Lower Crime
MOJ,LAA,30/01/19,Lower Crime,LEGAL AID FUND,LAWTONS SOLICITORS LTD,1634353:151501413,"35,000.00",Legal Aid Lower Crime
MOJ,LAA,30/01/19,Legal Help,LEGAL AID FUND,LEGAL JUSTICE SOLICITORS,1634725:151500871,"46,191.00",Legal Aid Legal Help
MOJ,LAA,30/01/19,Legal Help,LEGAL AID FUND,LEI DAT & BAIG SOLICITORS LTD,1638630:151500741,"29,230.00",Legal Aid Legal Help
MOJ,LAA,30/01/19,Lower Crime,LEGAL AID FUND,LESLIE FRANKS SOLICITORS,1638854:151501658,"48,093.00",Legal Aid Lower Crime
MOJ,LAA,30/01/19,Lower Crime,LEGAL AID FUND,LEVY & CO SOLICITORS LLP,1635952:151501545,"38,166.00",Legal Aid Lower Crime
MOJ,LAA,30/01/19,Lower Crime,LEGAL AID FUND,LEVY & CO SOLICITORS LLP,1638704:151501105,"30,700.00",Legal Aid Lower Crime
MOJ,LAA,30/01/19,Legal Help,LEGAL AID FUND,LEVY & CO SOLICITORS LLP,1635952:151500917,"25,330.00",Legal Aid Legal Help
MOJ,LAA,30/01/19,Higher Crime,LEGAL AID FUND,LEWIS NEDAS LAW LTD,1636686:151464696,"53,985.07",Legal Aid Higher Crime
MOJ,LAA,30/01/19,Higher Crime,LEGAL AID FUND,LEWIS NEDAS LAW LTD,1636686:151464573,"25,064.45",Legal Aid Higher Crime
MOJ,LAA,30/01/19,Lower Crime,LEGAL AID FUND,LHD SOLICITORS LTD,1636003:151501250,"37,000.00",Legal Aid Lower Crime
MOJ,LAA,30/01/19,Civil Representation,LEGAL AID FUND,LIANNE C MURPHY,1638559:3000002677860012,"32,614.75",Legal Aid Civil Representation
MOJ,LAA,30/01/19,Higher Crime,LEGAL AID FUND,LIBERTY SOLICITORS.,1638733:151464700,"105,857.75",Legal Aid Higher Crime
MOJ,LAA,30/01/19,Civil Representation,LEGAL AID FUND,LINSEY KNOWLES,1637993:3000003122340056,"61,257.60",Legal Aid Civil Representation
MOJ,LAA,30/01/19,Legal Help,LEGAL AID FUND,LISA MARIE MCNULTY SOLICITOR,1636180:151500508,"25,145.00",Legal Aid Legal Help
MOJ,LAA,30/01/19,Lower Crime,LEGAL AID FUND,LLM SOLICITORS (LONDON) LTD,1636837:151502153,"36,034.00",Legal Aid Lower Crime
MOJ,LAA,30/01/19,Higher Crime,LEGAL AID FUND,LLOYD J MORGAN,1638188:151510992,"30,986.16",Legal Aid Higher Crime
MOJ,LAA,30/01/19,Higher Crime,LEGAL AID FUND,LLOYDS PR SOLICITORS,1635915:151464886,"105,857.75",Legal Aid Higher Crime
MOJ,LAA,30/01/19,Higher Crime,LEGAL AID FUND,LLOYDS PR SOLICITORS,1635915:151509815,"89,975.11",Legal Aid Higher Crime
MOJ,LAA,30/01/19,Higher Crime,LEGAL AID FUND,LLOYDS PR SOLICITORS,1635915:151465909,"84,851.11",Legal Aid Higher Crime
MOJ,LAA,30/01/19,Lower Crime,LEGAL AID FUND,LLOYDS PR SOLICITORS,1635915:151501534,"39,106.00",Legal Aid Lower Crime
MOJ,LAA,30/01/19,Lower Crime,LEGAL AID FUND,LLOYDS PR SOLICITORS,1636173:151501529,"37,022.00",Legal Aid Lower Crime
MOJ,LAA,30/01/19,Civil Representation,LEGAL AID FUND,LUCY REED,1635211:3000003971470003,"31,817.28",Legal Aid Civil Representation
MOJ,LAA,30/01/19,Lower Crime,LEGAL AID FUND,LUMB & MACGILL,1638958:151501232,"35,000.00",Legal Aid Lower Crime
MOJ,LAA,30/01/19,Higher Crime,LEGAL AID FUND,LUSTITIA LAW LTD,1634544:151508684,"27,571.60",Legal Aid Higher Crime
MOJ,LAA,30/01/19,Higher Crime,LEGAL AID FUND,M & M SOLICITORS.,1636000:151464195,"89,975.11",Legal Aid Higher Crime
MOJ,LAA,30/01/19,Lower Crime,LEGAL AID FUND,M B LAW LTD,1638815:151460641,"34,881.00",Legal Aid Lower Crime
MOJ,LAA,30/01/19,Lower Crime,LEGAL AID FUND,M K LAW SOLICITORS LTD,1636787:151502115,"29,814.00",Legal Aid Lower Crime
MOJ,LAA,30/01/19,Higher Crime,LEGAL AID FUND,MACAULEY SMITH  LTD,1639264:151453508,"49,729.07",Legal Aid Higher Crime
MOJ,LAA,30/01/19,Higher Crime,LEGAL AID FUND,MAIDMENTS LTD,1636624:151475773,"105,857.75",Legal Aid Higher Crime
MOJ,LAA,30/01/19,Higher Crime,LEGAL AID FUND,MAIDMENTS LTD,1636624:151465391,"61,232.35",Legal Aid Higher Crime
MOJ,LAA,30/01/19,Higher Crime,LEGAL AID FUND,MANDISA C M KNIGHTS,1634551:151464955,"37,247.11",Legal Aid Higher Crime
MOJ,LAA,30/01/19,Higher Crime,LEGAL AID FUND,MARILYN VITTE,1637512:151464813,"39,475.37",Legal Aid Higher Crime
MOJ,LAA,30/01/19,Higher Crime,LEGAL AID FUND,MARK ANDREWS & CO,1639514:151474100,"87,602.34",Legal Aid Higher Crime
MOJ,LAA,30/01/19,Lower Crime,LEGAL AID FUND,MARTIN MURRAY & ASSOCIATES,1639567:151501606,"57,448.00",Legal Aid Lower Crime
MOJ,LAA,30/01/19,Lower Crime,LEGAL AID FUND,MARTYN HEWETT,1636846:151501301,"33,500.00",Legal Aid Lower Crime
MOJ,LAA,30/01/19,Higher Crime,LEGAL AID FUND,MARY MONSON SOLICITORS,1636182:151475108,"89,975.11",Legal Aid Higher Crime
MOJ,LAA,30/01/19,Lower Crime,LEGAL AID FUND,MCGRATH & CO SOLICITORS,1638920:151501363,"25,000.00",Legal Aid Lower Crime
MOJ,LAA,30/01/19,Higher Crime,LEGAL AID FUND,MCKENZIES SOLICITORS,1638952:151464724,"105,857.75",Legal Aid Higher Crime
MOJ,LAA,30/01/19,Lower Crime,LEGAL AID FUND,MCLARTYS SOLICITORS,1638831:151501146,"25,000.00",Legal Aid Lower Crime
MOJ,LAA,30/01/19,Higher Crime,LEGAL AID FUND,MCQUEENS SOLICITORS LLP,1638724:151474500,"76,646.53",Legal Aid Higher Crime
MOJ,LAA,30/01/19,Lower Crime,LEGAL AID FUND,MCSORLEY LEWIS LAW LTD,1636665:151501459,"29,518.00",Legal Aid Lower Crime
MOJ,LAA,30/01/19,Lower Crime,LEGAL AID FUND,METCALFE COPEMAN & PETTEFAR,1639205:151501112,"38,700.00",Legal Aid Lower Crime
MOJ,LAA,30/01/19,Higher Crime,LEGAL AID FUND,MICHAEL J IVERS,1634879:151465545,"25,440.00",Legal Aid Higher Crime
MOJ,LAA,30/01/19,Civil Representation,LEGAL AID FUND,MICHAEL K H LOHMUS,1638511:3000002918210008,"30,034.80",Legal Aid Civil Representation
MOJ,LAA,30/01/19,Higher Crime,LEGAL AID FUND,MICHAEL LAVERS,1635894:151464262,"34,800.00",Legal Aid Higher Crime
MOJ,LAA,30/01/19,Higher Crime,LEGAL AID FUND,MICHAEL LAVERS,1635894:151464283,"34,800.00",Legal Aid Higher Crime
MOJ,LAA,30/01/19,Higher Crime,LEGAL AID FUND,MICHAEL LAVERS,1635894:151464275,"(35,385.60)",Legal Aid Higher Crime
MOJ,LAA,30/01/19,Lower Crime,LEGAL AID FUND,MICHAEL PURDON,1636490:151501735,"29,993.00",Legal Aid Lower Crime
MOJ,LAA,30/01/19,Higher Crime,LEGAL AID FUND,MOORE & TIBBITS,1639501:151485912,"81,541.94",Legal Aid Higher Crime
MOJ,LAA,30/01/19,Civil Representation,LEGAL AID FUND,MSB LAW LLP,1639403:3000003907080005,"74,532.00",Legal Aid Civil Representation
MOJ,LAA,30/01/19,Legal Help,LEGAL AID FUND,MTG SOLICITORS,1636085:151500110,"25,000.00",Legal Aid Legal Help
MOJ,LAA,30/01/19,Civil Representation,LEGAL AID FUND,NATIONAL COUNCIL FOR CIVIL LIBERTIES,1636160:3000002351290003,"47,246.12",Legal Aid Civil Representation
MOJ,LAA,30/01/19,Lower Crime,LEGAL AID FUND,NEEDHAM POULIER LTD,1639014:151501681,"30,914.00",Legal Aid Lower Crime
MOJ,LAA,30/01/19,Higher Crime,LEGAL AID FUND,NELSON GUEST & PARTNERS,1636842:151454179,"59,674.88",Legal Aid Higher Crime
MOJ,LAA,30/01/19,Lower Crime,LEGAL AID FUND,NELSON GUEST & PARTNERS,1636842:151501610,"29,911.00",Legal Aid Lower Crime
MOJ,LAA,30/01/19,Civil Representation,LEGAL AID FUND,NICHOLAS A J GOODWIN,1635448:3000002650700013,"31,730.68",Legal Aid Civil Representation
MOJ,LAA,30/01/19,Lower Crime,LEGAL AID FUND,NOBLE SOLICITORS,1634440:151502394,"25,170.00",Legal Aid Lower Crime
MOJ,LAA,30/01/19,Lower Crime,LEGAL AID FUND,OBW PERERA LTD,1638910:151501110,"29,000.00",Legal Aid Lower Crime
MOJ,LAA,30/01/19,Lower Crime,LEGAL AID FUND,OLD BAILEY SOLICITORS LTD,1636810:151502104,"38,406.00",Legal Aid Lower Crime
MOJ,LAA,30/01/19,Higher Crime,LEGAL AID FUND,ONE LEGAL SERVICES LTD,1637224:151484903,"46,354.08",Legal Aid Higher Crime
MOJ,LAA,30/01/19,Lower Crime,LEGAL AID FUND,ONE LEGAL SERVICES LTD,1634479:151502426,"30,337.00",Legal Aid Lower Crime
MOJ,LAA,30/01/19,Lower Crime,LEGAL AID FUND,O'NEILL WRIGHT & NASH,1636814:151502053,"32,821.00",Legal Aid Lower Crime
MOJ,LAA,30/01/19,Higher Crime,LEGAL AID FUND,OSMAN H OSMAN,1638539:151464049,"30,367.92",Legal Aid Higher Crime
MOJ,LAA,30/01/19,Lower Crime,LEGAL AID FUND,OWEN NASH & CO,1639511:151501373,"25,000.00",Legal Aid Lower Crime
MOJ,LAA,30/01/19,Legal Help,LEGAL AID FUND,OXFORD LAW GROUP,1636093:151500192,"27,700.00",Legal Aid Legal Help
MOJ,LAA,30/01/19,Legal Help,LEGAL AID FUND,PARAGON LAW LTD,1636001:151500176,"50,000.00",Legal Aid Legal Help
MOJ,LAA,30/01/19,Higher Crime,LEGAL AID FUND,PARRY DAVIES CLWYD JONES & LLOYD LLP,1638751:151508626,"26,404.06",Legal Aid Higher Crime
MOJ,LAA,30/01/19,Lower Crime,LEGAL AID FUND,PENFOLD & MCPHERSON LTD,1636582:151501920,"25,369.00",Legal Aid Lower Crime
MOJ,LAA,30/01/19,Lower Crime,LEGAL AID FUND,PETER CLARKE SOLICITORS LLP,1636643:151501907,"27,347.00",Legal Aid Lower Crime
MOJ,LAA,30/01/19,Higher Crime,LEGAL AID FUND,PETER D WRIGHT QC,1638227:151464615,"54,900.00",Legal Aid Higher Crime
MOJ,LAA,30/01/19,Legal Help,LEGAL AID FUND,PETER EDWARDS LAW LTD,1639059:151500097,"41,200.00",Legal Aid Legal Help
MOJ,LAA,30/01/19,Higher Crime,LEGAL AID FUND,PETER F C ROWLANDS,1634903:151454963,"28,049.35",Legal Aid Higher Crime
MOJ,LAA,30/01/19,Lower Crime,LEGAL AID FUND,PLUCK ANDREW & CO,1639411:151501809,"44,265.00",Legal Aid Lower Crime
MOJ,LAA,30/01/19,Higher Crime,LEGAL AID FUND,POWELL SPENCER AND PARTNERS,1639520:151465036,"76,510.40",Legal Aid Higher Crime
MOJ,LAA,30/01/19,Lower Crime,LEGAL AID FUND,POWELL SPENCER AND PARTNERS,1639520:151501124,"36,900.00",Legal Aid Lower Crime
MOJ,LAA,30/01/19,Civil Representation,LEGAL AID FUND,PS LAW LLP,1637676:3000002282000020,"27,731.01",Legal Aid Civil Representation
MOJ,LAA,30/01/19,Civil Representation,LEGAL AID FUND,PS LAW LLP,1637676:3000002282000019RC,"(26,923.03)",Legal Aid Civil Representation
MOJ,LAA,30/01/19,Lower Crime,LEGAL AID FUND,PURCELL PARKER LTD,1639130:151501365,"106,700.00",Legal Aid Lower Crime
MOJ,LAA,30/01/19,Higher Crime,LEGAL AID FUND,PURE LAW CRIMINAL DEFENCE,1637172:151466068,"41,284.06",Legal Aid Higher Crime
MOJ,LAA,30/01/19,Lower Crime,LEGAL AID FUND,PURE LAW CRIMINAL DEFENCE,1637172:151502329,"33,452.00",Legal Aid Lower Crime
MOJ,LAA,30/01/19,Civil Representation,LEGAL AID FUND,QUALITY SOLICITORS LOCKINGS,1636413:3000002698850019,"26,173.30",Legal Aid Civil Representation
MOJ,LAA,30/01/19,Lower Crime,LEGAL AID FUND,REECE THOMAS WATSON LTD,1637301:151502274,"62,480.00",Legal Aid Lower Crime
MOJ,LAA,30/01/19,Higher Crime,LEGAL AID FUND,REEDS SOLICITORS LTD,1637180:151485760,"89,975.11",Legal Aid Higher Crime
MOJ,LAA,30/01/19,Higher Crime,LEGAL AID FUND,REEDS SOLICITORS LTD,1637182:151509004,"89,975.11",Legal Aid Higher Crime
MOJ,LAA,30/01/19,Lower Crime,LEGAL AID FUND,REEDS SOLICITORS LTD,1637110:151502495,"76,010.00",Legal Aid Lower Crime
MOJ,LAA,30/01/19,Higher Crime,LEGAL AID FUND,REEDS SOLICITORS LTD,1637110:151464702,"66,848.77",Legal Aid Higher Crime
MOJ,LAA,30/01/19,Lower Crime,LEGAL AID FUND,REEDS SOLICITORS LTD,1636307:151501925,"41,231.00",Legal Aid Lower Crime
MOJ,LAA,30/01/19,Lower Crime,LEGAL AID FUND,REEDS SOLICITORS LTD,1637182:151502499,"38,170.00",Legal Aid Lower Crime
MOJ,LAA,30/01/19,Higher Crime,LEGAL AID FUND,REEDS SOLICITORS LTD,1637181:151508796,"36,662.46",Legal Aid Higher Crime
MOJ,LAA,30/01/19,Civil Representation,LEGAL AID FUND,REEDS SOLICITORS LTD,1637550:3000002332680019,"33,299.14",Legal Aid Civil Representation
MOJ,LAA,30/01/19,Higher Crime,LEGAL AID FUND,REEDS SOLICITORS LTD,1637792:151510654,"30,604.45",Legal Aid Higher Crime
MOJ,LAA,30/01/19,Lower Crime,LEGAL AID FUND,REEDS SOLICITORS LTD,1637792:151502196,"25,735.00",Legal Aid Lower Crime
MOJ,LAA,30/01/19,Lower Crime,LEGAL AID FUND,REEDS SOLICITORS LTD,1637232:151502309,"25,485.00",Legal Aid Lower Crime
MOJ,LAA,30/01/19,Civil Representation,LEGAL AID FUND,REEDS SOLICITORS LTD,1637550:3000002332680015RC,"(28,931.40)",Legal Aid Civil Representation
MOJ,LAA,30/01/19,Civil Representation,LEGAL AID FUND,REES PAGE,1639512:3000002918210009,"26,913.60",Legal Aid Civil Representation
MOJ,LAA,30/01/19,Lower Crime,LEGAL AID FUND,REEVES  & CO SOLICITORS,1635934:151501884,"27,723.00",Legal Aid Lower Crime
MOJ,LAA,30/01/19,Lower Crime,LEGAL AID FUND,RENSHAW DERRICK & CO,1636652:151501933,"36,911.00",Legal Aid Lower Crime
MOJ,LAA,30/01/19,Higher Crime,LEGAL AID FUND,RICHARD HASWELL SOLICITORS LTD,1636524:151485779,"129,088.88",Legal Aid Higher Crime
MOJ,LAA,30/01/19,Lower Crime,LEGAL AID FUND,RICHARD HASWELL SOLICITORS LTD,1636524:151501733,"25,715.00",Legal Aid Lower Crime
MOJ,LAA,30/01/19,Higher Crime,LEGAL AID FUND,RILEY HAYES & CO,1639131:151464233,"89,975.11",Legal Aid Higher Crime
MOJ,LAA,30/01/19,Higher Crime,LEGAL AID FUND,RILEY HAYES & CO,1639131:151508696,"71,119.79",Legal Aid Higher Crime
MOJ,LAA,30/01/19,Lower Crime,LEGAL AID FUND,RILEY HAYES & CO,1639131:151501381,"29,000.00",Legal Aid Lower Crime
MOJ,LAA,30/01/19,Civil Representation,LEGAL AID FUND,RIMA BARUAH,1637939:3000001094190009,"27,075.60",Legal Aid Civil Representation
MOJ,LAA,30/01/19,Lower Crime,LEGAL AID FUND,ROBERT LIZAR,1639429:151501869,"45,778.00",Legal Aid Lower Crime
MOJ,LAA,30/01/19,Higher Crime,LEGAL AID FUND,ROBERT LIZAR,1639429:151465500,"35,441.81",Legal Aid Higher Crime
MOJ,LAA,30/01/19,Lower Crime,LEGAL AID FUND,ROBERTSON'S SOLICITORS,1639243:151501228,"36,300.00",Legal Aid Lower Crime
MOJ,LAA,30/01/19,Higher Crime,LEGAL AID FUND,ROSSANO G CIFONELLI,1635361:151474073,"58,136.28",Legal Aid Higher Crime
MOJ,LAA,30/01/19,Lower Crime,LEGAL AID FUND,ROWE SPARKES SOLICITORS LTD,1636012:151501315,"41,600.00",Legal Aid Lower Crime
MOJ,LAA,30/01/19,Lower Crime,LEGAL AID FUND,S A LAW CHAMBERS SOLICITORS,1636148:151501119,"32,500.00",Legal Aid Lower Crime
MOJ,LAA,30/01/19,Higher Crime,LEGAL AID FUND,SAKHI LEGAL SERVICES LTD,1636051:151509870,"27,403.02",Legal Aid Higher Crime
MOJ,LAA,30/01/19,Higher Crime,LEGAL AID FUND,SALLY M HOWES QC,1638421:151464190,"33,643.08",Legal Aid Higher Crime
MOJ,LAA,30/01/19,Lower Crime,LEGAL AID FUND,SANSBURY DOUGLAS,1638749:151501388,"55,000.00",Legal Aid Lower Crime
MOJ,LAA,30/01/19,Civil Representation,LEGAL AID FUND,SARA M LEWIS,1635282:3000003260090050,"52,027.54",Legal Aid Civil Representation
MOJ,LAA,30/01/19,Higher Crime,LEGAL AID FUND,SARAH A GRIFFIN,1637723:151464407,"34,362.96",Legal Aid Higher Crime
MOJ,LAA,30/01/19,Lower Crime,LEGAL AID FUND,SAUNDERS GOODIN RIDDLESTON SOLICITORS,1636505:151501106,"27,600.00",Legal Aid Lower Crime
MOJ,LAA,30/01/19,Lower Crime,LEGAL AID FUND,SAUNDERS SOLICITORS LTD,1639646:151501160,"31,000.00",Legal Aid Lower Crime
MOJ,LAA,30/01/19,Higher Crime,LEGAL AID FUND,SHAW GRAHAM KERSH,1636192:151510031,"89,975.11",Legal Aid Higher Crime
MOJ,LAA,30/01/19,Lower Crime,LEGAL AID FUND,SHELLEY & CO,1639125:151501574,"29,317.00",Legal Aid Lower Crime
MOJ,LAA,30/01/19,Civil Representation,LEGAL AID FUND,SILKS SOLICITORS,1636589:3000001313320011,"46,406.48",Legal Aid Civil Representation
MOJ,LAA,30/01/19,Civil Representation,LEGAL AID FUND,SILKS SOLICITORS,1636589:3000001313320007RC,"(30,544.80)",Legal Aid Civil Representation
MOJ,LAA,30/01/19,Civil Representation,LEGAL AID FUND,SIMON L BICKLER QC,1638019:3000004021150022,"38,734.20",Legal Aid Civil Representation
MOJ,LAA,30/01/19,Lower Crime,LEGAL AID FUND,SIMON LACEY LAW ASSOCIATES,1636077:151501341,"26,800.00",Legal Aid Lower Crime
MOJ,LAA,30/01/19,Civil Representation,LEGAL AID FUND,SIMON R A MILLER,1638542:3000002274480023,"36,189.86",Legal Aid Civil Representation
MOJ,LAA,30/01/19,Higher Crime,LEGAL AID FUND,SINGH SOLICITORS LTD,1634390:151475408,"107,574.07",Legal Aid Higher Crime
MOJ,LAA,30/01/19,Higher Crime,LEGAL AID FUND,SINGH SOLICITORS LTD,1634390:151486285,"88,657.92",Legal Aid Higher Crime
MOJ,LAA,30/01/19,Civil Representation,LEGAL AID FUND,SIOBHAN F KELLY,1635514:3000003814610030,"33,075.90",Legal Aid Civil Representation
MOJ,LAA,30/01/19,Lower Crime,LEGAL AID FUND,SJ LAW,1637124:151502486,"27,890.00",Legal Aid Lower Crime
MOJ,LAA,30/01/19,Lower Crime,LEGAL AID FUND,SMITH PARTNERSHIP,1638941:151501088,"38,500.00",Legal Aid Lower Crime
MOJ,LAA,30/01/19,Lower Crime,LEGAL AID FUND,SMITH PARTNERSHIP,1638939:151501089,"27,600.00",Legal Aid Lower Crime
MOJ,LAA,30/01/19,Lower Crime,LEGAL AID FUND,SMITH PARTNERSHIP,1638942:151501369,"25,600.00",Legal Aid Lower Crime
MOJ,LAA,30/01/19,Lower Crime,LEGAL AID FUND,SONN MACMILLAN WALKER LTD,1636874:151501116,"63,800.00",Legal Aid Lower Crime
MOJ,LAA,30/01/19,Legal Help,LEGAL AID FUND,SOUTHERNS SOLICITORS LTD,1636509:151500515,"30,448.00",Legal Aid Legal Help
MOJ,LAA,30/01/19,Lower Crime,LEGAL AID FUND,SOUTHERNS SOLICITORS LTD,1636509:151501843,"28,176.00",Legal Aid Lower Crime
MOJ,LAA,30/01/19,Legal Help,LEGAL AID FUND,SOUTHWARK LAW CENTRE,1636210:151500668,"26,356.00",Legal Aid Legal Help
MOJ,LAA,30/01/19,Higher Crime,LEGAL AID FUND,ST JAMES SOLICITORS,1636147:151474546,"107,970.13",Legal Aid Higher Crime
MOJ,LAA,30/01/19,Higher Crime,LEGAL AID FUND,STEPHEN BURDON SOLICITORS,1638991:151474730,"89,975.11",Legal Aid Higher Crime
MOJ,LAA,30/01/19,Higher Crime,LEGAL AID FUND,STEPHEN BURDON SOLICITORS,1638991:151508589,"53,038.79",Legal Aid Higher Crime
MOJ,LAA,30/01/19,Higher Crime,LEGAL AID FUND,STEPHEN F HARVEY QC,1635485:151454654,"39,709.73",Legal Aid Higher Crime
MOJ,LAA,30/01/19,Higher Crime,LEGAL AID FUND,STEPHEN LICKRISH & ASSOCIATES LTD,1636052:151474545,"107,970.13",Legal Aid Higher Crime
MOJ,LAA,30/01/19,Higher Crime,LEGAL AID FUND,STEPHEN LICKRISH & ASSOCIATES LTD,1636052:151508585,"39,263.80",Legal Aid Higher Crime
MOJ,LAA,30/01/19,Higher Crime,LEGAL AID FUND,STEPHEN MOORE & CO,1638976:151509910,"89,975.11",Legal Aid Higher Crime
MOJ,LAA,30/01/19,Lower Crime,LEGAL AID FUND,STEPHEN RIMMER LLP,1639140:151501299,"26,000.00",Legal Aid Lower Crime
MOJ,LAA,30/01/19,Lower Crime,LEGAL AID FUND,STEPHENSONS SOLICITORS LLP,1639433:151501815,"41,429.00",Legal Aid Lower Crime
MOJ,LAA,30/01/19,Higher Crime,LEGAL AID FUND,STEVEN D EVANS,1638215:151485155,"42,126.00",Legal Aid Higher Crime
MOJ,LAA,30/01/19,Higher Crime,LEGAL AID FUND,STEVENS SOLICITORS,1639399:151485251,"95,227.45",Legal Aid Higher Crime
MOJ,LAA,30/01/19,Lower Crime,LEGAL AID FUND,STEVENS SOLICITORS,1639399:151501355,"51,100.00",Legal Aid Lower Crime
MOJ,LAA,30/01/19,Lower Crime,LEGAL AID FUND,STEVENS SOLICITORS,1639398:151501356,"50,800.00",Legal Aid Lower Crime
MOJ,LAA,30/01/19,Higher Crime,LEGAL AID FUND,STEWART BEGUM SOLICITORS LTD,1638727:151485975,"29,571.36",Legal Aid Higher Crime
MOJ,LAA,30/01/19,Higher Crime,LEGAL AID FUND,STOKOE PARTNERSHIP,1638612:151475998,"34,311.85",Legal Aid Higher Crime
MOJ,LAA,30/01/19,Lower Crime,LEGAL AID FUND,STUART MILLER SOLICITORS LTD,1636502:151501655,"82,874.00",Legal Aid Lower Crime
MOJ,LAA,30/01/19,Higher Crime,LEGAL AID FUND,SUSAN E MEEK,1638336:151465591,"58,136.28",Legal Aid Higher Crime
MOJ,LAA,30/01/19,Civil Representation,LEGAL AID FUND,SUSAN HOWARTH & CO SOLICITORS LTD,1636465:151459047,"42,901.94",Legal Aid Civil Representation
MOJ,LAA,30/01/19,Legal Help,LEGAL AID FUND,SUTOVIC & HARTIGAN,1639641:151500119,"38,000.00",Legal Aid Legal Help
MOJ,LAA,30/01/19,Lower Crime,LEGAL AID FUND,SWAIN & CO SOLICITORS,1636109:151501313,"129,700.00",Legal Aid Lower Crime
MOJ,LAA,30/01/19,Legal Help,LEGAL AID FUND,SWAIN & CO SOLICITORS,1636110:151500183,"39,000.00",Legal Aid Legal Help
MOJ,LAA,30/01/19,Legal Help,LEGAL AID FUND,SWITALSKI'S SOLICITORS LTD,1636455:151500394,"38,167.00",Legal Aid Legal Help
MOJ,LAA,30/01/19,Civil Representation,LEGAL AID FUND,SWITALSKI'S SOLICITORS LTD,1635906:3000003540720005,"31,933.20",Legal Aid Civil Representation
MOJ,LAA,30/01/19,Lower Crime,LEGAL AID FUND,T S LAW LTD,1636183:151501152,"25,000.00",Legal Aid Lower Crime
MOJ,LAA,30/01/19,Legal Help,LEGAL AID FUND,T V EDWARDS LLP,1636526:151500103,"64,900.00",Legal Aid Legal Help
MOJ,LAA,30/01/19,Lower Crime,LEGAL AID FUND,T V EDWARDS LLP,1636526:151501150,"64,000.00",Legal Aid Lower Crime
MOJ,LAA,30/01/19,Lower Crime,LEGAL AID FUND,TAIT FARRIER GRAHAM,1639278:151501208,"32,700.00",Legal Aid Lower Crime
MOJ,LAA,30/01/19,Higher Crime,LEGAL AID FUND,TARQUIN J MCCALLA,1635893:151464023,"29,500.67",Legal Aid Higher Crime
MOJ,LAA,30/01/19,Lower Crime,LEGAL AID FUND,TAYLOR HALDANE BARLEX LLP,1637343:151502307,"36,816.00",Legal Aid Lower Crime
MOJ,LAA,30/01/19,Lower Crime,LEGAL AID FUND,TAYLOR HALDANE BARLEX LLP,1636190:151501566,"31,121.00",Legal Aid Lower Crime
MOJ,LAA,30/01/19,Lower Crime,LEGAL AID FUND,TAYLOR HALDANE BARLEX LLP,1637786:151502193,"28,014.00",Legal Aid Lower Crime
MOJ,LAA,30/01/19,Legal Help,LEGAL AID FUND,TAYLOR HALDANE BARLEX LLP,1637786:151500987,"27,379.00",Legal Aid Legal Help
MOJ,LAA,30/01/19,Lower Crime,LEGAL AID FUND,TAYLOR STREET SOLICITORS LLP,1639326:151501303,"29,000.00",Legal Aid Lower Crime
MOJ,LAA,30/01/19,Civil Representation,LEGAL AID FUND,TAYNTONS INC ROWBIS,1634577:3000002651360082,"27,472.96",Legal Aid Civil Representation
MOJ,LAA,30/01/19,Legal Help,LEGAL AID FUND,THALIWAL & VEJA SOLICITORS,1638966:151500568,"33,297.00",Legal Aid Legal Help
MOJ,LAA,30/01/19,Higher Crime,LEGAL AID FUND,THANKEY MAHET LEGAL,1637300:151475485,"57,753.11",Legal Aid Higher Crime
MOJ,LAA,30/01/19,Lower Crime,LEGAL AID FUND,THE JOHNSON PARTNERSHIP,1639188:151501080,"190,000.00",Legal Aid Lower Crime
MOJ,LAA,30/01/19,Lower Crime,LEGAL AID FUND,THE JOHNSON PARTNERSHIP,1639186:151501082,"49,000.00",Legal Aid Lower Crime
MOJ,LAA,30/01/19,Lower Crime,LEGAL AID FUND,THE JOHNSON PARTNERSHIP,1639187:151501081,"37,500.00",Legal Aid Lower Crime
MOJ,LAA,30/01/19,Lower Crime,LEGAL AID FUND,THE JOHNSON PARTNERSHIP,1637388:151501402,"29,000.00",Legal Aid Lower Crime
MOJ,LAA,30/01/19,Lower Crime,LEGAL AID FUND,THE JOHNSON PARTNERSHIP,1634542:151502270,"26,756.00",Legal Aid Lower Crime
MOJ,LAA,30/01/19,Lower Crime,LEGAL AID FUND,THOMAS BOYD WHYTE,1639622:151501613,"28,511.00",Legal Aid Lower Crime
MOJ,LAA,30/01/19,Legal Help,LEGAL AID FUND,THOMPSON & CO SOLICITORS LTD,1639385:151500107,"42,200.00",Legal Aid Legal Help
MOJ,LAA,30/01/19,Civil Representation,LEGAL AID FUND,THORNES,1636556:3000002923980035,"27,205.20",Legal Aid Civil Representation
MOJ,LAA,30/01/19,Lower Crime,LEGAL AID FUND,TILLY BAILEY & IRVINE LLP,1639295:151501204,"28,100.00",Legal Aid Lower Crime
MOJ,LAA,30/01/19,Civil Representation,LEGAL AID FUND,TINA G COOK QC,1638301:3000002749880033,"26,071.48",Legal Aid Civil Representation
MOJ,LAA,30/01/19,Lower Crime,LEGAL AID FUND,TRINITY ADVOCATES,1638762:151501384,"25,000.00",Legal Aid Lower Crime
MOJ,LAA,30/01/19,Civil Representation,LEGAL AID FUND,TRUEMANS SOLICITORS,1636569:151436236,"25,475.15",Legal Aid Civil Representation
MOJ,LAA,30/01/19,Lower Crime,LEGAL AID FUND,TUCKERS SOLICITORS LLP,1636500:151501161,"140,000.00",Legal Aid Lower Crime
MOJ,LAA,30/01/19,Lower Crime,LEGAL AID FUND,TUCKERS SOLICITORS LLP,1636499:151501283,"105,000.00",Legal Aid Lower Crime
MOJ,LAA,30/01/19,Higher Crime,LEGAL AID FUND,TUCKERS SOLICITORS LLP,1636501:151475469,"52,878.35",Legal Aid Higher Crime
MOJ,LAA,30/01/19,Lower Crime,LEGAL AID FUND,TUCKERS SOLICITORS LLP,1637420:151501403,"46,300.00",Legal Aid Lower Crime
MOJ,LAA,30/01/19,Lower Crime,LEGAL AID FUND,TUCKERS SOLICITORS LLP,1638708:151501165,"42,000.00",Legal Aid Lower Crime
MOJ,LAA,30/01/19,Lower Crime,LEGAL AID FUND,TUCKERS SOLICITORS LLP,1637225:151502311,"31,672.00",Legal Aid Lower Crime
MOJ,LAA,30/01/19,Lower Crime,LEGAL AID FUND,TUCKERS SOLICITORS LLP,1636501:151501366,"30,000.00",Legal Aid Lower Crime
MOJ,LAA,30/01/19,Legal Help,LEGAL AID FUND,TURPIN & MILLER LLP,1636153:151500623,"57,411.00",Legal Aid Legal Help
MOJ,LAA,30/01/19,Higher Crime,LEGAL AID FUND,TYLER HOFFMAN LTD,1637211:151508587,"56,378.72",Legal Aid Higher Crime
MOJ,LAA,30/01/19,Lower Crime,LEGAL AID FUND,USMANI KING LTD,1636152:151501538,"27,638.00",Legal Aid Lower Crime
MOJ,LAA,30/01/19,Lower Crime,LEGAL AID FUND,VCW LAW,1639355:151501188,"29,100.00",Legal Aid Lower Crime
MOJ,LAA,30/01/19,Lower Crime,LEGAL AID FUND,VHS FLETCHERS,1636268:151501083,"43,200.00",Legal Aid Lower Crime
MOJ,LAA,30/01/19,Lower Crime,LEGAL AID FUND,VHS FLETCHERS,1634669:151501408,"29,100.00",Legal Aid Lower Crime
MOJ,LAA,30/01/19,Lower Crime,LEGAL AID FUND,WAINWRIGHT & CUMMINS LLP,1635994:151501171,"33,000.00",Legal Aid Lower Crime
MOJ,LAA,30/01/19,Lower Crime,LEGAL AID FUND,WANNOPS LLP,1636788:151502182,"41,976.00",Legal Aid Lower Crime
MOJ,LAA,30/01/19,Lower Crime,LEGAL AID FUND,WATSON WOODHOUSE SOLICITORS LLP,1636494:151501189,"50,700.00",Legal Aid Lower Crime
MOJ,LAA,30/01/19,Lower Crime,LEGAL AID FUND,WELLS BURCOMBE LLP,1635982:151501533,"62,208.00",Legal Aid Lower Crime
MOJ,LAA,30/01/19,Lower Crime,LEGAL AID FUND,WELLS BURCOMBE LLP,1636831:151502116,"45,241.00",Legal Aid Lower Crime
MOJ,LAA,30/01/19,Lower Crime,LEGAL AID FUND,WESSEX SOLICITORS CHAMBERS,1638766:151501385,"59,000.00",Legal Aid Lower Crime
MOJ,LAA,30/01/19,Lower Crime,LEGAL AID FUND,WHELDON LAW,1639300:151501097,"27,000.00",Legal Aid Lower Crime
MOJ,LAA,30/01/19,Higher Crime,LEGAL AID FUND,WILLIAM J EVANS,1635375:151509521,"32,955.85",Legal Aid Higher Crime
MOJ,LAA,30/01/19,Lower Crime,LEGAL AID FUND,WILLIAMSONS SOLICITORS LTD,1639359:151501241,"41,600.00",Legal Aid Lower Crime
MOJ,LAA,30/01/19,Lower Crime,LEGAL AID FUND,WILSON DEVONALD GRIFFITHS JOHN,1639152:151501061,"45,000.00",Legal Aid Lower Crime
MOJ,LAA,30/01/19,Legal Help,LEGAL AID FUND,WILSON SOLICITORS LLP,1639121:151481778,"98,000.00",Legal Aid Legal Help
MOJ,LAA,30/01/19,Legal Help,LEGAL AID FUND,WOLTON & CO,1638931:151500253,"45,233.00",Legal Aid Legal Help
MOJ,LAA,30/01/19,Lower Crime,LEGAL AID FUND,YARWOOD & STUBLEY,1636492:151501190,"32,200.00",Legal Aid Lower Crime
MOJ,LAA,30/01/19,Higher Crime,LEGAL AID FUND,YASIN A PATEL,1638550:151474610,"26,490.00",Legal Aid Higher Crime
MOJ,LAA,30/01/19,Higher Crime,LEGAL AID FUND,YATES ARDERN,1636462:151486032,"29,664.55",Legal Aid Higher Crime
